Workbook

Sheet Feuil4
C3: LOGICIEL VIP 2020 PROFESSIONNEL
B7: N° CHEVAUX | C7: 1 | D7: 2 | E7: 3 | F7: 4 | G7: 5 | H7: 6 | I7: 7 | J7: 8 | K7: 9 | L7: 10 | M7: 11 | N7: 12 | O7: 13 | P7: 14 | Q7: 15 | R7: 16 | S7: 17 | T7: 18
B8: COTES | S8: NP | T8: NP
F72: =Feuil3!DR74 -> 0 | G72: =Feuil3!DS74 -> 0 | H72: =Feuil3!DT74 -> 0 | I72: =Feuil3!DU74 -> 0 | J72: =Feuil3!DV74 -> 0
F74: =Feuil3!DR75 -> 0 | G74: =Feuil3!DS75 -> 0 | H74: =Feuil3!DT75 -> 0 | I74: =Feuil3!DU75 -> 0 | J74: =Feuil3!DV75 -> 0
F76: =Feuil3!DR76 -> 0 | G76: =Feuil3!DS76 -> 0 | H76: =Feuil3!DT76 -> 0 | I76: =Feuil3!DU76 -> 0 | J76: =Feuil3!DV76 -> 0
F78: =Feuil3!DR77 -> 0 | G78: =Feuil3!DS77 -> 0 | H78: =Feuil3!DT77 -> 0 | I78: =Feuil3!DU77 -> 0 | J78: =Feuil3!DV77 -> 0
F80: =Feuil3!DR78 -> 0 | G80: =Feuil3!DS78 -> 0 | H80: =Feuil3!DT78 -> 0 | I80: =Feuil3!DU78 -> 0 | J80: =Feuil3!DV78 -> 0

Sheet RECAP
B13: N° CHEVAUX | C13: 1 | D13: 2 | E13: 3 | F13: 4 | G13: 5 | H13: 6 | I13: 7 | J13: 8 | K13: 9
B14: COTES | C14: =Feuil4!C8 -> 0 | D14: =Feuil4!D8 -> 0 | E14: =Feuil4!E8 -> 0 | F14: =Feuil4!F8 -> 0 | G14: =Feuil4!G8 -> 0 | H14: =Feuil4!H8 -> 0 | I14: =Feuil4!I8 -> 0 | J14: =Feuil4!J8 -> 0 | K14: =Feuil4!K8 -> 0
B17: N° CHEVAUX | C17: 10 | D17: 11 | E17: 12 | F17: 13 | G17: 14 | H17: 15 | I17: 16 | J17: 17 | K17: 18
B18: COTES | C18: =Feuil4!L8 -> 0 | D18: =Feuil4!M8 -> 0 | E18: =Feuil4!N8 -> 0 | F18: =Feuil4!O8 -> 0 | G18: =Feuil4!P8 -> 0 | H18: =Feuil4!Q8 -> 0 | I18: =Feuil4!R8 -> 0 | J18: =Feuil4!S8 -> NP | K18: =Feuil4!T8 -> NP
B36: RESULTAT QUINTE+ | D36: =Feuil4!F64 -> 0 | E36: =Feuil4!G64 -> 0 | F36: =Feuil4!H64 -> 0 | G36: =Feuil4!I64 -> 0 | H36: =Feuil4!J64 -> 0
B41: PLACE 1 | C41: CHEVAL GAGNANT
C42: =Feuil1!B88 -> 13 | D42: =Feuil1!B89 -> 11 | E42: =Feuil1!B90 -> 7 | F42: =Feuil1!B91 -> 6
B44: PLACE 2 | C44: 2 EME POSITION
C45: =Feuil1!C88 -> 16 | D45: =Feuil1!C89 -> 13 | E45: =Feuil1!C90 -> 12 | F45: =Feuil1!C91 -> 9
B47: PLACE 3 | C47: 3 EME POSITION
C48: =Feuil1!D88 -> 16 | D48: =Feuil1!D89 -> 9 | E48: =Feuil1!D90 -> 7 | F48: =Feuil1!D91 -> 5
B50: PLACE 4 | C50: 4 EME POSITION
C51: =Feuil1!E88 -> 16 | D51: =Feuil1!E89 -> 7 | E51: =Feuil1!E90 -> 4 | F51: =Feuil1!E91 -> 1
B53: PLACE 5 | C53: 5 EME POSITION
C54: =Feuil1!F88 -> 13 | D54: =Feuil1!F89 -> 7 | E54: =Feuil1!F90 -> 4 | F54: =Feuil1!F91 -> 
B63: CHEVAUX | C63: CITATION PLACES
B64: =Feuil1!J109 -> 7 | C64: =Feuil1!I109 -> 4 | F64: =IF(Feuil1!W63=0,"",Feuil1!W63) -> 11 | K64: =Feuil3!N67 -> 13
B65: =Feuil1!J110 -> 16 | C65: =Feuil1!I110 -> 3 | F65: =IF(Feuil1!W64=0,"",Feuil1!W64) -> 7 | K65: =Feuil3!N68 -> 8
B66: =Feuil1!J111 -> 13 | C66: =Feuil1!I111 -> 3 | F66: =IF(Feuil1!W65=0,"",Feuil1!W65) -> 5 | K66: =Feuil3!N69 -> 7
B67: =Feuil1!J112 -> 9 | C67: =Feuil1!I112 -> 2 | F67: =IF(Feuil1!W66=0,"",Feuil1!W66) -> 4 | K67: =Feuil3!N70 -> 16
B68: =Feuil1!J113 -> 4 | C68: =Feuil1!I113 -> 2 | F68: =IF(Feuil1!W67=0,"",Feuil1!W67) ->  | K68: =Feuil3!N71 -> 14
B69: =Feuil1!J114 -> 12 | C69: =Feuil1!I114 -> 1 | F69: =IF(Feuil1!W68=0,"",Feuil1!W68) ->  | K69: =Feuil3!N72 -> 11
B70: =Feuil1!J115 -> 11 | C70: =Feuil1!I115 -> 1 | F70: =IF(Feuil1!W69=0,"",Feuil1!W69) ->  | K70: =Feuil3!N73 -> 12
B71: =Feuil1!J116 -> 6 | C71: =Feuil1!I116 -> 1 | K71: =Feuil3!N74 -> 9
B72: =Feuil1!J117 -> 5 | C72: =Feuil1!I117 -> 1
B73: =Feuil1!J118 -> 1 | C73: =Feuil1!I118 -> 1
B74: =Feuil1!J119 -> 18 | C74: =Feuil1!I119 -> 0
B75: =Feuil1!J120 -> 17 | C75: =Feuil1!I120 -> 0
B76: =Feuil1!J121 -> 15 | C76: =Feuil1!I121 -> 0
B77: =Feuil1!J122 -> 14 | C77: =Feuil1!I122 -> 0
B78: =Feuil1!J123 -> 10 | C78: =Feuil1!I123 -> 0
B79: =Feuil1!J124 -> 8 | C79: =Feuil1!I124 -> 0
B80: =Feuil1!J125 -> 3 | C80: =Feuil1!I125 -> 0
B81: =Feuil1!J126 -> 2 | C81: =Feuil1!I126 -> 0

Sheet PRONO MATRICIEL
B3: VIP 2020 PRO
B7: PRONOSTICS PMU QUINTE+
B9: VIP 2020 PRO
B11: 8 | C11: 16 | D11: 11 | E11: 2 | F11: 4 | G11: 14 | H11: 13 | I11: 5
B12: 0.2157081237 | C12: 0.2068955188 | D12: 0.2057081237 | E12: 0.2039216391 | F12: 0.203431584 | G12: 0.2018847352 | H12: 0.2008279415 | I12: 0.20069734
B15: LES SCENARIOS QUINTE+ DE LA MATRICE
C17: SCENARIO 1 | D17: 7 | E17: 11 | F17: 3 | G17: 13 | H17: 10 | M17: CHEVAUX | N17: 1 | O17: 2 | P17: 3 | Q17: 4 | R17: 5 | S17: 6 | T17: 7 | U17: 8 | V17: 9 | W17: 10 | X17: 11 | Y17: 12 | Z17: 13 | AA17: 14 | AB17: 15 | AC17: 16 | AD17: 17 | AE17: 18
C18: SCENARIO 2 | D18: 3 | E18: 12 | F18: 2 | G18: 4 | H18: 7 | M18: COTES | N18: =RECAP!C14 -> 0 | O18: =RECAP!D14 -> 0 | P18: =RECAP!E14 -> 0 | Q18: =RECAP!F14 -> 0 | R18: =RECAP!G14 -> 0 | S18: =RECAP!H14 -> 0 | T18: =RECAP!I14 -> 0 | U18: =RECAP!J14 -> 0 | V18: =RECAP!K14 -> 0 | W18: =RECAP!C18 -> 0 | X18: =RECAP!D18 -> 0 | Y18: =RECAP!E18 -> 0 | Z18: =RECAP!F18 -> 0 | AA18: =RECAP!G18 -> 0 | AB18: =RECAP!H18 -> 0 | AC18: =RECAP!I18 -> 0 | AD18: =RECAP!J18 -> NP | AE18: =RECAP!K18 -> NP
C19: SCENARIO 3 | D19: 12 | E19: 8 | F19: 16 | G19: 7 | H19: 9
C20: SCENARIO 4 | D20: 5 | E20: 14 | F20: 16 | G20: 11 | H20: 7
C21: SCENARIO 5 | D21: 13 | E21: 11 | F21: 5 | G21: 8 | H21: 3
C22: SCENARIO 6 | D22: 10 | E22: 8 | F22: 5 | G22: 3 | H22: 11 | L22: RESULTAT QUINTE+ | N22: =RECAP!D36 -> 0 | O22: =RECAP!E36 -> 0 | P22: =RECAP!F36 -> 0 | Q22: =RECAP!G36 -> 0 | R22: =RECAP!H36 -> 0
C23: SCENARIO 7 | D23: 13 | E23: 8 | F23: 5 | G23: 11 | H23: 14
C24: SCENARIO 8 | D24: 7 | E24: 6 | F24: 3 | G24: 13 | H24: 5
C25: SCENARIO 9 | D25: 12 | E25: 2 | F25: 3 | G25: 7 | H25: 14
C26: SCENARIO 10 | D26: 13 | E26: 9 | F26: 5 | G26: 11 | H26: 3
E28: CHEVAUX | F28: CITATION SCENARIOS
E29: 3 | F29: 7
E30: 11 | F30: 6
E31: 7 | F31: 6
E32: 5 | F32: 6
E33: 13 | F33: 5
E34: 8 | F34: 4
E35: 14 | F35: 3
E36: 12 | F36: 3
E37: 16 | F37: 2
E38: 10 | F38: 2
E39: 9 | F39: 2
E40: 2 | F40: 2
E41: 6 | F41: 1
E42: 4 | F42: 1
E43: 18 | F43: 0
E44: 17 | F44: 0
E45: 15 | F45: 0
E46: 1 | F46: 0

Sheet CUBE 400 Générateurs (6)
AE2: NP | AF2: NP
D3: =RANDBETWEEN(1,18) -> 1 | E3: =RANDBETWEEN(1,18) -> 12 | F3: 5 | G3: 2 | H3: 9 | I3: 7 | J3: 5 | K3: 9 | L3: 8 | M3: 1 | N3: 15 | O3: 16 | P3: 12 | Q3: 10 | R3: 1 | S3: 13 | T3: 3 | U3: 11 | V3: 17 | W3: 13 | AA3: COTES | BE3: =SUM(AA4:AA21) -> 1000 | BI3: =SUM(BI4:BI21) -> 400
D4: =RANDBETWEEN(1,18) -> 11 | E4: 1 | F4: 4 | G4: 13 | H4: 13 | I4: 10 | J4: 9 | K4: 18 | L4: 9 | M4: 6 | N4: 9 | O4: 14 | P4: 7 | Q4: 14 | R4: 1 | S4: 4 | T4: 11 | U4: 2 | V4: 6 | W4: 8 | Z4: 1 | AA4: =IF('PRONO MATRICIEL'!N18="NP",500,'PRONO MATRICIEL'!N18) -> 0 | AB4: /1 | AR4: =VLOOKUP(AU4,$AV$4:$AW$21,2,FALSE) -> 4 | AS4: =VLOOKUP(AU4,$AV$4:$AW$21,1,FALSE) -> 0.215 | AU4: =IF(ISERROR(LARGE($AV$4:$AV$21,AW4)),"",LARGE($AV$4:$AV$21,AW4)) -> 0.215 | AV4: =IF(OR(AW4=$AE$3,AW4=$AF$3),0,BC4) -> 0.2083333333 | AW4: 1 | BC4: =BG4+BJ4 -> 0.2083333333 | BE4: =AA4/$BE$3 -> 0 | BF4: =(1-BE4)/2 -> 0.5 | BG4: =BF4/3 -> 0.1666666667 | BI4: =COUNTIF($D$3:$W$22,Z4) -> 25 | BJ4: =(BI4/$BI$3)*2/3 -> 0.04166666667 | BK4: 0.01
D5: 1 | E5: 3 | F5: 11 | G5: 4 | H5: 12 | I5: 1 | J5: 16 | K5: 11 | L5: 11 | M5: 17 | N5: 17 | O5: 1 | P5: 8 | Q5: 8 | R5: 10 | S5: 11 | T5: 8 | U5: 1 | V5: 5 | W5: 12 | Z5: 2 | AA5: =IF('PRONO MATRICIEL'!O18="NP",500,'PRONO MATRICIEL'!O18) -> 0 | AB5: /1 | AR5: =VLOOKUP(AU5,$AV$4:$AW$21,2,FALSE) -> 9 | AS5: =VLOOKUP(AU5,$AV$4:$AW$21,1,FALSE) -> 0.2116666667 | AU5: 0.2116666667 | AV5: 0.195 | AW5: 2 | BC5: =BG5+BJ5 -> 0.195 | BE5: =AA5/$BE$3 -> 0 | BF5: =(1-BE5)/2 -> 0.5 | BG5: =BF5/3 -> 0.1666666667 | BI5: =COUNTIF($D$3:$W$22,Z5) -> 17 | BJ5: =(BI5/$BI$3)*2/3 -> 0.02833333333 | BK5: 0.02
D6: 14 | E6: 5 | F6: 14 | G6: 17 | H6: 4 | I6: 2 | J6: 14 | K6: 17 | L6: 15 | M6: 10 | N6: 2 | O6: 8 | P6: 7 | Q6: 10 | R6: 8 | S6: 9 | T6: 8 | U6: 9 | V6: 9 | W6: 10 | Z6: 3 | AA6: =IF('PRONO MATRICIEL'!P18="NP",500,'PRONO MATRICIEL'!P18) -> 0 | AB6: /1 | AR6: 10 | AS6: 0.21 | AU6: 0.21 | AV6: 0.1966666667 | AW6: 3 | BC6: 0.1966666667 | BE6: 0 | BF6: 0.5 | BG6: 0.1666666667 | BI6: 18 | BJ6: 0.03 | BK6: 0.03
D7: 17 | E7: 2 | F7: 10 | G7: 3 | H7: 2 | I7: 11 | J7: 3 | K7: 3 | L7: 6 | M7: 7 | N7: 10 | O7: 14 | P7: 14 | Q7: 4 | R7: 2 | S7: 15 | T7: 4 | U7: 3 | V7: 9 | W7: 15 | Z7: 4 | AA7: =IF('PRONO MATRICIEL'!Q18="NP",500,'PRONO MATRICIEL'!Q18) -> 0 | AB7: /1 | AR7: 10 | AS7: 0.21 | AU7: 0.21 | AV7: 0.215 | AW7: 4 | BC7: 0.215 | BE7: 0 | BF7: 0.5 | BG7: 0.1666666667 | BI7: 29 | BJ7: 0.04833333333 | BK7: 0.04
D8: 10 | E8: 3 | F8: 7 | G8: 8 | H8: 13 | I8: 6 | J8: 14 | K8: 14 | L8: 18 | M8: 1 | N8: 7 | O8: 3 | P8: 12 | Q8: 11 | R8: 7 | S8: 13 | T8: 9 | U8: 8 | V8: 11 | W8: 14 | Z8: 5 | AA8: =IF('PRONO MATRICIEL'!R18="NP",500,'PRONO MATRICIEL'!R18) -> 0 | AB8: /1 | AR8: 1 | AS8: 0.2083333333 | AU8: 0.2083333333 | AV8: 0.2033333333 | AW8: 5 | BC8: 0.2033333333 | BE8: 0 | BF8: 0.5 | BG8: 0.1666666667 | BI8: 22 | BJ8: 0.03666666667 | BK8: 0.05
D9: 9 | E9: 17 | F9: 8 | G9: 14 | H9: 10 | I9: 17 | J9: 11 | K9: 2 | L9: 6 | M9: 17 | N9: 14 | O9: 18 | P9: 14 | Q9: 5 | R9: 16 | S9: 16 | T9: 2 | U9: 4 | V9: 9 | W9: 11 | Z9: 6 | AA9: =IF('PRONO MATRICIEL'!S18="NP",500,'PRONO MATRICIEL'!S18) -> 0 | AB9: /1 | AE9: 8 | AF9: 16 | AG9: 11 | AH9: 2 | AI9: 4 | AJ9: 14 | AK9: 13 | AL9: 5 | AR9: 1 | AS9: 0.2083333333 | AU9: 0.2083333333 | AV9: 0.185 | AW9: 6 | BC9: 0.185 | BE9: 0 | BF9: 0.5 | BG9: 0.1666666667 | BI9: 11 | BJ9: 0.01833333333 | BK9: 0.06
D10: 2 | E10: 5 | F10: 5 | G10: 8 | H10: 3 | I10: 7 | J10: 4 | K10: 12 | L10: 13 | M10: 7 | N10: 10 | O10: 15 | P10: 6 | Q10: 3 | R10: 1 | S10: 3 | T10: 16 | U10: 9 | V10: 1 | W10: 11 | Z10: 7 | AA10: =IF('PRONO MATRICIEL'!T18="NP",500,'PRONO MATRICIEL'!T18) -> 0 | AB10: /1 | AE10: 0.2157081237 | AF10: 0.2068955188 | AG10: 0.2057081237 | AH10: 0.2039216391 | AI10: 0.203431584 | AJ10: 0.2018847352 | AK10: 0.2008279415 | AL10: 0.20069734 | AR10: 1 | AS10: 0.2083333333 | AU10: 0.2083333333 | AV10: 0.2083333333 | AW10: 7 | BC10: 0.2083333333 | BE10: 0 | BF10: 0.5 | BG10: 0.1666666667 | BI10: 25 | BJ10: 0.04166666667 | BK10: 0.07
D11: 9 | E11: 15 | F11: 3 | G11: 16 | H11: 1 | I11: 12 | J11: 15 | K11: 12 | L11: 5 | M11: 17 | N11: 18 | O11: 16 | P11: 3 | Q11: 8 | R11: 5 | S11: 18 | T11: 18 | U11: 7 | V11: 15 | W11: 8 | Z11: 8 | AA11: =IF('PRONO MATRICIEL'!U18="NP",500,'PRONO MATRICIEL'!U18) -> 0 | AB11: /1 | AR11: 1 | AS11: 0.2083333333 | AU11: 0.2083333333 | AV11: 0.205 | AW11: 8 | BC11: 0.205 | BE11: 0 | BF11: 0.5 | BG11: 0.1666666667 | BI11: 23 | BJ11: 0.03833333333 | BK11: 0.08
D12: 16 | E12: 4 | F12: 10 | G12: 1 | H12: 7 | I12: 9 | J12: 18 | K12: 5 | L12: 5 | M12: 4 | N12: 16 | O12: 4 | P12: 12 | Q12: 9 | R12: 9 | S12: 8 | T12: 11 | U12: 11 | V12: 7 | W12: 10 | Z12: 9 | AA12: =IF('PRONO MATRICIEL'!V18="NP",500,'PRONO MATRICIEL'!V18) -> 0 | AB12: /1 | AR12: 8 | AS12: 0.205 | AU12: 0.205 | AV12: 0.2116666667 | AW12: 9 | BC12: 0.2116666667 | BE12: 0 | BF12: 0.5 | BG12: 0.1666666667 | BI12: 27 | BJ12: 0.045 | BK12: 0.09
D13: 7 | E13: 7 | F13: 4 | G13: 18 | H13: 1 | I13: 11 | J13: 10 | K13: 18 | L13: 11 | M13: 10 | N13: 5 | O13: 1 | P13: 4 | Q13: 18 | R13: 17 | S13: 7 | T13: 14 | U13: 15 | V13: 7 | W13: 1 | Z13: 10 | AA13: =IF('PRONO MATRICIEL'!W18="NP",500,'PRONO MATRICIEL'!W18) -> 0 | AB13: /1 | AR13: 5 | AS13: 0.2033333333 | AU13: 0.2033333333 | AV13: 0.21 | AW13: 10 | BC13: 0.21 | BE13: 0 | BF13: 0.5 | BG13: 0.1666666667 | BI13: 26 | BJ13: 0.04333333333 | BK13: 0.1
D14: 9 | E14: 15 | F14: 12 | G14: 7 | H14: 8 | I14: 14 | J14: 2 | K14: 2 | L14: 15 | M14: 11 | N14: 17 | O14: 5 | P14: 17 | Q14: 18 | R14: 17 | S14: 9 | T14: 7 | U14: 17 | V14: 5 | W14: 12 | Z14: 11 | AA14: =IF('PRONO MATRICIEL'!X18="NP",500,'PRONO MATRICIEL'!X18) -> 0 | AB14: /1 | AR14: 3 | AS14: 0.1966666667 | AU14: 0.1966666667 | AV14: 0.2083333333 | AW14: 11 | BC14: 0.2083333333 | BE14: 0 | BF14: 0.5 | BG14: 0.1666666667 | BI14: 25 | BJ14: 0.04166666667 | BK14: 0.11
D15: 18 | E15: 18 | F15: 17 | G15: 3 | H15: 14 | I15: 8 | J15: 2 | K15: 16 | L15: 1 | M15: 10 | N15: 5 | O15: 12 | P15: 15 | Q15: 5 | R15: 4 | S15: 17 | T15: 18 | U15: 15 | V15: 10 | W15: 8 | Z15: 12 | AA15: =IF('PRONO MATRICIEL'!Y18="NP",500,'PRONO MATRICIEL'!Y18) -> 0 | AB15: /1 | AR15: 3 | AS15: 0.1966666667 | AU15: 0.1966666667 | AV15: 0.1966666667 | AW15: 12 | BC15: 0.1966666667 | BE15: 0 | BF15: 0.5 | BG15: 0.1666666667 | BI15: 18 | BJ15: 0.03 | BK15: 0.12
D16: 8 | E16: 9 | F16: 9 | G16: 18 | H16: 4 | I16: 2 | J16: 3 | K16: 9 | L16: 9 | M16: 5 | N16: 6 | O16: 12 | P16: 1 | Q16: 4 | R16: 10 | S16: 5 | T16: 18 | U16: 18 | V16: 16 | W16: 10 | Z16: 13 | AA16: =IF('PRONO MATRICIEL'!Z18="NP",500,'PRONO MATRICIEL'!Z18) -> 0 | AB16: /1 | AR16: 3 | AS16: 0.1966666667 | AU16: 0.1966666667 | AV16: 0.1966666667 | AW16: 13 | BC16: 0.1966666667 | BE16: 0 | BF16: 0.5 | BG16: 0.1666666667 | BI16: 18 | BJ16: 0.03 | BK16: 0.13
D17: 18 | E17: 17 | F17: 8 | G17: 4 | H17: 15 | I17: 13 | J17: 16 | K17: 8 | L17: 6 | M17: 17 | N17: 14 | O17: 15 | P17: 7 | Q17: 16 | R17: 10 | S17: 13 | T17: 16 | U17: 11 | V17: 4 | W17: 12 | Z17: 14 | AA17: =IF('PRONO MATRICIEL'!AA18="NP",500,'PRONO MATRICIEL'!AA18) -> 0 | AB17: /1 | AR17: 2 | AS17: 0.195 | AU17: 0.195 | AV17: 0.21 | AW17: 14 | BC17: 0.21 | BE17: 0 | BF17: 0.5 | BG17: 0.1666666667 | BI17: 26 | BJ17: 0.04333333333 | BK17: 0.14
D18: 15 | E18: 4 | F18: 15 | G18: 11 | H18: 2 | I18: 10 | J18: 5 | K18: 15 | L18: 9 | M18: 14 | N18: 4 | O18: 7 | P18: 8 | Q18: 12 | R18: 1 | S18: 4 | T18: 16 | U18: 13 | V18: 4 | W18: 14 | Z18: 15 | AA18: =IF('PRONO MATRICIEL'!AB18="NP",500,'PRONO MATRICIEL'!AB18) -> 0 | AB18: /1 | AR18: 16 | AS18: 0.1933333333 | AU18: 0.1933333333 | AV18: 0.2083333333 | AW18: 15 | BC18: 0.2083333333 | BE18: 0 | BF18: 0.5 | BG18: 0.1666666667 | BI18: 25 | BJ18: 0.04166666667 | BK18: 0.15
D19: 13 | E19: 6 | F19: 13 | G19: 10 | H19: 11 | I19: 10 | J19: 11 | K19: 9 | L19: 1 | M19: 9 | N19: 7 | O19: 7 | P19: 18 | Q19: 4 | R19: 13 | S19: 15 | T19: =RANDBETWEEN(1,18) -> 5 | U19: 17 | V19: 15 | W19: 13 | Z19: 16 | AA19: =IF('PRONO MATRICIEL'!AC18="NP",500,'PRONO MATRICIEL'!AC18) -> 0 | AB19: /1 | AR19: 6 | AS19: 0.185 | AU19: 0.185 | AV19: 0.1933333333 | AW19: 16 | BC19: 0.1933333333 | BE19: 0 | BF19: 0.5 | BG19: 0.1666666667 | BI19: 16 | BJ19: 0.02666666667 | BK19: 0.16
D20: 2 | E20: 14 | F20: 17 | G20: 4 | H20: 15 | I20: 1 | J20: 15 | K20: 16 | L20: 4 | M20: 15 | N20: 14 | O20: 2 | P20: 4 | Q20: 11 | R20: 13 | S20: 3 | T20: 17 | U20: 12 | V20: 10 | W20: 14 | Z20: 17 | AA20: =IF('PRONO MATRICIEL'!AD18="NP",500,'PRONO MATRICIEL'!AD18) -> 500 | AB20: /1 | AR20: 17 | AS20: 0.125 | AU20: 0.125 | AV20: 0.125 | AW20: 17 | BC20: 0.125 | BE20: 0.5 | BF20: 0.25 | BG20: 0.08333333333 | BI20: 25 | BJ20: 0.04166666667 | BK20: 0.17
D21: 10 | E21: 1 | F21: 13 | G21: 11 | H21: 17 | I21: 4 | J21: 6 | K21: 9 | L21: 7 | M21: 4 | N21: 14 | O21: 15 | P21: 12 | Q21: 14 | R21: 18 | S21: 7 | T21: 1 | U21: 3 | V21: 17 | W21: 3 | Z21: 18 | AA21: =IF('PRONO MATRICIEL'!AE18="NP",500,'PRONO MATRICIEL'!AE18) -> 500 | AB21: /1 | AR21: 18 | AS21: 0.1233333333 | AU21: 0.1233333333 | AV21: 0.1233333333 | AW21: 18 | BC21: 0.1233333333 | BE21: 0.5 | BF21: 0.25 | BG21: 0.08333333333 | BI21: 24 | BJ21: 0.04 | BK21: 0.18
D22: 13 | E22: 13 | F22: 11 | G22: 4 | H22: 12 | I22: 6 | J22: 14 | K22: 7 | L22: 15 | M22: 18 | N22: 5 | O22: 17 | P22: 14 | Q22: 1 | R22: 8 | S22: 18 | T22: 18 | U22: 5 | V22: 18 | W22: 10 | AE22: 7 | AF22: 11 | AG22: 3 | AH22: 13 | AI22: 10 | AL22: 1 | AM22: =COUNTIF($AE$22:$AI$31,AL22) -> 0 | AO22: =AK43 -> 3 | AP22: =AJ43 -> 7 | BE22: 0 | BF22: 0.5 | BG22: 0.1666666667
AE23: 3 | AF23: 12 | AG23: 2 | AH23: 4 | AI23: 7 | AL23: 2 | AM23: =COUNTIF($AE$22:$AI$31,AL23) -> 2 | AO23: =AK44 -> 11 | AP23: =AJ44 -> 6 | BE23: 0 | BF23: 0.5 | BG23: 0.1666666667
AE24: 12 | AF24: 8 | AG24: 16 | AH24: 7 | AI24: 9 | AL24: 3 | AM24: 7 | AO24: 7 | AP24: 6
AE25: 5 | AF25: 14 | AG25: 16 | AH25: 11 | AI25: 7 | AL25: 4 | AM25: 1 | AO25: 5 | AP25: 6 | AR25: =AR4 -> 4 | AS25: =AR5 -> 9 | AT25: =AR6 -> 10 | AU25: =AR7 -> 10 | AV25: =AR8 -> 1 | AW25: =AR9 -> 1 | AX25: =AR10 -> 1 | AY25: =AR11 -> 1
AE26: 13 | AF26: 11 | AG26: 5 | AH26: 8 | AI26: 3 | AL26: 5 | AM26: 6 | AO26: 13 | AP26: 5 | AR26: =AS4 -> 0.215 | AS26: =AS5 -> 0.2116666667 | AT26: =AS6 -> 0.21 | AU26: =AS7 -> 0.21 | AV26: =AS8 -> 0.2083333333 | AW26: =AS9 -> 0.2083333333 | AX26: =AS10 -> 0.2083333333 | AY26: =AS11 -> 0.2083333333
AE27: 10 | AF27: 8 | AG27: 5 | AH27: 3 | AI27: 11 | AL27: 6 | AM27: 1 | AO27: 8 | AP27: 4
AE28: 13 | AF28: 8 | AG28: 5 | AH28: 11 | AI28: 14 | AL28: 7 | AM28: 6 | AO28: 14 | AP28: 3
AE29: 7 | AF29: 6 | AG29: 3 | AH29: 13 | AI29: 5 | AL29: 8 | AM29: 4 | AO29: 12 | AP29: 3
AE30: 12 | AF30: 2 | AG30: 3 | AH30: 7 | AI30: 14 | AL30: 9 | AM30: 2 | AO30: 16 | AP30: 2
AE31: 13 | AF31: 9 | AG31: 5 | AH31: 11 | AI31: 3 | AL31: 10 | AM31: 2 | AO31: 10 | AP31: 2
AL32: 11 | AM32: 6 | AO32: 9 | AP32: 2
AL33: 12 | AM33: 3 | AO33: 2 | AP33: 2
AL34: 13 | AM34: 5 | AO34: 6 | AP34: 1
AL35: 14 | AM35: 3 | AO35: 4 | AP35: 1
AL36: 15 | AM36: 0 | AO36: 18 | AP36: 0
AL37: 16 | AM37: 2 | AO37: 17 | AP37: 0
AL38: 17 | AM38: 0 | AO38: 15 | AP38: 0
AL39: 18 | AM39: 0 | AO39: 1 | AP39: 0
AJ43: =VLOOKUP(AL43,$AM$43:$AO$60,3,FALSE) -> 7 | AK43: =VLOOKUP(AL43,$AM$43:$AN$60,2,FALSE) -> 3 | AL43: =LARGE($AM$43:$AM$60,AN43) -> 703 | AM43: =AM22*100+AN43 -> 1 | AN43: 1 | AO43: =AM22 -> 0
AJ44: =VLOOKUP(AL44,$AM$43:$AO$60,3,FALSE) -> 6 | AK44: =VLOOKUP(AL44,$AM$43:$AN$60,2,FALSE) -> 11 | AL44: =LARGE($AM$43:$AM$60,AN44) -> 611 | AM44: =AM23*100+AN44 -> 202 | AN44: 2 | AO44: =AM23 -> 2
AJ45: 6 | AK45: 7 | AL45: 607 | AM45: 703 | AN45: 3 | AO45: 7
AJ46: 6 | AK46: 5 | AL46: 605 | AM46: 104 | AN46: 4 | AO46: 1
AJ47: 5 | AK47: 13 | AL47: 513 | AM47: 605 | AN47: 5 | AO47: 6
AJ48: 4 | AK48: 8 | AL48: 408 | AM48: 106 | AN48: 6 | AO48: 1
AJ49: 3 | AK49: 14 | AL49: 314 | AM49: 607 | AN49: 7 | AO49: 6
AJ50: 3 | AK50: 12 | AL50: 312 | AM50: 408 | AN50: 8 | AO50: 4
AJ51: 2 | AK51: 16 | AL51: 216 | AM51: 209 | AN51: 9 | AO51: 2
AJ52: 2 | AK52: 10 | AL52: 210 | AM52: 210 | AN52: 10 | AO52: 2
AJ53: 2 | AK53: 9 | AL53: 209 | AM53: 611 | AN53: 11 | AO53: 6
AJ54: 2 | AK54: 2 | AL54: 202 | AM54: 312 | AN54: 12 | AO54: 3
AJ55: 1 | AK55: 6 | AL55: 106 | AM55: 513 | AN55: 13 | AO55: 5
AJ56: 1 | AK56: 4 | AL56: 104 | AM56: 314 | AN56: 14 | AO56: 3
AJ57: 0 | AK57: 18 | AL57: 18 | AM57: 15 | AN57: 15 | AO57: 0
AJ58: 0 | AK58: 17 | AL58: 17 | AM58: 216 | AN58: 16 | AO58: 2
AJ59: 0 | AK59: 15 | AL59: 15 | AM59: 17 | AN59: 17 | AO59: 0
AJ60: 0 | AK60: 1 | AL60: 1 | AM60: 18 | AN60: 18 | AO60: 0

Sheet Feuil1
B1: ='PRONO MATRICIEL'!N22 -> 0 | C1: ='PRONO MATRICIEL'!O22 -> 0 | D1: ='PRONO MATRICIEL'!P22 -> 0 | E1: ='PRONO MATRICIEL'!Q22 -> 0 | F1: ='PRONO MATRICIEL'!R22 -> 0
B4: 16 | C4: 11 | D4: 9 | E4: 4 | F4: 8 | H4: 14 | I4: 11 | J4: 3 | K4: 6 | L4: 7 | N4: 2 | O4: 1 | P4: 6 | Q4: 14 | R4: 7 | T4: 7 | U4: 12 | V4: 14 | W4: 8 | X4: 6 | Z4: 7 | AA4: 1 | AB4: 13 | AC4: 2 | AD4: 3 | AF4: 5 | AG4: 9 | AH4: 15 | AI4: 1 | AJ4: 16 | AL4: 3 | AM4: 1 | AN4: 7 | AO4: 14 | AP4: 16 | AR4: 16 | AS4: 11 | AT4: 10 | AU4: 12 | AV4: 8 | AX4: 5 | AY4: 16 | AZ4: 8 | BA4: 8 | BB4: 2 | BD4: 1 | BE4: 2 | BF4: 11 | BG4: 8 | BH4: 3
B5: 16 | C5: 3 | D5: 7 | E5: 8 | F5: 9 | H5: 10 | I5: 12 | J5: 4 | K5: 13 | L5: 2 | N5: 10 | O5: 16 | P5: 13 | Q5: 2 | R5: 15 | T5: 9 | U5: 11 | V5: 5 | W5: 16 | X5: 6 | Z5: 11 | AA5: 16 | AB5: 2 | AC5: 4 | AD5: 13 | AF5: 2 | AG5: 11 | AH5: 1 | AI5: 5 | AJ5: 3 | AL5: 13 | AM5: 16 | AN5: 5 | AO5: 9 | AP5: 7 | AR5: 3 | AS5: 7 | AT5: 9 | AU5: 11 | AV5: 8 | AX5: 8 | AY5: 11 | AZ5: 4 | BA5: 1 | BB5: 13 | BD5: 8 | BE5: 13 | BF5: 2 | BG5: 16 | BH5: 14
B6: 12 | C6: 3 | D6: 14 | E6: 7 | F6: 8 | H6: 12 | I6: 5 | J6: 4 | K6: 6 | L6: 9 | N6: 6 | O6: 15 | P6: 8 | Q6: 16 | R6: 4 | T6: 12 | U6: 11 | V6: 2 | W6: 16 | X6: 7 | Z6: 7 | AA6: 5 | AB6: 16 | AC6: 4 | AD6: 3 | AF6: 3 | AG6: 7 | AH6: 11 | AI6: 1 | AJ6: 2 | AL6: 4 | AM6: 2 | AN6: 9 | AO6: 13 | AP6: 14 | AR6: 10 | AS6: 5 | AT6: 3 | AU6: 8 | AV6: 8 | AX6: 8 | AY6: 2 | AZ6: 16 | BA6: 11 | BB6: 3 | BD6: 6 | BE6: 16 | BF6: 9 | BG6: 3 | BH6: 7
B7: 4 | C7: 6 | D7: 12 | E7: 7 | F7: 3 | H7: 1 | I7: 2 | J7: 7 | K7: 12 | L7: 13 | N7: 6 | O7: 4 | P7: 2 | Q7: 11 | R7: 10 | T7: 8 | U7: 16 | V7: 14 | W7: 1 | X7: 4 | Z7: 12 | AA7: 9 | AB7: 7 | AC7: 3 | AD7: 1 | AF7: 8 | AG7: 16 | AH7: 9 | AI7: 1 | AJ7: 10 | AL7: 4 | AM7: 7 | AN7: 9 | AO7: 11 | AP7: 3 | AR7: 11 | AS7: 5 | AT7: 14 | AU7: 13 | AV7: 2 | AX7: 13 | AY7: 5 | AZ7: 3 | BA7: 12 | BB7: 4 | BD7: 7 | BE7: 5 | BF7: 12 | BG7: 3 | BH7: 8
B8: 6 | C8: 9 | D8: 8 | E8: 8 | F8: 15 | H8: 13 | I8: 8 | J8: 4 | K8: 9 | L8: 10 | N8: 2 | O8: 13 | P8: 5 | Q8: 6 | R8: 14 | T8: 3 | U8: 7 | V8: 5 | W8: 9 | X8: 13 | Z8: 1 | AA8: 7 | AB8: 2 | AC8: 10 | AD8: 12 | AF8: 16 | AG8: 2 | AH8: 14 | AI8: 3 | AJ8: 1 | AL8: 14 | AM8: 2 | AN8: 11 | AO8: 12 | AP8: 7 | AR8: 8 | AS8: 16 | AT8: 2 | AU8: 14 | AV8: 13 | AX8: 3 | AY8: 1 | AZ8: 6 | BA8: 14 | BB8: 10 | BD8: 7 | BE8: 13 | BF8: 2 | BG8: 11 | BH8: 16
B9: 5 | C9: 3 | D9: 7 | E9: 8 | F9: 2 | H9: 2 | I9: 5 | J9: 9 | K9: 12 | L9: 11 | N9: 1 | O9: 9 | P9: 5 | Q9: 13 | R9: 3 | T9: 8 | U9: 2 | V9: 16 | W9: 6 | X9: 3 | Z9: 1 | AA9: 9 | AB9: 16 | AC9: 11 | AD9: 13 | AF9: 4 | AG9: 9 | AH9: 12 | AI9: 14 | AJ9: 15 | AL9: 7 | AM9: 8 | AN9: 1 | AO9: 2 | AP9: 11 | AR9: 1 | AS9: 16 | AT9: 15 | AU9: 12 | AV9: 5 | AX9: 10 | AY9: 1 | AZ9: 2 | BA9: 6 | BB9: 15 | BD9: 7 | BE9: 4 | BF9: 8 | BG9: 12 | BH9: 11
B10: 3 | C10: 1 | D10: 2 | E10: 4 | F10: 11 | H10: 13 | I10: 16 | J10: 4 | K10: 12 | L10: 7 | N10: 3 | O10: 7 | P10: 9 | Q10: 1 | R10: 8 | T10: 2 | U10: 8 | V10: 6 | W10: 16 | X10: 4 | Z10: 10 | AA10: 9 | AB10: 11 | AC10: 5 | AD10: 7 | AF10: 16 | AG10: 12 | AH10: 3 | AI10: 8 | AJ10: 5 | AL10: 8 | AM10: 4 | AN10: 1 | AO10: 2 | AP10: 9 | AR10: 8 | AS10: 11 | AT10: 15 | AU10: 5 | AV10: 7 | AX10: 14 | AY10: 10 | AZ10: 8 | BA10: 7 | BB10: 2 | BD10: 11 | BE10: 2 | BF10: 5 | BG10: 8 | BH10: 16
B11: 5 | C11: 13 | D11: 6 | E11: 16 | F11: 3 | H11: 13 | I11: 7 | J11: 8 | K11: 2 | L11: 1 | N11: 5 | O11: 12 | P11: 2 | Q11: 16 | R11: 7 | T11: 11 | U11: 6 | V11: 10 | W11: 13 | X11: 1 | Z11: 16 | AA11: 3 | AB11: 14 | AC11: 7 | AD11: 13 | AF11: 11 | AG11: 14 | AH11: 13 | AI11: 7 | AJ11: 4 | AL11: 7 | AM11: 3 | AN11: 12 | AO11: 2 | AP11: 6 | AR11: 16 | AS11: 1 | AT11: 13 | AU11: 7 | AV11: 2 | AX11: 11 | AY11: 16 | AZ11: 7 | BA11: 4 | BB11: 12 | BD11: 7 | BE11: 14 | BF11: 1 | BG11: 13 | BH11: 10
B12: 8 | C12: 9 | D12: 2 | E12: 10 | F12: 6 | H12: 13 | I12: 14 | J12: 5 | K12: 9 | L12: 2 | N12: 3 | O12: 4 | P12: 13 | Q12: 16 | R12: 14 | T12: 11 | U12: 3 | V12: 2 | W12: 6 | X12: 4 | Z12: 5 | AA12: 4 | AB12: 3 | AC12: 1 | AD12: 6 | AF12: 8 | AG12: 10 | AH12: 11 | AI12: 4 | AJ12: 15 | AL12: 5 | AM12: 7 | AN12: 4 | AO12: 11 | AP12: 13 | AR12: 13 | AS12: 5 | AT12: 8 | AU12: 10 | AV12: 4 | AX12: 16 | AY12: 4 | AZ12: 7 | BA12: 1 | BB12: 3 | BD12: 16 | BE12: 9 | BF12: 2 | BG12: 14 | BH12: 4
B13: 1 | C13: 10 | D13: 11 | E13: 6 | F13: 4 | H13: 12 | I13: 2 | J13: 7 | K13: 14 | L13: 9 | N13: 6 | O13: 12 | P13: 13 | Q13: 2 | R13: 7 | T13: 11 | U13: 13 | V13: 1 | W13: 9 | X13: 16 | Z13: 5 | AA13: 1 | AB13: 8 | AC13: 3 | AD13: 6 | AF13: 11 | AG13: 3 | AH13: 16 | AI13: 14 | AJ13: 7 | AL13: 2 | AM13: 16 | AN13: 5 | AO13: 10 | AP13: 12 | AR13: 8 | AS13: 11 | AT13: 14 | AU13: 7 | AV13: 4 | AX13: 7 | AY13: 16 | AZ13: 1 | BA13: 8 | BB13: 4 | BD13: 1 | BE13: 13 | BF13: 11 | BG13: 4 | BH13: 8
B14: 14 | C14: 10 | D14: 8 | E14: 5 | F14: 16 | H14: 3 | I14: 1 | J14: 5 | K14: 14 | L14: 16 | N14: 11 | O14: 10 | P14: 7 | Q14: 1 | R14: 8 | T14: 14 | U14: 13 | V14: 16 | W14: 10 | X14: 15 | Z14: 3 | AA14: 11 | AB14: 5 | AC14: 4 | AD14: 15 | AF14: 13 | AG14: 9 | AH14: 14 | AI14: 6 | AJ14: 4 | AL14: 8 | AM14: 3 | AN14: 4 | AO14: 13 | AP14: 16 | AR14: 11 | AS14: 13 | AT14: 7 | AU14: 8 | AV14: 14 | AX14: 9 | AY14: 7 | AZ14: 16 | BA14: 12 | BB14: 1 | BD14: 16 | BE14: 11 | BF14: 7 | BG14: 10 | BH14: 15
B15: 11 | C15: 5 | D15: 1 | E15: 6 | F15: 8 | H15: 6 | I15: 3 | J15: 16 | K15: 4 | L15: 7 | N15: 6 | O15: 8 | P15: 5 | Q15: 2 | R15: 9 | T15: 16 | U15: 12 | V15: 13 | W15: 9 | X15: 7 | Z15: 1 | AA15: 4 | AB15: 8 | AC15: 5 | AD15: 6 | AF15: 16 | AG15: 2 | AH15: 10 | AI15: 12 | AJ15: 8 | AL15: 16 | AM15: 5 | AN15: 12 | AO15: 9 | AP15: 13 | AR15: 11 | AS15: 2 | AT15: 1 | AU15: 16 | AV15: 12 | AX15: 2 | AY15: 14 | AZ15: 16 | BA15: 3 | BB15: 13 | BD15: 3 | BE15: 1 | BF15: 13 | BG15: 12 | BH15: 14
B16: 5 | C16: 3 | D16: 2 | E16: 7 | F16: 4 | H16: 10 | I16: 5 | J16: 6 | K16: 7 | L16: 8 | N16: 10 | O16: 2 | P16: 14 | Q16: 3 | R16: 1 | T16: 3 | U16: 8 | V16: 16 | W16: 2 | X16: 12 | Z16: 8 | AA16: 15 | AB16: 14 | AC16: 6 | AD16: 3 | AF16: 5 | AG16: 8 | AH16: 7 | AI16: 10 | AJ16: 2 | AL16: 2 | AM16: 6 | AN16: 9 | AO16: 12 | AP16: 7 | AR16: 8 | AS16: 1 | AT16: 12 | AU16: 16 | AV16: 4 | AX16: 2 | AY16: 4 | AZ16: 13 | BA16: 3 | BB16: 15 | BD16: 13 | BE16: 11 | BF16: 4 | BG16: 1 | BH16: 7
B17: 8 | C17: 9 | D17: 1 | E17: 12 | F17: 3 | H17: 14 | I17: 11 | J17: 4 | K17: 9 | L17: 12 | N17: 5 | O17: 12 | P17: 6 | Q17: 4 | R17: 8 | T17: 2 | U17: 9 | V17: 5 | W17: 7 | X17: 1 | Z17: 2 | AA17: 10 | AB17: 9 | AC17: 1 | AD17: 13 | AF17: 1 | AG17: 7 | AH17: 12 | AI17: 11 | AJ17: 3 | AL17: 6 | AM17: 3 | AN17: 16 | AO17: 4 | AP17: 14 | AR17: 14 | AS17: 11 | AT17: 7 | AU17: 1 | AV17: 3 | AX17: 7 | AY17: 8 | AZ17: 1 | BA17: 3 | BB17: 13 | BD17: 15 | BE17: 13 | BF17: 16 | BG17: 7 | BH17: 6
B18: 3 | C18: 11 | D18: 4 | E18: 6 | F18: 7 | H18: 16 | I18: 8 | J18: 4 | K18: 13 | L18: 11 | N18: 16 | O18: 1 | P18: 8 | Q18: 9 | R18: 7 | T18: 16 | U18: 13 | V18: 2 | W18: 10 | X18: 6 | Z18: 11 | AA18: 6 | AB18: 8 | AC18: 10 | AD18: 7 | AF18: 3 | AG18: 9 | AH18: 1 | AI18: 6 | AJ18: 11 | AL18: 5 | AM18: 3 | AN18: 1 | AO18: 16 | AP18: 12 | AR18: 7 | AS18: 16 | AT18: 13 | AU18: 5 | AV18: 12 | AX18: 3 | AY18: 16 | AZ18: 2 | BA18: 11 | BB18: 5 | BD18: 16 | BE18: 9 | BF18: 8 | BG18: 8 | BH18: 6
B19: 16 | C19: 12 | D19: 13 | E19: 5 | F19: 15 | H19: 13 | I19: 2 | J19: 11 | K19: 3 | L19: 15 | N19: 4 | O19: 13 | P19: 8 | Q19: 3 | R19: 14 | T19: 2 | U19: 1 | V19: 3 | W19: 14 | X19: 11 | Z19: 16 | AA19: 8 | AB19: 11 | AC19: 10 | AD19: 1 | AF19: 11 | AG19: 10 | AH19: 1 | AI19: 5 | AJ19: 12 | AL19: 11 | AM19: 1 | AN19: 4 | AO19: 7 | AP19: 8 | AR19: 1 | AS19: 6 | AT19: 9 | AU19: 7 | AV19: 12 | AX19: 12 | AY19: 6 | AZ19: 13 | BA19: 1 | BB19: 4 | BD19: 5 | BE19: 13 | BF19: 2 | BG19: 9 | BH19: 3
B20: 6 | C20: 12 | D20: 16 | E20: 7 | F20: 2 | H20: 2 | I20: 13 | J20: 11 | K20: 7 | L20: 8 | N20: 1 | O20: 8 | P20: 5 | Q20: 3 | R20: 6 | T20: 11 | U20: 15 | V20: 5 | W20: 16 | X20: 4 | Z20: 7 | AA20: 2 | AB20: 14 | AC20: 4 | AD20: 13 | AF20: 9 | AG20: 7 | AH20: 2 | AI20: 6 | AJ20: 15 | AL20: 3 | AM20: 13 | AN20: 10 | AO20: 7 | AP20: 1 | AR20: 11 | AS20: 3 | AT20: 9 | AU20: 13 | AV20: 10 | AX20: 13 | AY20: 2 | AZ20: 12 | BA20: 16 | BB20: 7 | BD20: 3 | BE20: 12 | BF20: 11 | BG20: 5 | BH20: 7
B21: 13 | C21: 16 | D21: 7 | E21: 3 | F21: 2 | H21: 9 | I21: 11 | J21: 13 | K21: 3 | L21: 15 | N21: 8 | O21: 2 | P21: 10 | Q21: 11 | R21: 1 | T21: 12 | U21: 4 | V21: 13 | W21: 14 | X21: 11 | Z21: 13 | AA21: 11 | AB21: 16 | AC21: 4 | AD21: 2 | AF21: 2 | AG21: 13 | AH21: 5 | AI21: 11 | AJ21: 1 | AL21: 8 | AM21: 2 | AN21: 1 | AO21: 13 | AP21: 16 | AR21: 16 | AS21: 8 | AT21: 11 | AU21: 10 | AV21: 5 | AX21: 11 | AY21: 9 | AZ21: 5 | BA21: 16 | BB21: 4 | BD21: 3 | BE21: 4 | BF21: 11 | BG21: 13 | BH21: 9
B22: 6 | C22: 9 | D22: 14 | E22: 3 | F22: 4 | H22: 4 | I22: 16 | J22: 2 | K22: 14 | L22: 15 | N22: 5 | O22: 14 | P22: 11 | Q22: 9 | R22: 10 | T22: 13 | U22: 12 | V22: 5 | W22: 2 | X22: 9 | Z22: 2 | AA22: 16 | AB22: 13 | AC22: 12 | AD22: 6 | AF22: 8 | AG22: 5 | AH22: 11 | AI22: 2 | AJ22: 4 | AL22: 11 | AM22: 16 | AN22: 9 | AO22: 8 | AP22: 2 | AR22: 11 | AS22: 16 | AT22: 1 | AU22: 9 | AV22: 3 | AX22: 10 | AY22: 16 | AZ22: 6 | BA22: 1 | BB22: 8 | BD22: 1 | BE22: 12 | BF22: 5 | BG22: 13 | BH22: 6
B23: 8 | C23: 13 | D23: 7 | E23: 11 | F23: 14 | H23: 16 | I23: 7 | J23: 5 | K23: 1 | L23: 11 | N23: 8 | O23: 3 | P23: 14 | Q23: 11 | R23: 15 | T23: 10 | U23: 16 | V23: 5 | W23: 3 | X23: 1 | Z23: 14 | AA23: 8 | AB23: 2 | AC23: 4 | AD23: 1 | AF23: 11 | AG23: 7 | AH23: 16 | AI23: 14 | AJ23: 10 | AL23: 4 | AM23: 7 | AN23: 16 | AO23: 1 | AP23: 3 | AR23: 11 | AS23: 13 | AT23: 16 | AU23: 8 | AV23: 10 | AX23: 7 | AY23: 14 | AZ23: 5 | BA23: 11 | BB23: 3 | BD23: 7 | BE23: 3 | BF23: 8 | BG23: 10 | BH23: 2
A27: MAX | B27: =MAX(B32:B49) -> 3 | C27: =MAX(C32:C49) -> 4 | D27: =MAX(D32:D49) -> 4 | E27: =MAX(E32:E49) -> 4 | F27: =MAX(F32:F49) -> 3 | H27: =MAX(H32:H49) -> 5 | I27: =MAX(I32:I49) -> 3 | J27: =MAX(J32:J49) -> 6 | K27: =MAX(K32:K49) -> 3 | L27: =MAX(L32:L49) -> 3 | N27: =MAX(N32:N49) -> 4 | O27: =MAX(O32:O49) -> 3 | P27: =MAX(P32:P49) -> 4 | Q27: =MAX(Q32:Q49) -> 3 | R27: =MAX(R32:R49) -> 4 | T27: =MAX(T32:T49) -> 4 | U27: =MAX(U32:U49) -> 3 | V27: =MAX(V32:V49) -> 6 | W27: =MAX(W32:W49) -> 4 | X27: =MAX(X32:X49) -> 4 | Z27: =MAX(Z32:Z49) -> 3 | AA27: =MAX(AA32:AA49) -> 3 | AB27: =MAX(AB32:AB49) -> 3 | AC27: =MAX(AC32:AC49) -> 6 | AD27: =MAX(AD32:AD49) -> 5 | AF27: =MAX(AF32:AF49) -> 4 | AG27: =MAX(AG32:AG49) -> 4 | AH27: =MAX(AH32:AH49) -> 3 | AI27: =MAX(AI32:AI49) -> 3 | AJ27: =MAX(AJ32:AJ49) -> 3 | AL27: =MAX(AL32:AL49) -> 3 | AM27: =MAX(AM32:AM49) -> 4 | AN27: =MAX(AN32:AN49) -> 4 | AO27: =MAX(AO32:AO49) -> 3 | AP27: =MAX(AP32:AP49) -> 3 | AR27: =MAX(AR32:AR49) -> 6 | AS27: =MAX(AS32:AS49) -> 4 | AT27: =MAX(AT32:AT49) -> 3 | AU27: =MAX(AU32:AU49) -> 3 | AV27: =MAX(AV32:AV49) -> 3 | AX27: =MAX(AX32:AX49) -> 3 | AY27: =MAX(AY32:AY49) -> 5 | AZ27: =MAX(AZ32:AZ49) -> 3 | BA27: =MAX(BA32:BA49) -> 4 | BB27: =MAX(BB32:BB49) -> 4 | BD27: =MAX(BD32:BD49) -> 5 | BE27: =MAX(BE32:BE49) -> 5 | BF27: =MAX(BF32:BF49) -> 4 | BG27: =MAX(BG32:BG49) -> 3 | BH27: =MAX(BH32:BH49) -> 3
A28: NBRE MAX | B28: =COUNTIF(B32:B49,B27) -> 4 | C28: =COUNTIF(C32:C49,C27) -> 2 | D28: 1 | E28: 1 | F28: 4 | H28: =COUNTIF(H32:H49,H27) -> 1 | I28: =COUNTIF(I32:I49,I27) -> 3 | J28: 1 | K28: 3 | L28: 3 | N28: =COUNTIF(N32:N49,N27) -> 1 | O28: =COUNTIF(O32:O49,O27) -> 1 | P28: 1 | Q28: 4 | R28: 1 | T28: =COUNTIF(T32:T49,T27) -> 1 | U28: =COUNTIF(U32:U49,U27) -> 2 | V28: 1 | W28: 1 | X28: 1 | Z28: =COUNTIF(Z32:Z49,Z27) -> 2 | AA28: =COUNTIF(AA32:AA49,AA27) -> 1 | AB28: 4 | AC28: 1 | AD28: 1 | AF28: =COUNTIF(AF32:AF49,AF27) -> 1 | AG28: =COUNTIF(AG32:AG49,AG27) -> 2 | AH28: 2 | AI28: 3 | AJ28: 2 | AL28: =COUNTIF(AL32:AL49,AL27) -> 2 | AM28: =COUNTIF(AM32:AM49,AM27) -> 1 | AN28: 2 | AO28: 2 | AP28: 2 | AR28: =COUNTIF(AR32:AR49,AR27) -> 1 | AS28: =COUNTIF(AS32:AS49,AS27) -> 2 | AT28: 1 | AU28: 2 | AV28: 3 | AX28: =COUNTIF(AX32:AX49,AX27) -> 1 | AY28: =COUNTIF(AY32:AY49,AY27) -> 1 | AZ28: 1 | BA28: 1 | BB28: 1 | BD28: =COUNTIF(BD32:BD49,BD27) -> 1 | BE28: =COUNTIF(BE32:BE49,BE27) -> 1 | BF28: 2 | BG28: 2 | BH28: 2
A29: CHEVAL MAX | B29: =IF(B28=1,VLOOKUP(B27,B32:$G$49,6,FALSE),0) -> 0 | C29: =IF(C28=1,VLOOKUP(C27,C32:$G$49,5,FALSE),0) -> 0 | D29: =IF(D28=1,VLOOKUP(D27,D32:$G$49,4,FALSE),0) -> 7 | E29: =IF(E28=1,VLOOKUP(E27,E32:$G$49,3,FALSE),0) -> 7 | F29: =IF(F28=1,VLOOKUP(F27,F32:$G$49,2,FALSE),0) -> 0 | H29: =IF(H28=1,VLOOKUP(H27,H32:$M$49,6,FALSE),0) -> 13 | I29: =IF(I28=1,VLOOKUP(I27,I32:$M$49,5,FALSE),0) -> 0 | J29: =IF(J28=1,VLOOKUP(J27,J32:$M$49,4,FALSE),0) -> 4 | K29: =IF(K28=1,VLOOKUP(K27,K32:$M$49,3,FALSE),0) -> 0 | L29: =IF(L28=1,VLOOKUP(L27,L32:$M$49,2,FALSE),0) -> 0 | N29: =IF(N28=1,VLOOKUP(N27,N32:$S$49,6,FALSE),0) -> 6 | O29: =IF(O28=1,VLOOKUP(O27,O32:$S$49,5,FALSE),0) -> 12 | P29: =IF(P28=1,VLOOKUP(P27,P32:$S$49,4,FALSE),0) -> 5 | Q29: =IF(Q28=1,VLOOKUP(Q27,Q32:$S$49,3,FALSE),0) -> 0 | R29: =IF(R28=1,VLOOKUP(R27,R32:$S$49,2,FALSE),0) -> 7 | T29: =IF(T28=1,VLOOKUP(T27,T32:$Y$49,6,FALSE),0) -> 11 | U29: =IF(U28=1,VLOOKUP(U27,U32:$Y$49,5,FALSE),0) -> 0 | V29: =IF(V28=1,VLOOKUP(V27,V32:$Y$49,4,FALSE),0) -> 5 | W29: =IF(W28=1,VLOOKUP(W27,W32:$Y$49,3,FALSE),0) -> 16 | X29: =IF(X28=1,VLOOKUP(X27,X32:$Y$49,2,FALSE),0) -> 4 | Z29: =IF(Z28=1,VLOOKUP(Z27,Z32:$AE$49,6,FALSE),0) -> 0 | AA29: =IF(AA28=1,VLOOKUP(AA27,AA32:$AE$49,5,FALSE),0) -> 9 | AB29: =IF(AB28=1,VLOOKUP(AB27,AB32:$AE$49,4,FALSE),0) -> 0 | AC29: =IF(AC28=1,VLOOKUP(AC27,AC32:$AE$49,3,FALSE),0) -> 4 | AD29: =IF(AD28=1,VLOOKUP(AD27,AD32:$AE$49,2,FALSE),0) -> 13 | AF29: =IF(AF28=1,VLOOKUP(AF27,AF32:$AK$49,6,FALSE),0) -> 11 | AG29: =IF(AG28=1,VLOOKUP(AG27,AG32:$AK$49,5,FALSE),0) -> 0 | AH29: =IF(AH28=1,VLOOKUP(AH27,AH32:$AK$49,4,FALSE),0) -> 0 | AI29: =IF(AI28=1,VLOOKUP(AI27,AI32:$AK$49,3,FALSE),0) -> 0 | AJ29: =IF(AJ28=1,VLOOKUP(AJ27,AJ32:$AK$49,2,FALSE),0) -> 0 | AL29: =IF(AL28=1,VLOOKUP(AL27,AL32:$AQ$49,6,FALSE),0) -> 0 | AM29: =IF(AM28=1,VLOOKUP(AM27,AM32:$AQ$49,5,FALSE),0) -> 3 | AN29: =IF(AN28=1,VLOOKUP(AN27,AN32:$AQ$49,4,FALSE),0) -> 0 | AO29: =IF(AO28=1,VLOOKUP(AO27,AO32:$AQ$49,3,FALSE),0) -> 0 | AP29: =IF(AP28=1,VLOOKUP(AP27,AP32:$AQ$49,2,FALSE),0) -> 0 | AR29: =IF(AR28=1,VLOOKUP(AR27,AR32:$AW$49,6,FALSE),0) -> 11 | AS29: =IF(AS28=1,VLOOKUP(AS27,AS32:$AW$49,5,FALSE),0) -> 0 | AT29: =IF(AT28=1,VLOOKUP(AT27,AT32:$AW$49,4,FALSE),0) -> 9 | AU29: =IF(AU28=1,VLOOKUP(AU27,AU32:$AW$49,3,FALSE),0) -> 0 | AV29: =IF(AV28=1,VLOOKUP(AV27,AV32:$AW$49,2,FALSE),0) -> 0 | AX29: =IF(AX28=1,VLOOKUP(AX27,AX32:$BC$49,6,FALSE),0) -> 7 | AY29: =IF(AY28=1,VLOOKUP(AY27,AY32:$BC$49,5,FALSE),0) -> 16 | AZ29: =IF(AZ28=1,VLOOKUP(AZ27,AZ32:$BC$49,4,FALSE),0) -> 16 | BA29: =IF(BA28=1,VLOOKUP(BA27,BA32:$BC$49,3,FALSE),0) -> 1 | BB29: =IF(BB28=1,VLOOKUP(BB27,BB32:$BC$49,2,FALSE),0) -> 4 | BD29: =IF(BD28=1,VLOOKUP(BD27,BD32:$BI$49,6,FALSE),0) -> 7 | BE29: =IF(BE28=1,VLOOKUP(BE27,BE32:$BI$49,5,FALSE),0) -> 13 | BF29: =IF(BF28=1,VLOOKUP(BF27,BF32:$BI$49,4,FALSE),0) -> 0 | BG29: =IF(BG28=1,VLOOKUP(BG27,BG32:$BI$49,3,FALSE),0) -> 0 | BH29: =IF(BH28=1,VLOOKUP(BH27,BH32:$BI$49,2,FALSE),0) -> 0
A32: 1 | B32: =COUNTIF(B$4:B$23,1) -> 1 | C32: =COUNTIF(C$4:C$23,1) -> 1 | D32: 2 | E32: 0 | F32: 0 | G32: 1 | H32: =COUNTIF(H$4:H$23,1) -> 1 | I32: =COUNTIF(I$4:I$23,1) -> 1 | J32: 0 | K32: 1 | L32: 1 | M32: 1 | N32: =COUNTIF(N$4:N$23,1) -> 2 | O32: =COUNTIF(O$4:O$23,1) -> 2 | P32: 0 | Q32: 2 | R32: 2 | S32: 1 | T32: =COUNTIF(T$4:T$23,1) -> 0 | U32: =COUNTIF(U$4:U$23,1) -> 1 | V32: 1 | W32: 1 | X32: 3 | Y32: 1 | Z32: =COUNTIF(Z$4:Z$23,1) -> 3 | AA32: =COUNTIF(AA$4:AA$23,1) -> 2 | AB32: 0 | AC32: 2 | AD32: 3 | AE32: 1 | AF32: =COUNTIF(AF$4:AF$23,1) -> 1 | AG32: =COUNTIF(AG$4:AG$23,1) -> 0 | AH32: 3 | AI32: 3 | AJ32: 2 | AK32: 1 | AL32: =COUNTIF(AL$4:AL$23,1) -> 0 | AM32: =COUNTIF(AM$4:AM$23,1) -> 2 | AN32: 4 | AO32: 1 | AP32: 1 | AQ32: 1 | AR32: =COUNTIF(AR$4:AR$23,1) -> 2 | AS32: =COUNTIF(AS$4:AS$23,1) -> 2 | AT32: 2 | AU32: 1 | AV32: 0 | AW32: 1 | AX32: =COUNTIF(AX$4:AX$23,1) -> 0 | AY32: =COUNTIF(AY$4:AY$23,1) -> 2 | AZ32: 2 | BA32: 4 | BB32: 1 | BC32: 1 | BD32: =COUNTIF(BD$4:BD$23,1) -> 3 | BE32: =COUNTIF(BE$4:BE$23,1) -> 1 | BF32: 1 | BG32: 1 | BH32: 0 | BI32: 1
A33: 2 | B33: =COUNTIF(B$4:B$23,2) -> 0 | C33: =COUNTIF(C$4:C$23,2) -> 0 | D33: 3 | E33: 0 | F33: 3 | G33: 2 | H33: =COUNTIF(H$4:H$23,2) -> 2 | I33: =COUNTIF(I$4:I$23,2) -> 3 | J33: 1 | K33: 1 | L33: 2 | M33: 2 | N33: =COUNTIF(N$4:N$23,2) -> 2 | O33: =COUNTIF(O$4:O$23,2) -> 2 | P33: 2 | Q33: 3 | R33: 0 | S33: 2 | T33: =COUNTIF(T$4:T$23,2) -> 3 | U33: =COUNTIF(U$4:U$23,2) -> 1 | V33: 3 | W33: 2 | X33: 0 | Y33: 2 | Z33: =COUNTIF(Z$4:Z$23,2) -> 2 | AA33: =COUNTIF(AA$4:AA$23,2) -> 1 | AB33: 3 | AC33: 1 | AD33: 1 | AE33: 2 | AF33: =COUNTIF(AF$4:AF$23,2) -> 2 | AG33: =COUNTIF(AG$4:AG$23,2) -> 2 | AH33: 1 | AI33: 1 | AJ33: 2 | AK33: 2 | AL33: =COUNTIF(AL$4:AL$23,2) -> 2 | AM33: =COUNTIF(AM$4:AM$23,2) -> 3 | AN33: 0 | AO33: 3 | AP33: 1 | AQ33: 2 | AR33: =COUNTIF(AR$4:AR$23,2) -> 0 | AS33: =COUNTIF(AS$4:AS$23,2) -> 1 | AT33: 1 | AU33: 0 | AV33: 2 | AW33: 2 | AX33: =COUNTIF(AX$4:AX$23,2) -> 2 | AY33: =COUNTIF(AY$4:AY$23,2) -> 2 | AZ33: 2 | BA33: 0 | BB33: 2 | BC33: 2 | BD33: =COUNTIF(BD$4:BD$23,2) -> 0 | BE33: =COUNTIF(BE$4:BE$23,2) -> 2 | BF33: 4 | BG33: 0 | BH33: 1 | BI33: 2
A34: 3 | B34: =COUNTIF(B$4:B$23,3) -> 2 | C34: =COUNTIF(C$4:C$23,3) -> 4 | D34: 0 | E34: 2 | F34: 3 | G34: 3 | H34: =COUNTIF(H$4:H$23,3) -> 1 | I34: =COUNTIF(I$4:I$23,3) -> 1 | J34: 1 | K34: 2 | L34: 0 | M34: 3 | N34: =COUNTIF(N$4:N$23,3) -> 2 | O34: =COUNTIF(O$4:O$23,3) -> 1 | P34: 0 | Q34: 3 | R34: 1 | S34: 3 | T34: =COUNTIF(T$4:T$23,3) -> 2 | U34: =COUNTIF(U$4:U$23,3) -> 1 | V34: 1 | W34: 1 | X34: 1 | Y34: 3 | Z34: =COUNTIF(Z$4:Z$23,3) -> 1 | AA34: =COUNTIF(AA$4:AA$23,3) -> 1 | AB34: 1 | AC34: 2 | AD34: 3 | AE34: 3 | AF34: =COUNTIF(AF$4:AF$23,3) -> 2 | AG34: =COUNTIF(AG$4:AG$23,3) -> 1 | AH34: 1 | AI34: 1 | AJ34: 2 | AK34: 3 | AL34: =COUNTIF(AL$4:AL$23,3) -> 2 | AM34: =COUNTIF(AM$4:AM$23,3) -> 4 | AN34: 0 | AO34: 0 | AP34: 2 | AQ34: 3 | AR34: =COUNTIF(AR$4:AR$23,3) -> 1 | AS34: =COUNTIF(AS$4:AS$23,3) -> 1 | AT34: 1 | AU34: 0 | AV34: 2 | AW34: 3 | AX34: =COUNTIF(AX$4:AX$23,3) -> 2 | AY34: =COUNTIF(AY$4:AY$23,3) -> 0 | AZ34: 1 | BA34: 3 | BB34: 3 | BC34: 3 | BD34: =COUNTIF(BD$4:BD$23,3) -> 3 | BE34: =COUNTIF(BE$4:BE$23,3) -> 1 | BF34: 0 | BG34: 2 | BH34: 2 | BI34: 3
A35: 4 | B35: =COUNTIF(B$4:B$23,4) -> 1 | C35: =COUNTIF(C$4:C$23,4) -> 0 | D35: 1 | E35: 2 | F35: 3 | G35: 4 | H35: =COUNTIF(H$4:H$23,4) -> 1 | I35: =COUNTIF(I$4:I$23,4) -> 0 | J35: 6 | K35: 1 | L35: 0 | M35: 4 | N35: =COUNTIF(N$4:N$23,4) -> 1 | O35: =COUNTIF(O$4:O$23,4) -> 2 | P35: 0 | Q35: 1 | R35: 1 | S35: 4 | T35: =COUNTIF(T$4:T$23,4) -> 0 | U35: =COUNTIF(U$4:U$23,4) -> 1 | V35: 0 | W35: 0 | X35: 4 | Y35: 4 | Z35: =COUNTIF(Z$4:Z$23,4) -> 0 | AA35: =COUNTIF(AA$4:AA$23,4) -> 2 | AB35: 0 | AC35: 6 | AD35: 0 | AE35: 4 | AF35: =COUNTIF(AF$4:AF$23,4) -> 1 | AG35: =COUNTIF(AG$4:AG$23,4) -> 0 | AH35: 0 | AI35: 1 | AJ35: 3 | AK35: 4 | AL35: =COUNTIF(AL$4:AL$23,4) -> 3 | AM35: =COUNTIF(AM$4:AM$23,4) -> 1 | AN35: 3 | AO35: 1 | AP35: 0 | AQ35: 4 | AR35: =COUNTIF(AR$4:AR$23,4) -> 0 | AS35: =COUNTIF(AS$4:AS$23,4) -> 0 | AT35: 0 | AU35: 0 | AV35: 3 | AW35: 4 | AX35: =COUNTIF(AX$4:AX$23,4) -> 0 | AY35: =COUNTIF(AY$4:AY$23,4) -> 2 | AZ35: 1 | BA35: 1 | BB35: 4 | BC35: 4 | BD35: =COUNTIF(BD$4:BD$23,4) -> 0 | BE35: =COUNTIF(BE$4:BE$23,4) -> 2 | BF35: 1 | BG35: 1 | BH35: 1 | BI35: 4
A36: 5 | B36: =COUNTIF(B$4:B$23,5) -> 3 | C36: =COUNTIF(C$4:C$23,5) -> 1 | D36: 0 | E36: 2 | F36: 0 | G36: 5 | H36: =COUNTIF(H$4:H$23,5) -> 0 | I36: =COUNTIF(I$4:I$23,5) -> 3 | J36: 3 | K36: 0 | L36: 0 | M36: 5 | N36: =COUNTIF(N$4:N$23,5) -> 3 | O36: =COUNTIF(O$4:O$23,5) -> 0 | P36: 4 | Q36: 0 | R36: 0 | S36: 5 | T36: =COUNTIF(T$4:T$23,5) -> 0 | U36: =COUNTIF(U$4:U$23,5) -> 0 | V36: 6 | W36: 0 | X36: 0 | Y36: 5 | Z36: =COUNTIF(Z$4:Z$23,5) -> 2 | AA36: =COUNTIF(AA$4:AA$23,5) -> 1 | AB36: 1 | AC36: 2 | AD36: 0 | AE36: 5 | AF36: =COUNTIF(AF$4:AF$23,5) -> 2 | AG36: =COUNTIF(AG$4:AG$23,5) -> 1 | AH36: 1 | AI36: 2 | AJ36: 1 | AK36: 5 | AL36: =COUNTIF(AL$4:AL$23,5) -> 2 | AM36: =COUNTIF(AM$4:AM$23,5) -> 1 | AN36: 2 | AO36: 0 | AP36: 0 | AQ36: 5 | AR36: =COUNTIF(AR$4:AR$23,5) -> 0 | AS36: =COUNTIF(AS$4:AS$23,5) -> 3 | AT36: 0 | AU36: 2 | AV36: 2 | AW36: 5 | AX36: =COUNTIF(AX$4:AX$23,5) -> 1 | AY36: =COUNTIF(AY$4:AY$23,5) -> 1 | AZ36: 2 | BA36: 0 | BB36: 1 | BC36: 5 | BD36: =COUNTIF(BD$4:BD$23,5) -> 1 | BE36: =COUNTIF(BE$4:BE$23,5) -> 1 | BF36: 2 | BG36: 1 | BH36: 0 | BI36: 5
A37: 6 | B37: =COUNTIF(B$4:B$23,6) -> 3 | C37: =COUNTIF(C$4:C$23,6) -> 1 | D37: 1 | E37: 3 | F37: 1 | G37: 6 | H37: =COUNTIF(H$4:H$23,6) -> 1 | I37: =COUNTIF(I$4:I$23,6) -> 0 | J37: 1 | K37: 2 | L37: 0 | M37: 6 | N37: =COUNTIF(N$4:N$23,6) -> 4 | O37: =COUNTIF(O$4:O$23,6) -> 0 | P37: 2 | Q37: 1 | R37: 1 | S37: 6 | T37: =COUNTIF(T$4:T$23,6) -> 0 | U37: =COUNTIF(U$4:U$23,6) -> 1 | V37: 1 | W37: 2 | X37: 3 | Y37: 6 | Z37: =COUNTIF(Z$4:Z$23,6) -> 0 | AA37: =COUNTIF(AA$4:AA$23,6) -> 1 | AB37: 0 | AC37: 1 | AD37: 4 | AE37: 6 | AF37: =COUNTIF(AF$4:AF$23,6) -> 0 | AG37: =COUNTIF(AG$4:AG$23,6) -> 0 | AH37: 0 | AI37: 3 | AJ37: 0 | AK37: 6 | AL37: =COUNTIF(AL$4:AL$23,6) -> 1 | AM37: =COUNTIF(AM$4:AM$23,6) -> 1 | AN37: 0 | AO37: 0 | AP37: 1 | AQ37: 6 | AR37: =COUNTIF(AR$4:AR$23,6) -> 0 | AS37: =COUNTIF(AS$4:AS$23,6) -> 1 | AT37: 0 | AU37: 0 | AV37: 0 | AW37: 6 | AX37: =COUNTIF(AX$4:AX$23,6) -> 0 | AY37: =COUNTIF(AY$4:AY$23,6) -> 1 | AZ37: 2 | BA37: 1 | BB37: 0 | BC37: 6 | BD37: =COUNTIF(BD$4:BD$23,6) -> 1 | BE37: =COUNTIF(BE$4:BE$23,6) -> 0 | BF37: 0 | BG37: 0 | BH37: 3 | BI37: 6
A38: 7 | B38: =COUNTIF(B$4:B$23,7) -> 0 | C38: =COUNTIF(C$4:C$23,7) -> 0 | D38: 4 | E38: 4 | F38: 1 | G38: 7 | H38: =COUNTIF(H$4:H$23,7) -> 0 | I38: =COUNTIF(I$4:I$23,7) -> 2 | J38: 2 | K38: 2 | L38: 3 | M38: 7 | N38: =COUNTIF(N$4:N$23,7) -> 0 | O38: =COUNTIF(O$4:O$23,7) -> 1 | P38: 1 | Q38: 0 | R38: 4 | S38: 7 | T38: =COUNTIF(T$4:T$23,7) -> 1 | U38: =COUNTIF(U$4:U$23,7) -> 1 | V38: 0 | W38: 1 | X38: 2 | Y38: 7 | Z38: =COUNTIF(Z$4:Z$23,7) -> 3 | AA38: =COUNTIF(AA$4:AA$23,7) -> 1 | AB38: 1 | AC38: 1 | AD38: 2 | AE38: 7 | AF38: =COUNTIF(AF$4:AF$23,7) -> 0 | AG38: =COUNTIF(AG$4:AG$23,7) -> 4 | AH38: 1 | AI38: 1 | AJ38: 1 | AK38: 7 | AL38: =COUNTIF(AL$4:AL$23,7) -> 2 | AM38: =COUNTIF(AM$4:AM$23,7) -> 3 | AN38: 1 | AO38: 2 | AP38: 3 | AQ38: 7 | AR38: =COUNTIF(AR$4:AR$23,7) -> 1 | AS38: =COUNTIF(AS$4:AS$23,7) -> 1 | AT38: 2 | AU38: 3 | AV38: 1 | AW38: 7 | AX38: =COUNTIF(AX$4:AX$23,7) -> 3 | AY38: =COUNTIF(AY$4:AY$23,7) -> 1 | AZ38: 2 | BA38: 1 | BB38: 1 | BC38: 7 | BD38: =COUNTIF(BD$4:BD$23,7) -> 5 | BE38: =COUNTIF(BE$4:BE$23,7) -> 0 | BF38: 1 | BG38: 1 | BH38: 3 | BI38: 7
A39: 8 | B39: =COUNTIF(B$4:B$23,8) -> 3 | C39: =COUNTIF(C$4:C$23,8) -> 0 | D39: 2 | E39: 3 | F39: 3 | G39: 8 | H39: =COUNTIF(H$4:H$23,8) -> 0 | I39: =COUNTIF(I$4:I$23,8) -> 2 | J39: 1 | K39: 0 | L39: 2 | M39: 8 | N39: =COUNTIF(N$4:N$23,8) -> 2 | O39: =COUNTIF(O$4:O$23,8) -> 2 | P39: 3 | Q39: 0 | R39: 3 | S39: 8 | T39: =COUNTIF(T$4:T$23,8) -> 2 | U39: =COUNTIF(U$4:U$23,8) -> 2 | V39: 0 | W39: 1 | X39: 0 | Y39: 8 | Z39: =COUNTIF(Z$4:Z$23,8) -> 1 | AA39: =COUNTIF(AA$4:AA$23,8) -> 2 | AB39: 3 | AC39: 0 | AD39: 0 | AE39: 8 | AF39: =COUNTIF(AF$4:AF$23,8) -> 3 | AG39: =COUNTIF(AG$4:AG$23,8) -> 1 | AH39: 0 | AI39: 1 | AJ39: 1 | AK39: 8 | AL39: =COUNTIF(AL$4:AL$23,8) -> 3 | AM39: =COUNTIF(AM$4:AM$23,8) -> 1 | AN39: 0 | AO39: 1 | AP39: 1 | AQ39: 8 | AR39: =COUNTIF(AR$4:AR$23,8) -> 4 | AS39: =COUNTIF(AS$4:AS$23,8) -> 1 | AT39: 1 | AU39: 3 | AV39: 3 | AW39: 8 | AX39: =COUNTIF(AX$4:AX$23,8) -> 2 | AY39: =COUNTIF(AY$4:AY$23,8) -> 1 | AZ39: 2 | BA39: 2 | BB39: 1 | BC39: 8 | BD39: =COUNTIF(BD$4:BD$23,8) -> 1 | BE39: =COUNTIF(BE$4:BE$23,8) -> 0 | BF39: 3 | BG39: 3 | BH39: 2 | BI39: 8
A40: 9 | B40: =COUNTIF(B$4:B$23,9) -> 0 | C40: =COUNTIF(C$4:C$23,9) -> 4 | D40: 1 | E40: 0 | F40: 1 | G40: 9 | H40: =COUNTIF(H$4:H$23,9) -> 1 | I40: =COUNTIF(I$4:I$23,9) -> 0 | J40: 1 | K40: 3 | L40: 2 | M40: 9 | N40: =COUNTIF(N$4:N$23,9) -> 0 | O40: =COUNTIF(O$4:O$23,9) -> 1 | P40: 1 | Q40: 2 | R40: 1 | S40: 9 | T40: =COUNTIF(T$4:T$23,9) -> 1 | U40: =COUNTIF(U$4:U$23,9) -> 1 | V40: 0 | W40: 3 | X40: 1 | Y40: 9 | Z40: =COUNTIF(Z$4:Z$23,9) -> 0 | AA40: =COUNTIF(AA$4:AA$23,9) -> 3 | AB40: 1 | AC40: 0 | AD40: 0 | AE40: 9 | AF40: =COUNTIF(AF$4:AF$23,9) -> 1 | AG40: =COUNTIF(AG$4:AG$23,9) -> 4 | AH40: 1 | AI40: 0 | AJ40: 0 | AK40: 9 | AL40: =COUNTIF(AL$4:AL$23,9) -> 0 | AM40: =COUNTIF(AM$4:AM$23,9) -> 0 | AN40: 4 | AO40: 2 | AP40: 1 | AQ40: 9 | AR40: =COUNTIF(AR$4:AR$23,9) -> 0 | AS40: =COUNTIF(AS$4:AS$23,9) -> 0 | AT40: 3 | AU40: 1 | AV40: 0 | AW40: 9 | AX40: =COUNTIF(AX$4:AX$23,9) -> 1 | AY40: =COUNTIF(AY$4:AY$23,9) -> 1 | AZ40: 0 | BA40: 0 | BB40: 0 | BC40: 9 | BD40: =COUNTIF(BD$4:BD$23,9) -> 0 | BE40: =COUNTIF(BE$4:BE$23,9) -> 2 | BF40: 1 | BG40: 1 | BH40: 1 | BI40: 9
A41: 10 | B41: =COUNTIF(B$4:B$23,10) -> 0 | C41: =COUNTIF(C$4:C$23,10) -> 2 | D41: 0 | E41: 1 | F41: 0 | G41: 10 | H41: =COUNTIF(H$4:H$23,10) -> 2 | I41: =COUNTIF(I$4:I$23,10) -> 0 | J41: 0 | K41: 0 | L41: 1 | M41: 10 | N41: =COUNTIF(N$4:N$23,10) -> 2 | O41: =COUNTIF(O$4:O$23,10) -> 1 | P41: 1 | Q41: 0 | R41: 2 | S41: 10 | T41: =COUNTIF(T$4:T$23,10) -> 1 | U41: =COUNTIF(U$4:U$23,10) -> 0 | V41: 1 | W41: 2 | X41: 0 | Y41: 10 | Z41: =COUNTIF(Z$4:Z$23,10) -> 1 | AA41: =COUNTIF(AA$4:AA$23,10) -> 1 | AB41: 0 | AC41: 3 | AD41: 0 | AE41: 10 | AF41: =COUNTIF(AF$4:AF$23,10) -> 0 | AG41: =COUNTIF(AG$4:AG$23,10) -> 2 | AH41: 1 | AI41: 1 | AJ41: 2 | AK41: 10 | AL41: =COUNTIF(AL$4:AL$23,10) -> 0 | AM41: =COUNTIF(AM$4:AM$23,10) -> 0 | AN41: 1 | AO41: 1 | AP41: 0 | AQ41: 10 | AR41: =COUNTIF(AR$4:AR$23,10) -> 1 | AS41: =COUNTIF(AS$4:AS$23,10) -> 0 | AT41: 1 | AU41: 2 | AV41: 2 | AW41: 10 | AX41: =COUNTIF(AX$4:AX$23,10) -> 2 | AY41: =COUNTIF(AY$4:AY$23,10) -> 1 | AZ41: 0 | BA41: 0 | BB41: 1 | BC41: 10 | BD41: =COUNTIF(BD$4:BD$23,10) -> 0 | BE41: =COUNTIF(BE$4:BE$23,10) -> 0 | BF41: 0 | BG41: 2 | BH41: 1 | BI41: 10
A42: 11 | B42: =COUNTIF(B$4:B$23,11) -> 1 | C42: =COUNTIF(C$4:C$23,11) -> 2 | D42: 1 | E42: 1 | F42: 1 | G42: 11 | H42: =COUNTIF(H$4:H$23,11) -> 0 | I42: =COUNTIF(I$4:I$23,11) -> 3 | J42: 2 | K42: 0 | L42: 3 | M42: 11 | N42: =COUNTIF(N$4:N$23,11) -> 1 | O42: =COUNTIF(O$4:O$23,11) -> 0 | P42: 1 | Q42: 3 | R42: 0 | S42: 11 | T42: =COUNTIF(T$4:T$23,11) -> 4 | U42: =COUNTIF(U$4:U$23,11) -> 2 | V42: 0 | W42: 0 | X42: 2 | Y42: 11 | Z42: =COUNTIF(Z$4:Z$23,11) -> 2 | AA42: =COUNTIF(AA$4:AA$23,11) -> 2 | AB42: 2 | AC42: 1 | AD42: 0 | AE42: 11 | AF42: =COUNTIF(AF$4:AF$23,11) -> 4 | AG42: =COUNTIF(AG$4:AG$23,11) -> 1 | AH42: 3 | AI42: 2 | AJ42: 1 | AK42: 11 | AL42: =COUNTIF(AL$4:AL$23,11) -> 2 | AM42: =COUNTIF(AM$4:AM$23,11) -> 0 | AN42: 1 | AO42: 2 | AP42: 1 | AQ42: 11 | AR42: =COUNTIF(AR$4:AR$23,11) -> 6 | AS42: =COUNTIF(AS$4:AS$23,11) -> 4 | AT42: 1 | AU42: 1 | AV42: 0 | AW42: 11 | AX42: =COUNTIF(AX$4:AX$23,11) -> 2 | AY42: =COUNTIF(AY$4:AY$23,11) -> 1 | AZ42: 0 | BA42: 3 | BB42: 0 | BC42: 11 | BD42: =COUNTIF(BD$4:BD$23,11) -> 1 | BE42: =COUNTIF(BE$4:BE$23,11) -> 2 | BF42: 4 | BG42: 1 | BH42: 1 | BI42: 11
A43: 12 | B43: =COUNTIF(B$4:B$23,12) -> 1 | C43: =COUNTIF(C$4:C$23,12) -> 2 | D43: 1 | E43: 1 | F43: 0 | G43: 12 | H43: =COUNTIF(H$4:H$23,12) -> 2 | I43: =COUNTIF(I$4:I$23,12) -> 1 | J43: 0 | K43: 3 | L43: 1 | M43: 12 | N43: =COUNTIF(N$4:N$23,12) -> 0 | O43: =COUNTIF(O$4:O$23,12) -> 3 | P43: 0 | Q43: 0 | R43: 0 | S43: 12 | T43: =COUNTIF(T$4:T$23,12) -> 2 | U43: =COUNTIF(U$4:U$23,12) -> 3 | V43: 0 | W43: 0 | X43: 1 | Y43: 12 | Z43: =COUNTIF(Z$4:Z$23,12) -> 1 | AA43: =COUNTIF(AA$4:AA$23,12) -> 0 | AB43: 0 | AC43: 1 | AD43: 1 | AE43: 12 | AF43: =COUNTIF(AF$4:AF$23,12) -> 0 | AG43: =COUNTIF(AG$4:AG$23,12) -> 1 | AH43: 2 | AI43: 1 | AJ43: 1 | AK43: 12 | AL43: =COUNTIF(AL$4:AL$23,12) -> 0 | AM43: =COUNTIF(AM$4:AM$23,12) -> 0 | AN43: 2 | AO43: 2 | AP43: 2 | AQ43: 12 | AR43: =COUNTIF(AR$4:AR$23,12) -> 0 | AS43: =COUNTIF(AS$4:AS$23,12) -> 0 | AT43: 1 | AU43: 2 | AV43: 3 | AW43: 12 | AX43: =COUNTIF(AX$4:AX$23,12) -> 1 | AY43: =COUNTIF(AY$4:AY$23,12) -> 0 | AZ43: 1 | BA43: 2 | BB43: 1 | BC43: 12 | BD43: =COUNTIF(BD$4:BD$23,12) -> 0 | BE43: =COUNTIF(BE$4:BE$23,12) -> 2 | BF43: 1 | BG43: 2 | BH43: 0 | BI43: 12
A44: 13 | B44: =COUNTIF(B$4:B$23,13) -> 1 | C44: =COUNTIF(C$4:C$23,13) -> 2 | D44: 1 | E44: 0 | F44: 0 | G44: 13 | H44: =COUNTIF(H$4:H$23,13) -> 5 | I44: =COUNTIF(I$4:I$23,13) -> 1 | J44: 1 | K44: 2 | L44: 1 | M44: 13 | N44: =COUNTIF(N$4:N$23,13) -> 0 | O44: =COUNTIF(O$4:O$23,13) -> 2 | P44: 3 | Q44: 1 | R44: 0 | S44: 13 | T44: =COUNTIF(T$4:T$23,13) -> 1 | U44: =COUNTIF(U$4:U$23,13) -> 3 | V44: 2 | W44: 1 | X44: 1 | Y44: 13 | Z44: =COUNTIF(Z$4:Z$23,13) -> 1 | AA44: =COUNTIF(AA$4:AA$23,13) -> 0 | AB44: 2 | AC44: 0 | AD44: 5 | AE44: 13 | AF44: =COUNTIF(AF$4:AF$23,13) -> 1 | AG44: =COUNTIF(AG$4:AG$23,13) -> 1 | AH44: 1 | AI44: 0 | AJ44: 0 | AK44: 13 | AL44: =COUNTIF(AL$4:AL$23,13) -> 1 | AM44: =COUNTIF(AM$4:AM$23,13) -> 1 | AN44: 0 | AO44: 3 | AP44: 2 | AQ44: 13 | AR44: =COUNTIF(AR$4:AR$23,13) -> 1 | AS44: =COUNTIF(AS$4:AS$23,13) -> 2 | AT44: 2 | AU44: 2 | AV44: 1 | AW44: 13 | AX44: =COUNTIF(AX$4:AX$23,13) -> 2 | AY44: =COUNTIF(AY$4:AY$23,13) -> 0 | AZ44: 2 | BA44: 0 | BB44: 3 | BC44: 13 | BD44: =COUNTIF(BD$4:BD$23,13) -> 1 | BE44: =COUNTIF(BE$4:BE$23,13) -> 5 | BF44: 1 | BG44: 3 | BH44: 0 | BI44: 13
A45: 14 | B45: =COUNTIF(B$4:B$23,14) -> 1 | C45: =COUNTIF(C$4:C$23,14) -> 0 | D45: 2 | E45: 0 | F45: 1 | G45: 14 | H45: =COUNTIF(H$4:H$23,14) -> 2 | I45: =COUNTIF(I$4:I$23,14) -> 1 | J45: 0 | K45: 3 | L45: 0 | M45: 14 | N45: =COUNTIF(N$4:N$23,14) -> 0 | O45: =COUNTIF(O$4:O$23,14) -> 1 | P45: 2 | Q45: 1 | R45: 3 | S45: 14 | T45: =COUNTIF(T$4:T$23,14) -> 1 | U45: =COUNTIF(U$4:U$23,14) -> 0 | V45: 2 | W45: 2 | X45: 0 | Y45: 14 | Z45: =COUNTIF(Z$4:Z$23,14) -> 1 | AA45: =COUNTIF(AA$4:AA$23,14) -> 0 | AB45: 3 | AC45: 0 | AD45: 0 | AE45: 14 | AF45: =COUNTIF(AF$4:AF$23,14) -> 0 | AG45: =COUNTIF(AG$4:AG$23,14) -> 1 | AH45: 2 | AI45: 3 | AJ45: 0 | AK45: 14 | AL45: =COUNTIF(AL$4:AL$23,14) -> 1 | AM45: =COUNTIF(AM$4:AM$23,14) -> 0 | AN45: 0 | AO45: 1 | AP45: 2 | AQ45: 14 | AR45: =COUNTIF(AR$4:AR$23,14) -> 1 | AS45: =COUNTIF(AS$4:AS$23,14) -> 0 | AT45: 2 | AU45: 1 | AV45: 1 | AW45: 14 | AX45: =COUNTIF(AX$4:AX$23,14) -> 1 | AY45: =COUNTIF(AY$4:AY$23,14) -> 2 | AZ45: 0 | BA45: 1 | BB45: 0 | BC45: 14 | BD45: =COUNTIF(BD$4:BD$23,14) -> 0 | BE45: =COUNTIF(BE$4:BE$23,14) -> 1 | BF45: 0 | BG45: 1 | BH45: 2 | BI45: 14
A46: 15 | B46: =COUNTIF(B$4:B$23,15) -> 0 | C46: =COUNTIF(C$4:C$23,15) -> 0 | D46: 0 | E46: 0 | F46: 2 | G46: 15 | H46: =COUNTIF(H$4:H$23,15) -> 0 | I46: =COUNTIF(I$4:I$23,15) -> 0 | J46: 0 | K46: 0 | L46: 3 | M46: 15 | N46: =COUNTIF(N$4:N$23,15) -> 0 | O46: =COUNTIF(O$4:O$23,15) -> 1 | P46: 0 | Q46: 0 | R46: 2 | S46: 15 | T46: =COUNTIF(T$4:T$23,15) -> 0 | U46: =COUNTIF(U$4:U$23,15) -> 1 | V46: 0 | W46: 0 | X46: 1 | Y46: 15 | Z46: =COUNTIF(Z$4:Z$23,15) -> 0 | AA46: =COUNTIF(AA$4:AA$23,15) -> 1 | AB46: 0 | AC46: 0 | AD46: 1 | AE46: 15 | AF46: =COUNTIF(AF$4:AF$23,15) -> 0 | AG46: =COUNTIF(AG$4:AG$23,15) -> 0 | AH46: 1 | AI46: 0 | AJ46: 3 | AK46: 15 | AL46: =COUNTIF(AL$4:AL$23,15) -> 0 | AM46: =COUNTIF(AM$4:AM$23,15) -> 0 | AN46: 0 | AO46: 0 | AP46: 0 | AQ46: 15 | AR46: =COUNTIF(AR$4:AR$23,15) -> 0 | AS46: =COUNTIF(AS$4:AS$23,15) -> 0 | AT46: 2 | AU46: 0 | AV46: 0 | AW46: 15 | AX46: =COUNTIF(AX$4:AX$23,15) -> 0 | AY46: =COUNTIF(AY$4:AY$23,15) -> 0 | AZ46: 0 | BA46: 0 | BB46: 2 | BC46: 15 | BD46: =COUNTIF(BD$4:BD$23,15) -> 1 | BE46: =COUNTIF(BE$4:BE$23,15) -> 0 | BF46: 0 | BG46: 0 | BH46: 1 | BI46: 15
A47: 16 | B47: =COUNTIF(B$4:B$23,16) -> 3 | C47: =COUNTIF(C$4:C$23,16) -> 1 | D47: 1 | E47: 1 | F47: 1 | G47: 16 | H47: =COUNTIF(H$4:H$23,16) -> 2 | I47: =COUNTIF(I$4:I$23,16) -> 2 | J47: 1 | K47: 0 | L47: 1 | M47: 16 | N47: =COUNTIF(N$4:N$23,16) -> 1 | O47: =COUNTIF(O$4:O$23,16) -> 1 | P47: 0 | Q47: 3 | R47: 0 | S47: 16 | T47: =COUNTIF(T$4:T$23,16) -> 2 | U47: =COUNTIF(U$4:U$23,16) -> 2 | V47: 3 | W47: 4 | X47: 1 | Y47: 16 | Z47: =COUNTIF(Z$4:Z$23,16) -> 2 | AA47: =COUNTIF(AA$4:AA$23,16) -> 2 | AB47: 3 | AC47: 0 | AD47: 0 | AE47: 16 | AF47: =COUNTIF(AF$4:AF$23,16) -> 3 | AG47: =COUNTIF(AG$4:AG$23,16) -> 1 | AH47: 2 | AI47: 0 | AJ47: 1 | AK47: 16 | AL47: =COUNTIF(AL$4:AL$23,16) -> 1 | AM47: =COUNTIF(AM$4:AM$23,16) -> 3 | AN47: 2 | AO47: 1 | AP47: 3 | AQ47: 16 | AR47: =COUNTIF(AR$4:AR$23,16) -> 3 | AS47: =COUNTIF(AS$4:AS$23,16) -> 4 | AT47: 1 | AU47: 2 | AV47: 0 | AW47: 16 | AX47: =COUNTIF(AX$4:AX$23,16) -> 1 | AY47: =COUNTIF(AY$4:AY$23,16) -> 5 | AZ47: 3 | BA47: 2 | BB47: 0 | BC47: 16 | BD47: =COUNTIF(BD$4:BD$23,16) -> 3 | BE47: =COUNTIF(BE$4:BE$23,16) -> 1 | BF47: 1 | BG47: 1 | BH47: 2 | BI47: 16
A48: 17 | B48: =COUNTIF(B$4:B$23,17) -> 0 | C48: =COUNTIF(C$4:C$23,17) -> 0 | D48: 0 | E48: 0 | F48: 0 | G48: 17 | H48: =COUNTIF(H$4:H$23,17) -> 0 | I48: =COUNTIF(I$4:I$23,17) -> 0 | J48: 0 | K48: 0 | L48: 0 | M48: 17 | N48: =COUNTIF(N$4:N$23,17) -> 0 | O48: =COUNTIF(O$4:O$23,17) -> 0 | P48: 0 | Q48: 0 | R48: 0 | S48: 17 | T48: =COUNTIF(T$4:T$23,17) -> 0 | U48: =COUNTIF(U$4:U$23,17) -> 0 | V48: 0 | W48: 0 | X48: 0 | Y48: 17 | Z48: =COUNTIF(Z$4:Z$23,17) -> 0 | AA48: =COUNTIF(AA$4:AA$23,17) -> 0 | AB48: 0 | AC48: 0 | AD48: 0 | AE48: 17 | AF48: =COUNTIF(AF$4:AF$23,17) -> 0 | AG48: =COUNTIF(AG$4:AG$23,17) -> 0 | AH48: 0 | AI48: 0 | AJ48: 0 | AK48: 17 | AL48: =COUNTIF(AL$4:AL$23,17) -> 0 | AM48: =COUNTIF(AM$4:AM$23,17) -> 0 | AN48: 0 | AO48: 0 | AP48: 0 | AQ48: 17 | AR48: =COUNTIF(AR$4:AR$23,17) -> 0 | AS48: =COUNTIF(AS$4:AS$23,17) -> 0 | AT48: 0 | AU48: 0 | AV48: 0 | AW48: 17 | AX48: =COUNTIF(AX$4:AX$23,17) -> 0 | AY48: =COUNTIF(AY$4:AY$23,17) -> 0 | AZ48: 0 | BA48: 0 | BB48: 0 | BC48: 17 | BD48: =COUNTIF(BD$4:BD$23,17) -> 0 | BE48: =COUNTIF(BE$4:BE$23,17) -> 0 | BF48: 0 | BG48: 0 | BH48: 0 | BI48: 17
A49: 18 | B49: =COUNTIF(B$4:B$23,18) -> 0 | C49: =COUNTIF(C$4:C$23,18) -> 0 | D49: 0 | E49: 0 | F49: 0 | G49: 18 | H49: =COUNTIF(H$4:H$23,18) -> 0 | I49: =COUNTIF(I$4:I$23,18) -> 0 | J49: 0 | K49: 0 | L49: 0 | M49: 18 | N49: =COUNTIF(N$4:N$23,18) -> 0 | O49: =COUNTIF(O$4:O$23,18) -> 0 | P49: 0 | Q49: 0 | R49: 0 | S49: 18 | T49: =COUNTIF(T$4:T$23,18) -> 0 | U49: =COUNTIF(U$4:U$23,18) -> 0 | V49: 0 | W49: 0 | X49: 0 | Y49: 18 | Z49: =COUNTIF(Z$4:Z$23,18) -> 0 | AA49: =COUNTIF(AA$4:AA$23,18) -> 0 | AB49: 0 | AC49: 0 | AD49: 0 | AE49: 18 | AF49: =COUNTIF(AF$4:AF$23,18) -> 0 | AG49: =COUNTIF(AG$4:AG$23,18) -> 0 | AH49: 0 | AI49: 0 | AJ49: 0 | AK49: 18 | AL49: =COUNTIF(AL$4:AL$23,18) -> 0 | AM49: =COUNTIF(AM$4:AM$23,18) -> 0 | AN49: 0 | AO49: 0 | AP49: 0 | AQ49: 18 | AR49: =COUNTIF(AR$4:AR$23,18) -> 0 | AS49: =COUNTIF(AS$4:AS$23,18) -> 0 | AT49: 0 | AU49: 0 | AV49: 0 | AW49: 18 | AX49: =COUNTIF(AX$4:AX$23,18) -> 0 | AY49: =COUNTIF(AY$4:AY$23,18) -> 0 | AZ49: 0 | BA49: 0 | BB49: 0 | BC49: 18 | BD49: =COUNTIF(BD$4:BD$23,18) -> 0 | BE49: =COUNTIF(BE$4:BE$23,18) -> 0 | BF49: 0 | BG49: 0 | BH49: 0 | BI49: 18
B53: 1 | C53: 2 | D53: 3 | E53: 4 | F53: 5
B54: =B29 -> 0 | C54: =C29 -> 0 | D54: 7 | E54: 7 | F54: 0
B55: =H29 -> 13 | C55: =I29 -> 0 | D55: 4 | E55: 0 | F55: 0
B56: =N29 -> 6 | C56: =O29 -> 12 | D56: 5 | E56: 0 | F56: 7
B57: =T29 -> 11 | C57: =U29 -> 0 | D57: 5 | E57: 16 | F57: 4
B58: =Z29 -> 0 | C58: =AA29 -> 9 | D58: 0 | E58: 4 | F58: 13
B59: =AF29 -> 11 | C59: =AG29 -> 0 | D59: 0 | E59: 0 | F59: 0
B60: =AL29 -> 0 | C60: =AM29 -> 3 | D60: 0 | E60: 0 | F60: 0
B61: =AR29 -> 11 | C61: =AS29 -> 0 | D61: 9 | E61: 0 | F61: 0
B62: =AX29 -> 7 | C62: =AY29 -> 16 | D62: 16 | E62: 1 | F62: 4 | Q62: 1 | R62: 2 | S62: 3 | T62: 4 | U62: 5
B63: =BD29 -> 7 | C63: =BE29 -> 13 | D63: 0 | E63: 0 | F63: 0 | P63: 1 | Q63: =COUNTIF($B$66:$B$75,P63) -> 0 | R63: =COUNTIF($C$66:$C$75,P63) -> 0 | S63: =COUNTIF($D$66:$D$75,P63) -> 0 | T63: =COUNTIF($E$66:$E$75,P63) -> 1 | U63: =COUNTIF($F$66:$F$75,P63) -> 0 | V63: =IF(OR(Q63>1,R63>1,S63>1,T63>1,U63>1),P63,0) -> 0 | W63: =LARGE($V$63:$V$80,P63) -> 11
P64: 2 | Q64: =COUNTIF($B$66:$B$75,P64) -> 0 | R64: =COUNTIF($C$66:$C$75,P64) -> 0 | S64: =COUNTIF($D$66:$D$75,P64) -> 0 | T64: =COUNTIF($E$66:$E$75,P64) -> 0 | U64: =COUNTIF($F$66:$F$75,P64) -> 0 | V64: =IF(OR(Q64>1,R64>1,S64>1,T64>1,U64>1),P64,0) -> 0 | W64: =LARGE($V$63:$V$80,P64) -> 7
P65: 3 | Q65: 0 | R65: 1 | S65: 0 | T65: 0 | U65: 0 | V65: 0 | W65: 5
B66: =LARGE(B54:B63,1) -> 13 | C66: =LARGE(C54:C63,1) -> 16 | D66: 16 | E66: 16 | F66: 13 | P66: 4 | Q66: 0 | R66: 0 | S66: 1 | T66: 1 | U66: 2 | V66: 4 | W66: 4
B67: =LARGE(B54:B63,2) -> 11 | C67: =LARGE(C54:C63,2) -> 13 | D67: 9 | E67: 7 | F67: 7 | P67: 5 | Q67: 0 | R67: 0 | S67: 2 | T67: 0 | U67: 0 | V67: 5 | W67: 0
B68: =LARGE(B54:B63,3) -> 11 | C68: =LARGE(C54:C63,3) -> 12 | D68: 7 | E68: 4 | F68: 4 | P68: 6 | Q68: 1 | R68: 0 | S68: 0 | T68: 0 | U68: 0 | V68: 0 | W68: 0
B69: =LARGE(B54:B63,4) -> 11 | C69: =LARGE(C54:C63,4) -> 9 | D69: 5 | E69: 1 | F69: 4 | P69: 7 | Q69: 2 | R69: 0 | S69: 1 | T69: 1 | U69: 1 | V69: 7 | W69: 0
B70: =LARGE(B54:B63,5) -> 7 | C70: =LARGE(C54:C63,5) -> 3 | D70: 5 | E70: 0 | F70: 0 | P70: 8 | Q70: 0 | R70: 0 | S70: 0 | T70: 0 | U70: 0 | V70: 0 | W70: 0
B71: =LARGE(B54:B63,6) -> 7 | C71: =LARGE(C54:C63,6) -> 0 | D71: 4 | E71: 0 | F71: 0 | P71: 9 | Q71: 0 | R71: 1 | S71: 1 | T71: 0 | U71: 0 | V71: 0 | W71: 0
B72: =LARGE(B54:B63,7) -> 6 | C72: =LARGE(C54:C63,7) -> 0 | D72: 0 | E72: 0 | F72: 0 | P72: 10 | Q72: 0 | R72: 0 | S72: 0 | T72: 0 | U72: 0 | V72: 0 | W72: 0
B73: =LARGE(B54:B63,8) -> 0 | C73: =LARGE(C54:C63,8) -> 0 | D73: 0 | E73: 0 | F73: 0 | P73: 11 | Q73: 3 | R73: 0 | S73: 0 | T73: 0 | U73: 0 | V73: 11 | W73: 0
B74: =LARGE(B54:B63,9) -> 0 | C74: =LARGE(C54:C63,9) -> 0 | D74: 0 | E74: 0 | F74: 0 | P74: 12 | Q74: 0 | R74: 1 | S74: 0 | T74: 0 | U74: 0 | V74: 0 | W74: 0
B75: =LARGE(B54:B63,10) -> 0 | C75: =LARGE(C54:C63,10) -> 0 | D75: 0 | E75: 0 | F75: 0 | P75: 13 | Q75: 1 | R75: 1 | S75: 0 | T75: 0 | U75: 1 | V75: 0 | W75: 0
P76: 14 | Q76: 0 | R76: 0 | S76: 0 | T76: 0 | U76: 0 | V76: 0 | W76: 0
B77: =IF(B66=B67,0,B66) -> 13 | C77: =IF(C66=C67,0,C66) -> 16 | D77: 16 | E77: 16 | F77: 13 | P77: 15 | Q77: 0 | R77: 0 | S77: 0 | T77: 0 | U77: 0 | V77: 0 | W77: 0
B78: =IF(B67=B68,0,B67) -> 0 | C78: 13 | D78: 9 | E78: 7 | F78: 7 | P78: 16 | Q78: 0 | R78: 1 | S78: 1 | T78: 1 | U78: 0 | V78: 0 | W78: 0
B79: 0 | C79: 12 | D79: 7 | E79: 4 | F79: 0 | P79: 17 | Q79: 0 | R79: 0 | S79: 0 | T79: 0 | U79: 0 | V79: 0 | W79: 0
B80: 11 | C80: 9 | D80: 0 | E80: 1 | F80: 4 | P80: 18 | Q80: 0 | R80: 0 | S80: 0 | T80: 0 | U80: 0 | V80: 0 | W80: 0
B81: 0 | C81: 3 | D81: 5 | E81: 0 | F81: 0
B82: 7 | C82: 0 | D82: 4 | E82: 0 | F82: 0
B83: 6 | C83: 0 | D83: 0 | E83: 0 | F83: 0 | J83: =RECAP!D36 -> 0 | K83: =RECAP!E36 -> 0 | L83: =RECAP!F36 -> 0 | M83: =RECAP!G36 -> 0 | N83: =RECAP!H36 -> 0
B84: 0 | C84: 0 | D84: 0 | E84: 0 | F84: 0
B85: 0 | C85: 0 | D85: 0 | E85: 0 | F85: 0
B86: 0 | C86: 0 | D86: 0 | E86: 0 | F86: 0
B88: =IF(LARGE(B77:B86,1)>0,LARGE(B77:B86,1),"") -> 13 | C88: =IF(LARGE(C77:C86,1)>0,LARGE(C77:C86,1),"") -> 16 | D88: =IF(LARGE(D77:D86,1)>0,LARGE(D77:D86,1),"") -> 16 | E88: =IF(LARGE(E77:E86,1)>0,LARGE(E77:E86,1),"") -> 16 | F88: =IF(LARGE(F77:F86,1)>0,LARGE(F77:F86,1),"") -> 13 | I88: 1 | J88: =IF(AND(B32>0,H32>0,N32>0,T32>0,Z32>0,AF32>0,AL32>0,AR32>0,AX32>0,BD32>0),1,0) -> 0 | K88: =IF(AND(C32>0,I32>0,O32>0,U32>0,AA32>0,AG32>0,AM32>0,AS32>0,AY32>0,BE32>0),1,0) -> 0 | L88: =IF(AND(D32>0,J32>0,P32>0,V32>0,AB32>0,AH32>0,AN32>0,AT32>0,AZ32>0,BF32>0),1,0) -> 0 | M88: =IF(AND(E32>0,K32>0,Q32>0,W32>0,AC32>0,AI32>0,AO32>0,AU32>0,BA32>0,BG32>0),1,0) -> 0 | N88: =IF(AND(F32>0,L32>0,R32>0,X32>0,AD32>0,AJ32>0,AP32>0,AV32>0,BB32>0,BH32>0),1,0) -> 0
B89: =IF(LARGE(B77:B86,2)>0,LARGE(B77:B86,2),"") -> 11 | C89: =IF(LARGE(C77:C86,2)>0,LARGE(C77:C86,2),"") -> 13 | D89: =IF(LARGE(D77:D86,2)>0,LARGE(D77:D86,2),"") -> 9 | E89: =IF(LARGE(E77:E86,2)>0,LARGE(E77:E86,2),"") -> 7 | F89: =IF(LARGE(F77:F86,2)>0,LARGE(F77:F86,2),"") -> 7 | I89: 2 | J89: 0 | K89: 0 | L89: 0 | M89: 0 | N89: 0
B90: =IF(LARGE(B77:B86,3)>0,LARGE(B77:B86,3),"") -> 7 | C90: =IF(LARGE(C77:C86,3)>0,LARGE(C77:C86,3),"") -> 12 | D90: =IF(LARGE(D77:D86,3)>0,LARGE(D77:D86,3),"") -> 7 | E90: =IF(LARGE(E77:E86,3)>0,LARGE(E77:E86,3),"") -> 4 | F90: =IF(LARGE(F77:F86,3)>0,LARGE(F77:F86,3),"") -> 4 | I90: 3 | J90: 1 | K90: 0 | L90: 0 | M90: 0 | N90: 0
B91: =IF(LARGE(B77:B86,4)>0,LARGE(B77:B86,4),"") -> 6 | C91: =IF(LARGE(C77:C86,4)>0,LARGE(C77:C86,4),"") -> 9 | D91: =IF(LARGE(D77:D86,4)>0,LARGE(D77:D86,4),"") -> 5 | E91: =IF(LARGE(E77:E86,4)>0,LARGE(E77:E86,4),"") -> 1 | F91: =IF(LARGE(F77:F86,4)>0,LARGE(F77:F86,4),"") ->  | I91: 4 | J91: 0 | K91: 0 | L91: 0 | M91: 0 | N91: 0
B92: =IF(LARGE(B77:B86,5)>0,LARGE(B77:B86,5),"") ->  | C92: =IF(LARGE(C77:C86,5)>0,LARGE(C77:C86,5),"") -> 3 | D92: =IF(LARGE(D77:D86,5)>0,LARGE(D77:D86,5),"") -> 4 | E92: =IF(LARGE(E77:E86,5)>0,LARGE(E77:E86,5),"") ->  | F92: =IF(LARGE(F77:F86,5)>0,LARGE(F77:F86,5),"") ->  | I92: 5 | J92: 0 | K92: 0 | L92: 0 | M92: 0 | N92: 0
B93: =IF(LARGE(B77:B86,6)>0,LARGE(B77:B86,6),"") ->  | C93: =IF(LARGE(C77:C86,6)>0,LARGE(C77:C86,6),"") ->  | D93: =IF(LARGE(D77:D86,6)>0,LARGE(D77:D86,6),"") ->  | E93: =IF(LARGE(E77:E86,6)>0,LARGE(E77:E86,6),"") ->  | F93: =IF(LARGE(F77:F86,6)>0,LARGE(F77:F86,6),"") ->  | I93: 6 | J93: 0 | K93: 0 | L93: 0 | M93: 0 | N93: 0
B94: =IF(LARGE(B77:B86,7)>0,LARGE(B77:B86,7),"") ->  | C94: =IF(LARGE(C77:C86,7)>0,LARGE(C77:C86,7),"") ->  | D94: =IF(LARGE(D77:D86,7)>0,LARGE(D77:D86,7),"") ->  | E94: =IF(LARGE(E77:E86,7)>0,LARGE(E77:E86,7),"") ->  | F94: =IF(LARGE(F77:F86,7)>0,LARGE(F77:F86,7),"") ->  | I94: 7 | J94: 0 | K94: 0 | L94: 0 | M94: 0 | N94: 1
B95: =IF(LARGE(B77:B86,8)>0,LARGE(B77:B86,8),"") ->  | C95: =IF(LARGE(C77:C86,8)>0,LARGE(C77:C86,8),"") ->  | D95: =IF(LARGE(D77:D86,8)>0,LARGE(D77:D86,8),"") ->  | E95: =IF(LARGE(E77:E86,8)>0,LARGE(E77:E86,8),"") ->  | F95: =IF(LARGE(F77:F86,8)>0,LARGE(F77:F86,8),"") ->  | I95: 8 | J95: 0 | K95: 0 | L95: 0 | M95: 0 | N95: 0
B96: =IF(LARGE(B77:B86,9)>0,LARGE(B77:B86,9),"") ->  | C96: =IF(LARGE(C77:C86,9)>0,LARGE(C77:C86,9),"") ->  | D96: =IF(LARGE(D77:D86,9)>0,LARGE(D77:D86,9),"") ->  | E96: =IF(LARGE(E77:E86,9)>0,LARGE(E77:E86,9),"") ->  | F96: =IF(LARGE(F77:F86,9)>0,LARGE(F77:F86,9),"") ->  | I96: 9 | J96: 0 | K96: 0 | L96: 0 | M96: 0 | N96: 0
B97: =IF(LARGE(B77:B86,10)>0,LARGE(B77:B86,10),"") ->  | C97: =IF(LARGE(C77:C86,10)>0,LARGE(C77:C86,10),"") ->  | D97: =IF(LARGE(D77:D86,10)>0,LARGE(D77:D86,10),"") ->  | E97: =IF(LARGE(E77:E86,10)>0,LARGE(E77:E86,10),"") ->  | F97: =IF(LARGE(F77:F86,10)>0,LARGE(F77:F86,10),"") ->  | I97: 10 | J97: 0 | K97: 0 | L97: 0 | M97: 0 | N97: 0
I98: 11 | J98: 0 | K98: 0 | L98: 0 | M98: 0 | N98: 0
I99: 12 | J99: 0 | K99: 0 | L99: 0 | M99: 0 | N99: 0
I100: 13 | J100: 0 | K100: 0 | L100: 0 | M100: 0 | N100: 0
I101: 14 | J101: 0 | K101: 0 | L101: 0 | M101: 0 | N101: 0
I102: 15 | J102: 0 | K102: 0 | L102: 0 | M102: 0 | N102: 0
B103: 1 | C103: =COUNTIF($B$88:$F$91,B103) -> 1 | I103: 16 | J103: 1 | K103: 1 | L103: 0 | M103: 0 | N103: 0
B104: 2 | C104: =COUNTIF($B$88:$F$91,B104) -> 0 | I104: 17 | J104: 0 | K104: 0 | L104: 0 | M104: 0 | N104: 0
B105: 3 | C105: 0 | I105: 18 | J105: 0 | K105: 0 | L105: 0 | M105: 0 | N105: 0
B106: 4 | C106: 2
B107: 5 | C107: 1
B108: 6 | C108: 1
B109: 7 | C109: 4 | I109: =VLOOKUP(K109,$L$109:$N$126,3,FALSE) -> 4 | J109: =VLOOKUP(K109,$L$109:$M$126,2,FALSE) -> 7 | K109: =LARGE($L$109:$L$126,M109) -> 407 | L109: =N109*100+M109 -> 101 | M109: 1 | N109: =C103 -> 1
B110: 8 | C110: 0 | I110: =VLOOKUP(K110,$L$109:$N$126,3,FALSE) -> 3 | J110: =VLOOKUP(K110,$L$109:$M$126,2,FALSE) -> 16 | K110: =LARGE($L$109:$L$126,M110) -> 316 | L110: =N110*100+M110 -> 2 | M110: 2 | N110: =C104 -> 0
B111: 9 | C111: 2 | I111: 3 | J111: 13 | K111: 313 | L111: 3 | M111: 3 | N111: 0
B112: 10 | C112: 0 | I112: 2 | J112: 9 | K112: 209 | L112: 204 | M112: 4 | N112: 2
B113: 11 | C113: 1 | I113: 2 | J113: 4 | K113: 204 | L113: 105 | M113: 5 | N113: 1
B114: 12 | C114: 1 | I114: 1 | J114: 12 | K114: 112 | L114: 106 | M114: 6 | N114: 1
B115: 13 | C115: 3 | I115: 1 | J115: 11 | K115: 111 | L115: 407 | M115: 7 | N115: 4
B116: 14 | C116: 0 | I116: 1 | J116: 6 | K116: 106 | L116: 8 | M116: 8 | N116: 0
B117: 15 | C117: 0 | I117: 1 | J117: 5 | K117: 105 | L117: 209 | M117: 9 | N117: 2
B118: 16 | C118: 3 | I118: 1 | J118: 1 | K118: 101 | L118: 10 | M118: 10 | N118: 0
B119: 17 | C119: 0 | I119: 0 | J119: 18 | K119: 18 | L119: 111 | M119: 11 | N119: 1
B120: 18 | C120: 0 | I120: 0 | J120: 17 | K120: 17 | L120: 112 | M120: 12 | N120: 1
I121: 0 | J121: 15 | K121: 15 | L121: 313 | M121: 13 | N121: 3
I122: 0 | J122: 14 | K122: 14 | L122: 14 | M122: 14 | N122: 0
I123: 0 | J123: 10 | K123: 10 | L123: 15 | M123: 15 | N123: 0
I124: 0 | J124: 8 | K124: 8 | L124: 316 | M124: 16 | N124: 3
I125: 0 | J125: 3 | K125: 3 | L125: 17 | M125: 17 | N125: 0
I126: 0 | J126: 2 | K126: 2 | L126: 18 | M126: 18 | N126: 0

Sheet Feuil2
B1: ='PRONO MATRICIEL'!N22 -> 0 | C1: ='PRONO MATRICIEL'!O22 -> 0 | D1: ='PRONO MATRICIEL'!P22 -> 0 | E1: ='PRONO MATRICIEL'!Q22 -> 0 | F1: ='PRONO MATRICIEL'!R22 -> 0
B4: 2 | C4: 11 | D4: 8 | E4: 4 | F4: 5 | H4: 1 | I4: 13 | J4: 11 | K4: 8 | L4: 2 | N4: 11 | O4: 2 | P4: 13 | Q4: 7 | R4: 10 | T4: 13 | U4: 11 | V4: 16 | W4: 6 | X4: 7 | Z4: 8 | AA4: 8 | AB4: 3 | AC4: 2 | AD4: 13 | AF4: 12 | AG4: 13 | AH4: 16 | AI4: 3 | AJ4: 14 | AL4: 1 | AM4: 10 | AN4: 8 | AO4: 12 | AP4: 15 | AR4: 5 | AS4: 12 | AT4: 1 | AU4: 8 | AV4: 6 | AX4: 3 | AY4: 11 | AZ4: 9 | BA4: 12 | BB4: 8 | BD4: 8 | BE4: 1 | BF4: 4 | BG4: 2 | BH4: 14
B5: 4 | C5: 12 | D5: 8 | E5: 13 | F5: 14 | H5: 9 | I5: 7 | J5: 5 | K5: 6 | L5: 2 | N5: 1 | O5: 2 | P5: 5 | Q5: 14 | R5: 9 | T5: 8 | U5: 14 | V5: 2 | W5: 6 | X5: 3 | Z5: 11 | AA5: 1 | AB5: 3 | AC5: 14 | AD5: 16 | AF5: 9 | AG5: 8 | AH5: 13 | AI5: 2 | AJ5: 1 | AL5: 8 | AM5: 11 | AN5: 3 | AO5: 13 | AP5: 2 | AR5: 9 | AS5: 7 | AT5: 16 | AU5: 10 | AV5: 11 | AX5: 4 | AY5: 13 | AZ5: 2 | BA5: 16 | BB5: 12 | BD5: 5 | BE5: 8 | BF5: 2 | BG5: 14 | BH5: 9
B6: 7 | C6: 1 | D6: 10 | E6: 5 | F6: 11 | H6: 6 | I6: 7 | J6: 14 | K6: 11 | L6: 10 | N6: 15 | O6: 13 | P6: 3 | Q6: 9 | R6: 7 | T6: 14 | U6: 8 | V6: 5 | W6: 2 | X6: 16 | Z6: 10 | AA6: 1 | AB6: 14 | AC6: 5 | AD6: 16 | AF6: 1 | AG6: 13 | AH6: 12 | AI6: 3 | AJ6: 6 | AL6: 11 | AM6: 2 | AN6: 3 | AO6: 12 | AP6: 13 | AR6: 7 | AS6: 1 | AT6: 14 | AU6: 4 | AV6: 6 | AX6: 5 | AY6: 11 | AZ6: 3 | BA6: 14 | BB6: 4 | BD6: 3 | BE6: 1 | BF6: 4 | BG6: 14 | BH6: 11
B7: 14 | C7: 8 | D7: 7 | E7: 10 | F7: 16 | H7: 16 | I7: 7 | J7: 8 | K7: 2 | L7: 15 | N7: 14 | O7: 12 | P7: 10 | Q7: 1 | R7: 13 | T7: 2 | U7: 12 | V7: 8 | W7: 11 | X7: 5 | Z7: 4 | AA7: 3 | AB7: 14 | AC7: 12 | AD7: 7 | AF7: 11 | AG7: 16 | AH7: 1 | AI7: 9 | AJ7: 5 | AL7: 11 | AM7: 14 | AN7: 1 | AO7: 8 | AP7: 13 | AR7: 3 | AS7: 10 | AT7: 14 | AU7: 5 | AV7: 8 | AX7: 16 | AY7: 5 | AZ7: 7 | BA7: 6 | BB7: 13 | BD7: 1 | BE7: 2 | BF7: 3 | BG7: 6 | BH7: 14
B8: 12 | C8: 11 | D8: 14 | E8: 8 | F8: 7 | H8: 1 | I8: 6 | J8: 13 | K8: 14 | L8: 16 | N8: 14 | O8: 7 | P8: 11 | Q8: 1 | R8: 8 | T8: 13 | U8: 9 | V8: 16 | W8: 6 | X8: 11 | Z8: 11 | AA8: 16 | AB8: 8 | AC8: 1 | AD8: 2 | AF8: 10 | AG8: 1 | AH8: 13 | AI8: 3 | AJ8: 4 | AL8: 8 | AM8: 5 | AN8: 3 | AO8: 1 | AP8: 16 | AR8: 9 | AS8: 14 | AT8: 8 | AU8: 2 | AV8: 6 | AX8: 3 | AY8: 6 | AZ8: 12 | BA8: 8 | BB8: 8 | BD8: 2 | BE8: 8 | BF8: 5 | BG8: 16 | BH8: 9
B9: 14 | C9: 4 | D9: 7 | E9: 5 | F9: 12 | H9: 14 | I9: 7 | J9: 5 | K9: 16 | L9: 12 | N9: 16 | O9: 10 | P9: 1 | Q9: 11 | R9: 15 | T9: 5 | U9: 14 | V9: 1 | W9: 11 | X9: 13 | Z9: 5 | AA9: 9 | AB9: 12 | AC9: 1 | AD9: 16 | AF9: 6 | AG9: 11 | AH9: 3 | AI9: 8 | AJ9: 10 | AL9: 6 | AM9: 7 | AN9: 11 | AO9: 13 | AP9: 9 | AR9: 13 | AS9: 8 | AT9: 7 | AU9: 9 | AV9: 3 | AX9: 2 | AY9: 11 | AZ9: 4 | BA9: 9 | BB9: 12 | BD9: 3 | BE9: 16 | BF9: 2 | BG9: 1 | BH9: 8
B10: 11 | C10: 14 | D10: 7 | E10: 16 | F10: 12 | H10: 8 | I10: 6 | J10: 11 | K10: 13 | L10: 9 | N10: 2 | O10: 3 | P10: 5 | Q10: 11 | R10: 10 | T10: 16 | U10: 4 | V10: 1 | W10: 2 | X10: 14 | Z10: 11 | AA10: 7 | AB10: 8 | AC10: 3 | AD10: 14 | AF10: 8 | AG10: 16 | AH10: 6 | AI10: 1 | AJ10: 9 | AL10: 2 | AM10: 5 | AN10: 13 | AO10: 6 | AP10: 9 | AR10: 4 | AS10: 3 | AT10: 2 | AU10: 9 | AV10: 8 | AX10: 16 | AY10: 5 | AZ10: 7 | BA10: 11 | BB10: 3 | BD10: 1 | BE10: 12 | BF10: 7 | BG10: 13 | BH10: 8
B11: 8 | C11: 14 | D11: 12 | E11: 1 | F11: 13 | H11: 6 | I11: 2 | J11: 9 | K11: 3 | L11: 14 | N11: 16 | O11: 4 | P11: 11 | Q11: 2 | R11: 7 | T11: 16 | U11: 12 | V11: 8 | W11: 3 | X11: 5 | Z11: 1 | AA11: 12 | AB11: 9 | AC11: 16 | AD11: 5 | AF11: 16 | AG11: 5 | AH11: 12 | AI11: 13 | AJ11: 2 | AL11: 7 | AM11: 3 | AN11: 11 | AO11: 10 | AP11: 4 | AR11: 9 | AS11: 8 | AT11: 8 | AU11: 14 | AV11: 13 | AX11: 7 | AY11: 16 | AZ11: 9 | BA11: 13 | BB11: 11 | BD11: 7 | BE11: 9 | BF11: 13 | BG11: 3 | BH11: 16
B12: 12 | C12: 6 | D12: 2 | E12: 13 | F12: 16 | H12: 3 | I12: 4 | J12: 5 | K12: 1 | L12: 11 | N12: 5 | O12: 12 | P12: 9 | Q12: 7 | R12: 11 | T12: 2 | U12: 16 | V12: 1 | W12: 14 | X12: 13 | Z12: 16 | AA12: 13 | AB12: 2 | AC12: 6 | AD12: 7 | AF12: 8 | AG12: 10 | AH12: 6 | AI12: 4 | AJ12: 7 | AL12: 7 | AM12: 5 | AN12: 1 | AO12: 13 | AP12: 8 | AR12: 2 | AS12: 1 | AT12: 14 | AU12: 8 | AV12: 12 | AX12: 11 | AY12: 6 | AZ12: 2 | BA12: 4 | BB12: 1 | BD12: 8 | BE12: 13 | BF12: 5 | BG12: 4 | BH12: 3
B13: 6 | C13: 13 | D13: 14 | E13: 16 | F13: 9 | H13: 14 | I13: 2 | J13: 11 | K13: 9 | L13: 13 | N13: 4 | O13: 5 | P13: 8 | Q13: 11 | R13: 2 | T13: 14 | U13: 11 | V13: 2 | W13: 4 | X13: 12 | Z13: 1 | AA13: 7 | AB13: 8 | AC13: 6 | AD13: 12 | AF13: 5 | AG13: 2 | AH13: 8 | AI13: 3 | AJ13: 16 | AL13: 4 | AM13: 12 | AN13: 9 | AO13: 10 | AP13: 3 | AR13: 3 | AS13: 9 | AT13: 1 | AU13: 11 | AV13: 16 | AX13: 11 | AY13: 9 | AZ13: 1 | BA13: 16 | BB13: 14 | BD13: 16 | BE13: 9 | BF13: 7 | BG13: 1 | BH13: 3
B14: 13 | C14: 14 | D14: 2 | E14: 8 | F14: 7 | H14: 11 | I14: 6 | J14: 2 | K14: 8 | L14: 16 | N14: 7 | O14: 13 | P14: 8 | Q14: 5 | R14: 2 | T14: 4 | U14: 2 | V14: 6 | W14: 9 | X14: 12 | Z14: 14 | AA14: 16 | AB14: 3 | AC14: 7 | AD14: 2 | AF14: 1 | AG14: 11 | AH14: 3 | AI14: 16 | AJ14: 4 | AL14: 5 | AM14: 6 | AN14: 7 | AO14: 14 | AP14: 12 | AR14: 2 | AS14: 3 | AT14: 11 | AU14: 1 | AV14: 13 | AX14: 1 | AY14: 9 | AZ14: 3 | BA14: 14 | BB14: 8 | BD14: 7 | BE14: 11 | BF14: 3 | BG14: 13 | BH14: 10
B15: 9 | C15: 7 | D15: 1 | E15: 6 | F15: 10 | H15: 7 | I15: 14 | J15: 6 | K15: 3 | L15: 8 | N15: 7 | O15: 4 | P15: 14 | Q15: 3 | R15: 10 | T15: 16 | U15: 11 | V15: 8 | W15: 13 | X15: 12 | Z15: 1 | AA15: 11 | AB15: 16 | AC15: 8 | AD15: 7 | AF15: 13 | AG15: 9 | AH15: 1 | AI15: 8 | AJ15: 5 | AL15: 8 | AM15: 6 | AN15: 4 | AO15: 7 | AP15: 2 | AR15: 1 | AS15: 12 | AT15: 7 | AU15: 13 | AV15: 11 | AX15: 5 | AY15: 3 | AZ15: 1 | BA15: 11 | BB15: 10 | BD15: 3 | BE15: 12 | BF15: 2 | BG15: 4 | BH15: 7
B16: 2 | C16: 10 | D16: 11 | E16: 13 | F16: 8 | H16: 3 | I16: 16 | J16: 10 | K16: 11 | L16: 14 | N16: 10 | O16: 3 | P16: 9 | Q16: 14 | R16: 8 | T16: 3 | U16: 4 | V16: 9 | W16: 15 | X16: 7 | Z16: 16 | AA16: 11 | AB16: 3 | AC16: 15 | AD16: 12 | AF16: 2 | AG16: 11 | AH16: 12 | AI16: 5 | AJ16: 14 | AL16: 13 | AM16: 2 | AN16: 12 | AO16: 3 | AP16: 14 | AR16: 9 | AS16: 1 | AT16: 4 | AU16: 16 | AV16: 12 | AX16: 16 | AY16: 11 | AZ16: 4 | BA16: 1 | BB16: 8 | BD16: 12 | BE16: 8 | BF16: 16 | BG16: 7 | BH16: 9
B17: 5 | C17: 3 | D17: 2 | E17: 11 | F17: 14 | H17: 2 | I17: 11 | J17: 1 | K17: 13 | L17: 9 | N17: 7 | O17: 13 | P17: 5 | Q17: 15 | R17: 2 | T17: 13 | U17: 5 | V17: 3 | W17: 10 | X17: 1 | Z17: 13 | AA17: 11 | AB17: 5 | AC17: 3 | AD17: 9 | AF17: 14 | AG17: 13 | AH17: 11 | AI17: 6 | AJ17: 1 | AL17: 14 | AM17: 9 | AN17: 13 | AO17: 4 | AP17: 12 | AR17: 16 | AS17: 4 | AT17: 11 | AU17: 14 | AV17: 1 | AX17: 3 | AY17: 5 | AZ17: 14 | BA17: 8 | BB17: 1 | BD17: 5 | BE17: 14 | BF17: 16 | BG17: 11 | BH17: 7
B18: 6 | C18: 16 | D18: 5 | E18: 8 | F18: 4 | H18: 4 | I18: 8 | J18: 7 | K18: 13 | L18: 16 | N18: 2 | O18: 3 | P18: 14 | Q18: 11 | R18: 16 | T18: 12 | U18: 11 | V18: 10 | W18: 6 | X18: 3 | Z18: 7 | AA18: 8 | AB18: 5 | AC18: 12 | AD18: 9 | AF18: 11 | AG18: 7 | AH18: 16 | AI18: 13 | AJ18: 9 | AL18: 12 | AM18: 1 | AN18: 8 | AO18: 14 | AP18: 5 | AR18: 13 | AS18: 1 | AT18: 11 | AU18: 2 | AV18: 16 | AX18: 1 | AY18: 15 | AZ18: 8 | BA18: 3 | BB18: 16 | BD18: 13 | BE18: 11 | BF18: 5 | BG18: 8 | BH18: 3
B19: 7 | C19: 1 | D19: 2 | E19: 12 | F19: 6 | H19: 6 | I19: 8 | J19: 5 | K19: 3 | L19: 14 | N19: 1 | O19: 5 | P19: 6 | Q19: 3 | R19: 7 | T19: 7 | U19: 16 | V19: 14 | W19: 13 | X19: 1 | Z19: 14 | AA19: 11 | AB19: 16 | AC19: 8 | AD19: 2 | AF19: 14 | AG19: 3 | AH19: 16 | AI19: 7 | AJ19: 10 | AL19: 16 | AM19: 12 | AN19: 1 | AO19: 15 | AP19: 13 | AR19: 16 | AS19: 9 | AT19: 12 | AU19: 8 | AV19: 6 | AX19: 2 | AY19: 7 | AZ19: 10 | BA19: 12 | BB19: 8 | BD19: 10 | BE19: 8 | BF19: 5 | BG19: 3 | BH19: 11
B20: 2 | C20: 9 | D20: 4 | E20: 8 | F20: 12 | H20: 2 | I20: 8 | J20: 9 | K20: 12 | L20: 1 | N20: 1 | O20: 2 | P20: 14 | Q20: 7 | R20: 12 | T20: 4 | U20: 13 | V20: 8 | W20: 3 | X20: 9 | Z20: 1 | AA20: 16 | AB20: 2 | AC20: 3 | AD20: 14 | AF20: 16 | AG20: 10 | AH20: 14 | AI20: 2 | AJ20: 12 | AL20: 6 | AM20: 15 | AN20: 10 | AO20: 2 | AP20: 13 | AR20: 3 | AS20: 8 | AT20: 13 | AU20: 10 | AV20: 6 | AX20: 13 | AY20: 4 | AZ20: 3 | BA20: 10 | BB20: 16 | BD20: 13 | BE20: 8 | BF20: 5 | BG20: 11 | BH20: 14
B21: 16 | C21: 13 | D21: 9 | E21: 7 | F21: 3 | H21: 7 | I21: 1 | J21: 2 | K21: 13 | L21: 8 | N21: 16 | O21: 13 | P21: 9 | Q21: 4 | R21: 12 | T21: 8 | U21: 13 | V21: 11 | W21: 14 | X21: 15 | Z21: 5 | AA21: 16 | AB21: 9 | AC21: 3 | AD21: 12 | AF21: 7 | AG21: 3 | AH21: 11 | AI21: 4 | AJ21: 13 | AL21: 13 | AM21: 14 | AN21: 8 | AO21: 11 | AP21: 9 | AR21: 11 | AS21: 4 | AT21: 13 | AU21: 5 | AV21: 10 | AX21: 3 | AY21: 13 | AZ21: 2 | BA21: 14 | BB21: 11 | BD21: 7 | BE21: 6 | BF21: 3 | BG21: 13 | BH21: 5
B22: 13 | C22: 11 | D22: 8 | E22: 2 | F22: 14 | H22: 8 | I22: 3 | J22: 4 | K22: 13 | L22: 9 | N22: 3 | O22: 5 | P22: 14 | Q22: 15 | R22: 13 | T22: 5 | U22: 10 | V22: 16 | W22: 8 | X22: 4 | Z22: 6 | AA22: 8 | AB22: 13 | AC22: 11 | AD22: 3 | AF22: 7 | AG22: 13 | AH22: 14 | AI22: 9 | AJ22: 8 | AL22: 3 | AM22: 13 | AN22: 6 | AO22: 16 | AP22: 11 | AR22: 13 | AS22: 4 | AT22: 12 | AU22: 1 | AV22: 11 | AX22: 6 | AY22: 1 | AZ22: 2 | BA22: 4 | BB22: 9 | BD22: 12 | BE22: 2 | BF22: 3 | BG22: 7 | BH22: 14
B23: 1 | C23: 12 | D23: 7 | E23: 14 | F23: 11 | H23: 7 | I23: 2 | J23: 11 | K23: 10 | L23: 14 | N23: 3 | O23: 8 | P23: 16 | Q23: 1 | R23: 4 | T23: 2 | U23: 16 | V23: 10 | W23: 4 | X23: 1 | Z23: 8 | AA23: 14 | AB23: 5 | AC23: 7 | AD23: 1 | AF23: 2 | AG23: 15 | AH23: 1 | AI23: 11 | AJ23: 5 | AL23: 13 | AM23: 2 | AN23: 6 | AO23: 9 | AP23: 8 | AR23: 11 | AS23: 14 | AT23: 3 | AU23: 4 | AV23: 8 | AX23: 1 | AY23: 5 | AZ23: 4 | BA23: 3 | BB23: 9 | BD23: 13 | BE23: 9 | BF23: 5 | BG23: 11 | BH23: 3
A27: MAX | B27: =MAX(B32:B49) -> 3 | C27: =MAX(C32:C49) -> 3 | D27: =MAX(D32:D49) -> 4 | E27: =MAX(E32:E49) -> 4 | F27: =MAX(F32:F49) -> 3 | H27: =MAX(H32:H49) -> 3 | I27: =MAX(I32:I49) -> 4 | J27: =MAX(J32:J49) -> 4 | K27: =MAX(K32:K49) -> 5 | L27: =MAX(L32:L49) -> 4 | N27: =MAX(N32:N49) -> 3 | O27: =MAX(O32:O49) -> 4 | P27: =MAX(P32:P49) -> 4 | Q27: =MAX(Q32:Q49) -> 4 | R27: =MAX(R32:R49) -> 3 | T27: =MAX(T32:T49) -> 3 | U27: =MAX(U32:U49) -> 4 | V27: =MAX(V32:V49) -> 4 | W27: =MAX(W32:W49) -> 4 | X27: =MAX(X32:X49) -> 3 | Z27: =MAX(Z32:Z49) -> 4 | AA27: =MAX(AA32:AA49) -> 4 | AB27: =MAX(AB32:AB49) -> 4 | AC27: =MAX(AC32:AC49) -> 4 | AD27: =MAX(AD32:AD49) -> 3 | AF27: =MAX(AF32:AF49) -> 2 | AG27: =MAX(AG32:AG49) -> 4 | AH27: =MAX(AH32:AH49) -> 3 | AI27: =MAX(AI32:AI49) -> 4 | AJ27: =MAX(AJ32:AJ49) -> 3 | AL27: =MAX(AL32:AL49) -> 3 | AM27: =MAX(AM32:AM49) -> 3 | AN27: =MAX(AN32:AN49) -> 3 | AO27: =MAX(AO32:AO49) -> 3 | AP27: =MAX(AP32:AP49) -> 4 | AR27: =MAX(AR32:AR49) -> 4 | AS27: =MAX(AS32:AS49) -> 4 | AT27: =MAX(AT32:AT49) -> 3 | AU27: =MAX(AU32:AU49) -> 3 | AV27: =MAX(AV32:AV49) -> 5 | AX27: =MAX(AX32:AX49) -> 4 | AY27: =MAX(AY32:AY49) -> 4 | AZ27: =MAX(AZ32:AZ49) -> 4 | BA27: =MAX(BA32:BA49) -> 3 | BB27: =MAX(BB32:BB49) -> 5 | BD27: =MAX(BD32:BD49) -> 3 | BE27: =MAX(BE32:BE49) -> 5 | BF27: =MAX(BF32:BF49) -> 6 | BG27: =MAX(BG32:BG49) -> 3 | BH27: =MAX(BH32:BH49) -> 4
A28: NBRE MAX | B28: =COUNTIF(B32:B49,B27) -> 1 | C28: =COUNTIF(C32:C49,C27) -> 2 | D28: 2 | E28: 1 | F28: 2 | H28: =COUNTIF(H32:H49,H27) -> 2 | I28: =COUNTIF(I32:I49,I27) -> 1 | J28: 2 | K28: 1 | L28: 1 | N28: =COUNTIF(N32:N49,N27) -> 3 | O28: =COUNTIF(O32:O49,O27) -> 1 | P28: 1 | Q28: 1 | R28: 3 | T28: =COUNTIF(T32:T49,T27) -> 3 | U28: =COUNTIF(U32:U49,U27) -> 1 | V28: 1 | W28: 1 | X28: 2 | Z28: =COUNTIF(Z32:Z49,Z27) -> 1 | AA28: =COUNTIF(AA32:AA49,AA27) -> 2 | AB28: 1 | AC28: 1 | AD28: 4 | AF28: =COUNTIF(AF32:AF49,AF27) -> 7 | AG28: =COUNTIF(AG32:AG49,AG27) -> 1 | AH28: 3 | AI28: 1 | AJ28: 1 | AL28: =COUNTIF(AL32:AL49,AL27) -> 2 | AM28: =COUNTIF(AM32:AM49,AM27) -> 2 | AN28: 3 | AO28: 1 | AP28: 1 | AR28: =COUNTIF(AR32:AR49,AR27) -> 1 | AS28: =COUNTIF(AS32:AS49,AS27) -> 1 | AT28: 2 | AU28: 1 | AV28: 1 | AX28: =COUNTIF(AX32:AX49,AX27) -> 1 | AY28: =COUNTIF(AY32:AY49,AY27) -> 2 | AZ28: 1 | BA28: 1 | BB28: 1 | BD28: =COUNTIF(BD32:BD49,BD27) -> 3 | BE28: =COUNTIF(BE32:BE49,BE27) -> 1 | BF28: 1 | BG28: 2 | BH28: 2
A29: CHEVAL MAX | B29: =IF(B28=1,VLOOKUP(B27,B32:$G$49,6,FALSE),0) -> 2 | C29: =IF(C28=1,VLOOKUP(C27,C32:$G$49,5,FALSE),0) -> 0 | D29: =IF(D28=1,VLOOKUP(D27,D32:$G$49,4,FALSE),0) -> 0 | E29: =IF(E28=1,VLOOKUP(E27,E32:$G$49,3,FALSE),0) -> 8 | F29: =IF(F28=1,VLOOKUP(F27,F32:$G$49,2,FALSE),0) -> 0 | H29: =IF(H28=1,VLOOKUP(H27,H32:$M$49,6,FALSE),0) -> 0 | I29: =IF(I28=1,VLOOKUP(I27,I32:$M$49,5,FALSE),0) -> 7 | J29: =IF(J28=1,VLOOKUP(J27,J32:$M$49,4,FALSE),0) -> 0 | K29: =IF(K28=1,VLOOKUP(K27,K32:$M$49,3,FALSE),0) -> 13 | L29: =IF(L28=1,VLOOKUP(L27,L32:$M$49,2,FALSE),0) -> 14 | N29: =IF(N28=1,VLOOKUP(N27,N32:$S$49,6,FALSE),0) -> 0 | O29: =IF(O28=1,VLOOKUP(O27,O32:$S$49,5,FALSE),0) -> 13 | P29: =IF(P28=1,VLOOKUP(P27,P32:$S$49,4,FALSE),0) -> 14 | Q29: =IF(Q28=1,VLOOKUP(Q27,Q32:$S$49,3,FALSE),0) -> 11 | R29: =IF(R28=1,VLOOKUP(R27,R32:$S$49,2,FALSE),0) -> 0 | T29: =IF(T28=1,VLOOKUP(T27,T32:$Y$49,6,FALSE),0) -> 0 | U29: =IF(U28=1,VLOOKUP(U27,U32:$Y$49,5,FALSE),0) -> 11 | V29: =IF(V28=1,VLOOKUP(V27,V32:$Y$49,4,FALSE),0) -> 8 | W29: =IF(W28=1,VLOOKUP(W27,W32:$Y$49,3,FALSE),0) -> 6 | X29: =IF(X28=1,VLOOKUP(X27,X32:$Y$49,2,FALSE),0) -> 0 | Z29: =IF(Z28=1,VLOOKUP(Z27,Z32:$AE$49,6,FALSE),0) -> 1 | AA29: =IF(AA28=1,VLOOKUP(AA27,AA32:$AE$49,5,FALSE),0) -> 0 | AB29: =IF(AB28=1,VLOOKUP(AB27,AB32:$AE$49,4,FALSE),0) -> 3 | AC29: =IF(AC28=1,VLOOKUP(AC27,AC32:$AE$49,3,FALSE),0) -> 3 | AD29: =IF(AD28=1,VLOOKUP(AD27,AD32:$AE$49,2,FALSE),0) -> 0 | AF29: =IF(AF28=1,VLOOKUP(AF27,AF32:$AK$49,6,FALSE),0) -> 0 | AG29: =IF(AG28=1,VLOOKUP(AG27,AG32:$AK$49,5,FALSE),0) -> 13 | AH29: =IF(AH28=1,VLOOKUP(AH27,AH32:$AK$49,4,FALSE),0) -> 0 | AI29: =IF(AI28=1,VLOOKUP(AI27,AI32:$AK$49,3,FALSE),0) -> 3 | AJ29: =IF(AJ28=1,VLOOKUP(AJ27,AJ32:$AK$49,2,FALSE),0) -> 5 | AL29: =IF(AL28=1,VLOOKUP(AL27,AL32:$AQ$49,6,FALSE),0) -> 0 | AM29: =IF(AM28=1,VLOOKUP(AM27,AM32:$AQ$49,5,FALSE),0) -> 0 | AN29: =IF(AN28=1,VLOOKUP(AN27,AN32:$AQ$49,4,FALSE),0) -> 0 | AO29: =IF(AO28=1,VLOOKUP(AO27,AO32:$AQ$49,3,FALSE),0) -> 13 | AP29: =IF(AP28=1,VLOOKUP(AP27,AP32:$AQ$49,2,FALSE),0) -> 13 | AR29: =IF(AR28=1,VLOOKUP(AR27,AR32:$AW$49,6,FALSE),0) -> 9 | AS29: =IF(AS28=1,VLOOKUP(AS27,AS32:$AW$49,5,FALSE),0) -> 1 | AT29: =IF(AT28=1,VLOOKUP(AT27,AT32:$AW$49,4,FALSE),0) -> 0 | AU29: =IF(AU28=1,VLOOKUP(AU27,AU32:$AW$49,3,FALSE),0) -> 8 | AV29: =IF(AV28=1,VLOOKUP(AV27,AV32:$AW$49,2,FALSE),0) -> 6 | AX29: =IF(AX28=1,VLOOKUP(AX27,AX32:$BC$49,6,FALSE),0) -> 3 | AY29: =IF(AY28=1,VLOOKUP(AY27,AY32:$BC$49,5,FALSE),0) -> 0 | AZ29: =IF(AZ28=1,VLOOKUP(AZ27,AZ32:$BC$49,4,FALSE),0) -> 2 | BA29: =IF(BA28=1,VLOOKUP(BA27,BA32:$BC$49,3,FALSE),0) -> 14 | BB29: =IF(BB28=1,VLOOKUP(BB27,BB32:$BC$49,2,FALSE),0) -> 8 | BD29: =IF(BD28=1,VLOOKUP(BD27,BD32:$BI$49,6,FALSE),0) -> 0 | BE29: =IF(BE28=1,VLOOKUP(BE27,BE32:$BI$49,5,FALSE),0) -> 8 | BF29: =IF(BF28=1,VLOOKUP(BF27,BF32:$BI$49,4,FALSE),0) -> 5 | BG29: =IF(BG28=1,VLOOKUP(BG27,BG32:$BI$49,3,FALSE),0) -> 0 | BH29: =IF(BH28=1,VLOOKUP(BH27,BH32:$BI$49,2,FALSE),0) -> 0
A32: 1 | B32: =COUNTIF(B$4:B$23,1) -> 1 | C32: =COUNTIF(C$4:C$23,1) -> 2 | D32: 1 | E32: 1 | F32: 0 | G32: 1 | H32: =COUNTIF(H$4:H$23,1) -> 2 | I32: =COUNTIF(I$4:I$23,1) -> 1 | J32: 1 | K32: 1 | L32: 1 | M32: 1 | N32: =COUNTIF(N$4:N$23,1) -> 3 | O32: =COUNTIF(O$4:O$23,1) -> 0 | P32: 1 | Q32: 3 | R32: 0 | S32: 1 | T32: =COUNTIF(T$4:T$23,1) -> 0 | U32: =COUNTIF(U$4:U$23,1) -> 0 | V32: 3 | W32: 0 | X32: 3 | Y32: 1 | Z32: =COUNTIF(Z$4:Z$23,1) -> 4 | AA32: =COUNTIF(AA$4:AA$23,1) -> 2 | AB32: 0 | AC32: 2 | AD32: 1 | AE32: 1 | AF32: =COUNTIF(AF$4:AF$23,1) -> 2 | AG32: =COUNTIF(AG$4:AG$23,1) -> 1 | AH32: 3 | AI32: 1 | AJ32: 2 | AK32: 1 | AL32: =COUNTIF(AL$4:AL$23,1) -> 1 | AM32: =COUNTIF(AM$4:AM$23,1) -> 1 | AN32: 3 | AO32: 1 | AP32: 0 | AQ32: 1 | AR32: =COUNTIF(AR$4:AR$23,1) -> 1 | AS32: =COUNTIF(AS$4:AS$23,1) -> 4 | AT32: 2 | AU32: 2 | AV32: 1 | AW32: 1 | AX32: =COUNTIF(AX$4:AX$23,1) -> 3 | AY32: =COUNTIF(AY$4:AY$23,1) -> 1 | AZ32: 2 | BA32: 1 | BB32: 2 | BC32: 1 | BD32: =COUNTIF(BD$4:BD$23,1) -> 2 | BE32: =COUNTIF(BE$4:BE$23,1) -> 2 | BF32: 0 | BG32: 2 | BH32: 0 | BI32: 1
A33: 2 | B33: =COUNTIF(B$4:B$23,2) -> 3 | C33: =COUNTIF(C$4:C$23,2) -> 0 | D33: 4 | E33: 1 | F33: 0 | G33: 2 | H33: =COUNTIF(H$4:H$23,2) -> 2 | I33: =COUNTIF(I$4:I$23,2) -> 3 | J33: 2 | K33: 1 | L33: 2 | M33: 2 | N33: =COUNTIF(N$4:N$23,2) -> 2 | O33: =COUNTIF(O$4:O$23,2) -> 3 | P33: 0 | Q33: 1 | R33: 3 | S33: 2 | T33: =COUNTIF(T$4:T$23,2) -> 3 | U33: =COUNTIF(U$4:U$23,2) -> 1 | V33: 2 | W33: 2 | X33: 0 | Y33: 2 | Z33: =COUNTIF(Z$4:Z$23,2) -> 0 | AA33: =COUNTIF(AA$4:AA$23,2) -> 0 | AB33: 2 | AC33: 1 | AD33: 3 | AE33: 2 | AF33: =COUNTIF(AF$4:AF$23,2) -> 2 | AG33: =COUNTIF(AG$4:AG$23,2) -> 1 | AH33: 0 | AI33: 2 | AJ33: 1 | AK33: 2 | AL33: =COUNTIF(AL$4:AL$23,2) -> 1 | AM33: =COUNTIF(AM$4:AM$23,2) -> 3 | AN33: 0 | AO33: 1 | AP33: 2 | AQ33: 2 | AR33: =COUNTIF(AR$4:AR$23,2) -> 2 | AS33: =COUNTIF(AS$4:AS$23,2) -> 0 | AT33: 1 | AU33: 2 | AV33: 0 | AW33: 2 | AX33: =COUNTIF(AX$4:AX$23,2) -> 2 | AY33: =COUNTIF(AY$4:AY$23,2) -> 0 | AZ33: 4 | BA33: 0 | BB33: 0 | BC33: 2 | BD33: =COUNTIF(BD$4:BD$23,2) -> 1 | BE33: =COUNTIF(BE$4:BE$23,2) -> 2 | BF33: 3 | BG33: 1 | BH33: 0 | BI33: 2
A34: 3 | B34: =COUNTIF(B$4:B$23,3) -> 0 | C34: =COUNTIF(C$4:C$23,3) -> 1 | D34: 0 | E34: 0 | F34: 1 | G34: 3 | H34: =COUNTIF(H$4:H$23,3) -> 2 | I34: =COUNTIF(I$4:I$23,3) -> 1 | J34: 0 | K34: 3 | L34: 0 | M34: 3 | N34: =COUNTIF(N$4:N$23,3) -> 2 | O34: =COUNTIF(O$4:O$23,3) -> 3 | P34: 1 | Q34: 2 | R34: 0 | S34: 3 | T34: =COUNTIF(T$4:T$23,3) -> 1 | U34: =COUNTIF(U$4:U$23,3) -> 0 | V34: 1 | W34: 2 | X34: 2 | Y34: 3 | Z34: =COUNTIF(Z$4:Z$23,3) -> 0 | AA34: =COUNTIF(AA$4:AA$23,3) -> 1 | AB34: 4 | AC34: 4 | AD34: 1 | AE34: 3 | AF34: =COUNTIF(AF$4:AF$23,3) -> 0 | AG34: =COUNTIF(AG$4:AG$23,3) -> 2 | AH34: 2 | AI34: 4 | AJ34: 0 | AK34: 3 | AL34: =COUNTIF(AL$4:AL$23,3) -> 1 | AM34: =COUNTIF(AM$4:AM$23,3) -> 1 | AN34: 3 | AO34: 1 | AP34: 1 | AQ34: 3 | AR34: =COUNTIF(AR$4:AR$23,3) -> 3 | AS34: =COUNTIF(AS$4:AS$23,3) -> 2 | AT34: 1 | AU34: 0 | AV34: 1 | AW34: 3 | AX34: =COUNTIF(AX$4:AX$23,3) -> 4 | AY34: =COUNTIF(AY$4:AY$23,3) -> 1 | AZ34: 3 | BA34: 2 | BB34: 1 | BC34: 3 | BD34: =COUNTIF(BD$4:BD$23,3) -> 3 | BE34: =COUNTIF(BE$4:BE$23,3) -> 0 | BF34: 4 | BG34: 2 | BH34: 4 | BI34: 3
A35: 4 | B35: =COUNTIF(B$4:B$23,4) -> 1 | C35: =COUNTIF(C$4:C$23,4) -> 1 | D35: 1 | E35: 1 | F35: 1 | G35: 4 | H35: =COUNTIF(H$4:H$23,4) -> 1 | I35: =COUNTIF(I$4:I$23,4) -> 1 | J35: 1 | K35: 0 | L35: 0 | M35: 4 | N35: =COUNTIF(N$4:N$23,4) -> 1 | O35: =COUNTIF(O$4:O$23,4) -> 2 | P35: 0 | Q35: 1 | R35: 1 | S35: 4 | T35: =COUNTIF(T$4:T$23,4) -> 2 | U35: =COUNTIF(U$4:U$23,4) -> 2 | V35: 0 | W35: 2 | X35: 1 | Y35: 4 | Z35: =COUNTIF(Z$4:Z$23,4) -> 1 | AA35: =COUNTIF(AA$4:AA$23,4) -> 0 | AB35: 0 | AC35: 0 | AD35: 0 | AE35: 4 | AF35: =COUNTIF(AF$4:AF$23,4) -> 0 | AG35: =COUNTIF(AG$4:AG$23,4) -> 0 | AH35: 0 | AI35: 2 | AJ35: 2 | AK35: 4 | AL35: =COUNTIF(AL$4:AL$23,4) -> 1 | AM35: =COUNTIF(AM$4:AM$23,4) -> 0 | AN35: 1 | AO35: 1 | AP35: 1 | AQ35: 4 | AR35: =COUNTIF(AR$4:AR$23,4) -> 1 | AS35: =COUNTIF(AS$4:AS$23,4) -> 3 | AT35: 1 | AU35: 2 | AV35: 0 | AW35: 4 | AX35: =COUNTIF(AX$4:AX$23,4) -> 1 | AY35: =COUNTIF(AY$4:AY$23,4) -> 1 | AZ35: 3 | BA35: 2 | BB35: 1 | BC35: 4 | BD35: =COUNTIF(BD$4:BD$23,4) -> 0 | BE35: =COUNTIF(BE$4:BE$23,4) -> 0 | BF35: 2 | BG35: 2 | BH35: 0 | BI35: 4
A36: 5 | B36: =COUNTIF(B$4:B$23,5) -> 1 | C36: =COUNTIF(C$4:C$23,5) -> 0 | D36: 1 | E36: 2 | F36: 1 | G36: 5 | H36: =COUNTIF(H$4:H$23,5) -> 0 | I36: =COUNTIF(I$4:I$23,5) -> 0 | J36: 4 | K36: 0 | L36: 0 | M36: 5 | N36: =COUNTIF(N$4:N$23,5) -> 1 | O36: =COUNTIF(O$4:O$23,5) -> 3 | P36: 3 | Q36: 1 | R36: 0 | S36: 5 | T36: =COUNTIF(T$4:T$23,5) -> 2 | U36: =COUNTIF(U$4:U$23,5) -> 1 | V36: 1 | W36: 0 | X36: 2 | Y36: 5 | Z36: =COUNTIF(Z$4:Z$23,5) -> 2 | AA36: =COUNTIF(AA$4:AA$23,5) -> 0 | AB36: 3 | AC36: 1 | AD36: 1 | AE36: 5 | AF36: =COUNTIF(AF$4:AF$23,5) -> 1 | AG36: =COUNTIF(AG$4:AG$23,5) -> 1 | AH36: 0 | AI36: 1 | AJ36: 3 | AK36: 5 | AL36: =COUNTIF(AL$4:AL$23,5) -> 1 | AM36: =COUNTIF(AM$4:AM$23,5) -> 3 | AN36: 0 | AO36: 0 | AP36: 1 | AQ36: 5 | AR36: =COUNTIF(AR$4:AR$23,5) -> 1 | AS36: =COUNTIF(AS$4:AS$23,5) -> 0 | AT36: 0 | AU36: 2 | AV36: 0 | AW36: 5 | AX36: =COUNTIF(AX$4:AX$23,5) -> 2 | AY36: =COUNTIF(AY$4:AY$23,5) -> 4 | AZ36: 0 | BA36: 0 | BB36: 0 | BC36: 5 | BD36: =COUNTIF(BD$4:BD$23,5) -> 2 | BE36: =COUNTIF(BE$4:BE$23,5) -> 0 | BF36: 6 | BG36: 0 | BH36: 1 | BI36: 5
A37: 6 | B37: =COUNTIF(B$4:B$23,6) -> 2 | C37: =COUNTIF(C$4:C$23,6) -> 1 | D37: 0 | E37: 1 | F37: 1 | G37: 6 | H37: =COUNTIF(H$4:H$23,6) -> 3 | I37: =COUNTIF(I$4:I$23,6) -> 3 | J37: 1 | K37: 1 | L37: 0 | M37: 6 | N37: =COUNTIF(N$4:N$23,6) -> 0 | O37: =COUNTIF(O$4:O$23,6) -> 0 | P37: 1 | Q37: 0 | R37: 0 | S37: 6 | T37: =COUNTIF(T$4:T$23,6) -> 0 | U37: =COUNTIF(U$4:U$23,6) -> 0 | V37: 1 | W37: 4 | X37: 0 | Y37: 6 | Z37: =COUNTIF(Z$4:Z$23,6) -> 1 | AA37: =COUNTIF(AA$4:AA$23,6) -> 0 | AB37: 0 | AC37: 2 | AD37: 0 | AE37: 6 | AF37: =COUNTIF(AF$4:AF$23,6) -> 1 | AG37: =COUNTIF(AG$4:AG$23,6) -> 0 | AH37: 2 | AI37: 1 | AJ37: 1 | AK37: 6 | AL37: =COUNTIF(AL$4:AL$23,6) -> 2 | AM37: =COUNTIF(AM$4:AM$23,6) -> 2 | AN37: 2 | AO37: 1 | AP37: 0 | AQ37: 6 | AR37: =COUNTIF(AR$4:AR$23,6) -> 0 | AS37: =COUNTIF(AS$4:AS$23,6) -> 0 | AT37: 0 | AU37: 0 | AV37: 5 | AW37: 6 | AX37: =COUNTIF(AX$4:AX$23,6) -> 1 | AY37: =COUNTIF(AY$4:AY$23,6) -> 2 | AZ37: 0 | BA37: 1 | BB37: 0 | BC37: 6 | BD37: =COUNTIF(BD$4:BD$23,6) -> 0 | BE37: =COUNTIF(BE$4:BE$23,6) -> 1 | BF37: 0 | BG37: 1 | BH37: 0 | BI37: 6
A38: 7 | B38: =COUNTIF(B$4:B$23,7) -> 2 | C38: =COUNTIF(C$4:C$23,7) -> 1 | D38: 4 | E38: 1 | F38: 2 | G38: 7 | H38: =COUNTIF(H$4:H$23,7) -> 3 | I38: =COUNTIF(I$4:I$23,7) -> 4 | J38: 1 | K38: 0 | L38: 0 | M38: 7 | N38: =COUNTIF(N$4:N$23,7) -> 3 | O38: =COUNTIF(O$4:O$23,7) -> 1 | P38: 0 | Q38: 3 | R38: 3 | S38: 7 | T38: =COUNTIF(T$4:T$23,7) -> 1 | U38: =COUNTIF(U$4:U$23,7) -> 0 | V38: 0 | W38: 0 | X38: 2 | Y38: 7 | Z38: =COUNTIF(Z$4:Z$23,7) -> 1 | AA38: =COUNTIF(AA$4:AA$23,7) -> 2 | AB38: 0 | AC38: 2 | AD38: 3 | AE38: 7 | AF38: =COUNTIF(AF$4:AF$23,7) -> 2 | AG38: =COUNTIF(AG$4:AG$23,7) -> 1 | AH38: 0 | AI38: 1 | AJ38: 1 | AK38: 7 | AL38: =COUNTIF(AL$4:AL$23,7) -> 2 | AM38: =COUNTIF(AM$4:AM$23,7) -> 1 | AN38: 1 | AO38: 1 | AP38: 0 | AQ38: 7 | AR38: =COUNTIF(AR$4:AR$23,7) -> 1 | AS38: =COUNTIF(AS$4:AS$23,7) -> 1 | AT38: 2 | AU38: 0 | AV38: 0 | AW38: 7 | AX38: =COUNTIF(AX$4:AX$23,7) -> 1 | AY38: =COUNTIF(AY$4:AY$23,7) -> 1 | AZ38: 2 | BA38: 0 | BB38: 0 | BC38: 7 | BD38: =COUNTIF(BD$4:BD$23,7) -> 3 | BE38: =COUNTIF(BE$4:BE$23,7) -> 0 | BF38: 2 | BG38: 2 | BH38: 2 | BI38: 7
A39: 8 | B39: =COUNTIF(B$4:B$23,8) -> 1 | C39: =COUNTIF(C$4:C$23,8) -> 1 | D39: 3 | E39: 4 | F39: 1 | G39: 8 | H39: =COUNTIF(H$4:H$23,8) -> 2 | I39: =COUNTIF(I$4:I$23,8) -> 3 | J39: 1 | K39: 2 | L39: 2 | M39: 8 | N39: =COUNTIF(N$4:N$23,8) -> 0 | O39: =COUNTIF(O$4:O$23,8) -> 1 | P39: 2 | Q39: 0 | R39: 2 | S39: 8 | T39: =COUNTIF(T$4:T$23,8) -> 2 | U39: =COUNTIF(U$4:U$23,8) -> 1 | V39: 4 | W39: 1 | X39: 0 | Y39: 8 | Z39: =COUNTIF(Z$4:Z$23,8) -> 2 | AA39: =COUNTIF(AA$4:AA$23,8) -> 3 | AB39: 3 | AC39: 2 | AD39: 0 | AE39: 8 | AF39: =COUNTIF(AF$4:AF$23,8) -> 2 | AG39: =COUNTIF(AG$4:AG$23,8) -> 1 | AH39: 1 | AI39: 2 | AJ39: 1 | AK39: 8 | AL39: =COUNTIF(AL$4:AL$23,8) -> 3 | AM39: =COUNTIF(AM$4:AM$23,8) -> 0 | AN39: 3 | AO39: 1 | AP39: 2 | AQ39: 8 | AR39: =COUNTIF(AR$4:AR$23,8) -> 0 | AS39: =COUNTIF(AS$4:AS$23,8) -> 3 | AT39: 2 | AU39: 3 | AV39: 3 | AW39: 8 | AX39: =COUNTIF(AX$4:AX$23,8) -> 0 | AY39: =COUNTIF(AY$4:AY$23,8) -> 0 | AZ39: 1 | BA39: 2 | BB39: 5 | BC39: 8 | BD39: =COUNTIF(BD$4:BD$23,8) -> 2 | BE39: =COUNTIF(BE$4:BE$23,8) -> 5 | BF39: 0 | BG39: 1 | BH39: 2 | BI39: 8
A40: 9 | B40: =COUNTIF(B$4:B$23,9) -> 1 | C40: =COUNTIF(C$4:C$23,9) -> 1 | D40: 1 | E40: 0 | F40: 1 | G40: 9 | H40: =COUNTIF(H$4:H$23,9) -> 1 | I40: =COUNTIF(I$4:I$23,9) -> 0 | J40: 2 | K40: 1 | L40: 3 | M40: 9 | N40: =COUNTIF(N$4:N$23,9) -> 0 | O40: =COUNTIF(O$4:O$23,9) -> 0 | P40: 3 | Q40: 1 | R40: 1 | S40: 9 | T40: =COUNTIF(T$4:T$23,9) -> 0 | U40: =COUNTIF(U$4:U$23,9) -> 1 | V40: 1 | W40: 1 | X40: 1 | Y40: 9 | Z40: =COUNTIF(Z$4:Z$23,9) -> 0 | AA40: =COUNTIF(AA$4:AA$23,9) -> 1 | AB40: 2 | AC40: 0 | AD40: 2 | AE40: 9 | AF40: =COUNTIF(AF$4:AF$23,9) -> 1 | AG40: =COUNTIF(AG$4:AG$23,9) -> 1 | AH40: 0 | AI40: 2 | AJ40: 2 | AK40: 9 | AL40: =COUNTIF(AL$4:AL$23,9) -> 0 | AM40: =COUNTIF(AM$4:AM$23,9) -> 1 | AN40: 1 | AO40: 1 | AP40: 3 | AQ40: 9 | AR40: =COUNTIF(AR$4:AR$23,9) -> 4 | AS40: =COUNTIF(AS$4:AS$23,9) -> 2 | AT40: 0 | AU40: 2 | AV40: 0 | AW40: 9 | AX40: =COUNTIF(AX$4:AX$23,9) -> 0 | AY40: =COUNTIF(AY$4:AY$23,9) -> 2 | AZ40: 2 | BA40: 1 | BB40: 2 | BC40: 9 | BD40: =COUNTIF(BD$4:BD$23,9) -> 0 | BE40: =COUNTIF(BE$4:BE$23,9) -> 3 | BF40: 0 | BG40: 0 | BH40: 3 | BI40: 9
A41: 10 | B41: =COUNTIF(B$4:B$23,10) -> 0 | C41: =COUNTIF(C$4:C$23,10) -> 1 | D41: 1 | E41: 1 | F41: 1 | G41: 10 | H41: =COUNTIF(H$4:H$23,10) -> 0 | I41: =COUNTIF(I$4:I$23,10) -> 0 | J41: 1 | K41: 1 | L41: 1 | M41: 10 | N41: =COUNTIF(N$4:N$23,10) -> 1 | O41: =COUNTIF(O$4:O$23,10) -> 1 | P41: 1 | Q41: 0 | R41: 3 | S41: 10 | T41: =COUNTIF(T$4:T$23,10) -> 0 | U41: =COUNTIF(U$4:U$23,10) -> 1 | V41: 2 | W41: 1 | X41: 0 | Y41: 10 | Z41: =COUNTIF(Z$4:Z$23,10) -> 1 | AA41: =COUNTIF(AA$4:AA$23,10) -> 0 | AB41: 0 | AC41: 0 | AD41: 0 | AE41: 10 | AF41: =COUNTIF(AF$4:AF$23,10) -> 1 | AG41: =COUNTIF(AG$4:AG$23,10) -> 2 | AH41: 0 | AI41: 0 | AJ41: 2 | AK41: 10 | AL41: =COUNTIF(AL$4:AL$23,10) -> 0 | AM41: =COUNTIF(AM$4:AM$23,10) -> 1 | AN41: 1 | AO41: 2 | AP41: 0 | AQ41: 10 | AR41: =COUNTIF(AR$4:AR$23,10) -> 0 | AS41: =COUNTIF(AS$4:AS$23,10) -> 1 | AT41: 0 | AU41: 2 | AV41: 1 | AW41: 10 | AX41: =COUNTIF(AX$4:AX$23,10) -> 0 | AY41: =COUNTIF(AY$4:AY$23,10) -> 0 | AZ41: 1 | BA41: 1 | BB41: 1 | BC41: 10 | BD41: =COUNTIF(BD$4:BD$23,10) -> 1 | BE41: =COUNTIF(BE$4:BE$23,10) -> 0 | BF41: 0 | BG41: 0 | BH41: 1 | BI41: 10
A42: 11 | B42: =COUNTIF(B$4:B$23,11) -> 1 | C42: =COUNTIF(C$4:C$23,11) -> 3 | D42: 1 | E42: 1 | F42: 2 | G42: 11 | H42: =COUNTIF(H$4:H$23,11) -> 1 | I42: =COUNTIF(I$4:I$23,11) -> 1 | J42: 4 | K42: 2 | L42: 1 | M42: 11 | N42: =COUNTIF(N$4:N$23,11) -> 1 | O42: =COUNTIF(O$4:O$23,11) -> 0 | P42: 2 | Q42: 4 | R42: 1 | S42: 11 | T42: =COUNTIF(T$4:T$23,11) -> 0 | U42: =COUNTIF(U$4:U$23,11) -> 4 | V42: 1 | W42: 2 | X42: 1 | Y42: 11 | Z42: =COUNTIF(Z$4:Z$23,11) -> 3 | AA42: =COUNTIF(AA$4:AA$23,11) -> 4 | AB42: 0 | AC42: 1 | AD42: 0 | AE42: 11 | AF42: =COUNTIF(AF$4:AF$23,11) -> 2 | AG42: =COUNTIF(AG$4:AG$23,11) -> 3 | AH42: 2 | AI42: 1 | AJ42: 0 | AK42: 11 | AL42: =COUNTIF(AL$4:AL$23,11) -> 2 | AM42: =COUNTIF(AM$4:AM$23,11) -> 1 | AN42: 2 | AO42: 1 | AP42: 1 | AQ42: 11 | AR42: =COUNTIF(AR$4:AR$23,11) -> 2 | AS42: =COUNTIF(AS$4:AS$23,11) -> 0 | AT42: 3 | AU42: 1 | AV42: 3 | AW42: 11 | AX42: =COUNTIF(AX$4:AX$23,11) -> 2 | AY42: =COUNTIF(AY$4:AY$23,11) -> 4 | AZ42: 0 | BA42: 2 | BB42: 2 | BC42: 11 | BD42: =COUNTIF(BD$4:BD$23,11) -> 0 | BE42: =COUNTIF(BE$4:BE$23,11) -> 2 | BF42: 0 | BG42: 3 | BH42: 2 | BI42: 11
A43: 12 | B43: =COUNTIF(B$4:B$23,12) -> 2 | C43: =COUNTIF(C$4:C$23,12) -> 2 | D43: 1 | E43: 1 | F43: 3 | G43: 12 | H43: =COUNTIF(H$4:H$23,12) -> 0 | I43: =COUNTIF(I$4:I$23,12) -> 0 | J43: 0 | K43: 1 | L43: 1 | M43: 12 | N43: =COUNTIF(N$4:N$23,12) -> 0 | O43: =COUNTIF(O$4:O$23,12) -> 2 | P43: 0 | Q43: 0 | R43: 2 | S43: 12 | T43: =COUNTIF(T$4:T$23,12) -> 1 | U43: =COUNTIF(U$4:U$23,12) -> 2 | V43: 0 | W43: 0 | X43: 3 | Y43: 12 | Z43: =COUNTIF(Z$4:Z$23,12) -> 0 | AA43: =COUNTIF(AA$4:AA$23,12) -> 1 | AB43: 1 | AC43: 2 | AD43: 3 | AE43: 12 | AF43: =COUNTIF(AF$4:AF$23,12) -> 1 | AG43: =COUNTIF(AG$4:AG$23,12) -> 0 | AH43: 3 | AI43: 0 | AJ43: 1 | AK43: 12 | AL43: =COUNTIF(AL$4:AL$23,12) -> 1 | AM43: =COUNTIF(AM$4:AM$23,12) -> 2 | AN43: 1 | AO43: 2 | AP43: 2 | AQ43: 12 | AR43: =COUNTIF(AR$4:AR$23,12) -> 0 | AS43: =COUNTIF(AS$4:AS$23,12) -> 2 | AT43: 2 | AU43: 0 | AV43: 2 | AW43: 12 | AX43: =COUNTIF(AX$4:AX$23,12) -> 0 | AY43: =COUNTIF(AY$4:AY$23,12) -> 0 | AZ43: 1 | BA43: 2 | BB43: 2 | BC43: 12 | BD43: =COUNTIF(BD$4:BD$23,12) -> 2 | BE43: =COUNTIF(BE$4:BE$23,12) -> 2 | BF43: 0 | BG43: 0 | BH43: 0 | BI43: 12
A44: 13 | B44: =COUNTIF(B$4:B$23,13) -> 2 | C44: =COUNTIF(C$4:C$23,13) -> 2 | D44: 0 | E44: 3 | F44: 1 | G44: 13 | H44: =COUNTIF(H$4:H$23,13) -> 0 | I44: =COUNTIF(I$4:I$23,13) -> 1 | J44: 1 | K44: 5 | L44: 1 | M44: 13 | N44: =COUNTIF(N$4:N$23,13) -> 0 | O44: =COUNTIF(O$4:O$23,13) -> 4 | P44: 1 | Q44: 0 | R44: 2 | S44: 13 | T44: =COUNTIF(T$4:T$23,13) -> 3 | U44: =COUNTIF(U$4:U$23,13) -> 2 | V44: 0 | W44: 2 | X44: 2 | Y44: 13 | Z44: =COUNTIF(Z$4:Z$23,13) -> 1 | AA44: =COUNTIF(AA$4:AA$23,13) -> 1 | AB44: 1 | AC44: 0 | AD44: 1 | AE44: 13 | AF44: =COUNTIF(AF$4:AF$23,13) -> 1 | AG44: =COUNTIF(AG$4:AG$23,13) -> 4 | AH44: 2 | AI44: 2 | AJ44: 1 | AK44: 13 | AL44: =COUNTIF(AL$4:AL$23,13) -> 3 | AM44: =COUNTIF(AM$4:AM$23,13) -> 1 | AN44: 2 | AO44: 3 | AP44: 4 | AQ44: 13 | AR44: =COUNTIF(AR$4:AR$23,13) -> 3 | AS44: =COUNTIF(AS$4:AS$23,13) -> 0 | AT44: 2 | AU44: 1 | AV44: 2 | AW44: 13 | AX44: =COUNTIF(AX$4:AX$23,13) -> 1 | AY44: =COUNTIF(AY$4:AY$23,13) -> 2 | AZ44: 0 | BA44: 1 | BB44: 1 | BC44: 13 | BD44: =COUNTIF(BD$4:BD$23,13) -> 3 | BE44: =COUNTIF(BE$4:BE$23,13) -> 1 | BF44: 1 | BG44: 3 | BH44: 0 | BI44: 13
A45: 14 | B45: =COUNTIF(B$4:B$23,14) -> 2 | C45: =COUNTIF(C$4:C$23,14) -> 3 | D45: 2 | E45: 1 | F45: 3 | G45: 14 | H45: =COUNTIF(H$4:H$23,14) -> 2 | I45: =COUNTIF(I$4:I$23,14) -> 1 | J45: 1 | K45: 1 | L45: 4 | M45: 14 | N45: =COUNTIF(N$4:N$23,14) -> 2 | O45: =COUNTIF(O$4:O$23,14) -> 0 | P45: 4 | Q45: 2 | R45: 0 | S45: 14 | T45: =COUNTIF(T$4:T$23,14) -> 2 | U45: =COUNTIF(U$4:U$23,14) -> 2 | V45: 1 | W45: 2 | X45: 1 | Y45: 14 | Z45: =COUNTIF(Z$4:Z$23,14) -> 2 | AA45: =COUNTIF(AA$4:AA$23,14) -> 1 | AB45: 2 | AC45: 1 | AD45: 2 | AE45: 14 | AF45: =COUNTIF(AF$4:AF$23,14) -> 2 | AG45: =COUNTIF(AG$4:AG$23,14) -> 0 | AH45: 2 | AI45: 0 | AJ45: 2 | AK45: 14 | AL45: =COUNTIF(AL$4:AL$23,14) -> 1 | AM45: =COUNTIF(AM$4:AM$23,14) -> 2 | AN45: 0 | AO45: 2 | AP45: 1 | AQ45: 14 | AR45: =COUNTIF(AR$4:AR$23,14) -> 0 | AS45: =COUNTIF(AS$4:AS$23,14) -> 2 | AT45: 3 | AU45: 2 | AV45: 0 | AW45: 14 | AX45: =COUNTIF(AX$4:AX$23,14) -> 0 | AY45: =COUNTIF(AY$4:AY$23,14) -> 0 | AZ45: 1 | BA45: 3 | BB45: 1 | BC45: 14 | BD45: =COUNTIF(BD$4:BD$23,14) -> 0 | BE45: =COUNTIF(BE$4:BE$23,14) -> 1 | BF45: 0 | BG45: 2 | BH45: 4 | BI45: 14
A46: 15 | B46: =COUNTIF(B$4:B$23,15) -> 0 | C46: =COUNTIF(C$4:C$23,15) -> 0 | D46: 0 | E46: 0 | F46: 0 | G46: 15 | H46: =COUNTIF(H$4:H$23,15) -> 0 | I46: =COUNTIF(I$4:I$23,15) -> 0 | J46: 0 | K46: 0 | L46: 1 | M46: 15 | N46: =COUNTIF(N$4:N$23,15) -> 1 | O46: =COUNTIF(O$4:O$23,15) -> 0 | P46: 0 | Q46: 2 | R46: 1 | S46: 15 | T46: =COUNTIF(T$4:T$23,15) -> 0 | U46: =COUNTIF(U$4:U$23,15) -> 0 | V46: 0 | W46: 1 | X46: 1 | Y46: 15 | Z46: =COUNTIF(Z$4:Z$23,15) -> 0 | AA46: =COUNTIF(AA$4:AA$23,15) -> 0 | AB46: 0 | AC46: 1 | AD46: 0 | AE46: 15 | AF46: =COUNTIF(AF$4:AF$23,15) -> 0 | AG46: =COUNTIF(AG$4:AG$23,15) -> 1 | AH46: 0 | AI46: 0 | AJ46: 0 | AK46: 15 | AL46: =COUNTIF(AL$4:AL$23,15) -> 0 | AM46: =COUNTIF(AM$4:AM$23,15) -> 1 | AN46: 0 | AO46: 1 | AP46: 1 | AQ46: 15 | AR46: =COUNTIF(AR$4:AR$23,15) -> 0 | AS46: =COUNTIF(AS$4:AS$23,15) -> 0 | AT46: 0 | AU46: 0 | AV46: 0 | AW46: 15 | AX46: =COUNTIF(AX$4:AX$23,15) -> 0 | AY46: =COUNTIF(AY$4:AY$23,15) -> 1 | AZ46: 0 | BA46: 0 | BB46: 0 | BC46: 15 | BD46: =COUNTIF(BD$4:BD$23,15) -> 0 | BE46: =COUNTIF(BE$4:BE$23,15) -> 0 | BF46: 0 | BG46: 0 | BH46: 0 | BI46: 15
A47: 16 | B47: =COUNTIF(B$4:B$23,16) -> 1 | C47: =COUNTIF(C$4:C$23,16) -> 1 | D47: 0 | E47: 2 | F47: 2 | G47: 16 | H47: =COUNTIF(H$4:H$23,16) -> 1 | I47: =COUNTIF(I$4:I$23,16) -> 1 | J47: 0 | K47: 1 | L47: 3 | M47: 16 | N47: =COUNTIF(N$4:N$23,16) -> 3 | O47: =COUNTIF(O$4:O$23,16) -> 0 | P47: 1 | Q47: 0 | R47: 1 | S47: 16 | T47: =COUNTIF(T$4:T$23,16) -> 3 | U47: =COUNTIF(U$4:U$23,16) -> 3 | V47: 3 | W47: 0 | X47: 1 | Y47: 16 | Z47: =COUNTIF(Z$4:Z$23,16) -> 2 | AA47: =COUNTIF(AA$4:AA$23,16) -> 4 | AB47: 2 | AC47: 1 | AD47: 3 | AE47: 16 | AF47: =COUNTIF(AF$4:AF$23,16) -> 2 | AG47: =COUNTIF(AG$4:AG$23,16) -> 2 | AH47: 3 | AI47: 1 | AJ47: 1 | AK47: 16 | AL47: =COUNTIF(AL$4:AL$23,16) -> 1 | AM47: =COUNTIF(AM$4:AM$23,16) -> 0 | AN47: 0 | AO47: 1 | AP47: 1 | AQ47: 16 | AR47: =COUNTIF(AR$4:AR$23,16) -> 2 | AS47: =COUNTIF(AS$4:AS$23,16) -> 0 | AT47: 1 | AU47: 1 | AV47: 2 | AW47: 16 | AX47: =COUNTIF(AX$4:AX$23,16) -> 3 | AY47: =COUNTIF(AY$4:AY$23,16) -> 1 | AZ47: 0 | BA47: 2 | BB47: 2 | BC47: 16 | BD47: =COUNTIF(BD$4:BD$23,16) -> 1 | BE47: =COUNTIF(BE$4:BE$23,16) -> 1 | BF47: 2 | BG47: 1 | BH47: 1 | BI47: 16
A48: 17 | B48: =COUNTIF(B$4:B$23,17) -> 0 | C48: =COUNTIF(C$4:C$23,17) -> 0 | D48: 0 | E48: 0 | F48: 0 | G48: 17 | H48: =COUNTIF(H$4:H$23,17) -> 0 | I48: =COUNTIF(I$4:I$23,17) -> 0 | J48: 0 | K48: 0 | L48: 0 | M48: 17 | N48: =COUNTIF(N$4:N$23,17) -> 0 | O48: =COUNTIF(O$4:O$23,17) -> 0 | P48: 0 | Q48: 0 | R48: 0 | S48: 17 | T48: =COUNTIF(T$4:T$23,17) -> 0 | U48: =COUNTIF(U$4:U$23,17) -> 0 | V48: 0 | W48: 0 | X48: 0 | Y48: 17 | Z48: =COUNTIF(Z$4:Z$23,17) -> 0 | AA48: =COUNTIF(AA$4:AA$23,17) -> 0 | AB48: 0 | AC48: 0 | AD48: 0 | AE48: 17 | AF48: =COUNTIF(AF$4:AF$23,17) -> 0 | AG48: =COUNTIF(AG$4:AG$23,17) -> 0 | AH48: 0 | AI48: 0 | AJ48: 0 | AK48: 17 | AL48: =COUNTIF(AL$4:AL$23,17) -> 0 | AM48: =COUNTIF(AM$4:AM$23,17) -> 0 | AN48: 0 | AO48: 0 | AP48: 0 | AQ48: 17 | AR48: =COUNTIF(AR$4:AR$23,17) -> 0 | AS48: =COUNTIF(AS$4:AS$23,17) -> 0 | AT48: 0 | AU48: 0 | AV48: 0 | AW48: 17 | AX48: =COUNTIF(AX$4:AX$23,17) -> 0 | AY48: =COUNTIF(AY$4:AY$23,17) -> 0 | AZ48: 0 | BA48: 0 | BB48: 0 | BC48: 17 | BD48: =COUNTIF(BD$4:BD$23,17) -> 0 | BE48: =COUNTIF(BE$4:BE$23,17) -> 0 | BF48: 0 | BG48: 0 | BH48: 0 | BI48: 17
A49: 18 | B49: =COUNTIF(B$4:B$23,18) -> 0 | C49: =COUNTIF(C$4:C$23,18) -> 0 | D49: 0 | E49: 0 | F49: 0 | G49: 18 | H49: =COUNTIF(H$4:H$23,18) -> 0 | I49: =COUNTIF(I$4:I$23,18) -> 0 | J49: 0 | K49: 0 | L49: 0 | M49: 18 | N49: =COUNTIF(N$4:N$23,18) -> 0 | O49: =COUNTIF(O$4:O$23,18) -> 0 | P49: 0 | Q49: 0 | R49: 0 | S49: 18 | T49: =COUNTIF(T$4:T$23,18) -> 0 | U49: =COUNTIF(U$4:U$23,18) -> 0 | V49: 0 | W49: 0 | X49: 0 | Y49: 18 | Z49: =COUNTIF(Z$4:Z$23,18) -> 0 | AA49: =COUNTIF(AA$4:AA$23,18) -> 0 | AB49: 0 | AC49: 0 | AD49: 0 | AE49: 18 | AF49: =COUNTIF(AF$4:AF$23,18) -> 0 | AG49: =COUNTIF(AG$4:AG$23,18) -> 0 | AH49: 0 | AI49: 0 | AJ49: 0 | AK49: 18 | AL49: =COUNTIF(AL$4:AL$23,18) -> 0 | AM49: =COUNTIF(AM$4:AM$23,18) -> 0 | AN49: 0 | AO49: 0 | AP49: 0 | AQ49: 18 | AR49: =COUNTIF(AR$4:AR$23,18) -> 0 | AS49: =COUNTIF(AS$4:AS$23,18) -> 0 | AT49: 0 | AU49: 0 | AV49: 0 | AW49: 18 | AX49: =COUNTIF(AX$4:AX$23,18) -> 0 | AY49: =COUNTIF(AY$4:AY$23,18) -> 0 | AZ49: 0 | BA49: 0 | BB49: 0 | BC49: 18 | BD49: =COUNTIF(BD$4:BD$23,18) -> 0 | BE49: =COUNTIF(BE$4:BE$23,18) -> 0 | BF49: 0 | BG49: 0 | BH49: 0 | BI49: 18
B53: 1 | C53: 2 | D53: 3 | E53: 4 | F53: 5
B54: =B29 -> 2 | C54: =C29 -> 0 | D54: 0 | E54: 8 | F54: 0
B55: =H29 -> 0 | C55: =I29 -> 7 | D55: 0 | E55: 13 | F55: 14
B56: =N29 -> 0 | C56: =O29 -> 13 | D56: 14 | E56: 11 | F56: 0
B57: =T29 -> 0 | C57: =U29 -> 11 | D57: 8 | E57: 6 | F57: 0
B58: =Z29 -> 1 | C58: =AA29 -> 0 | D58: 3 | E58: 3 | F58: 0
B59: =AF29 -> 0 | C59: =AG29 -> 13 | D59: 0 | E59: 3 | F59: 5
B60: =AL29 -> 0 | C60: =AM29 -> 0 | D60: 0 | E60: 13 | F60: 13
B61: =AR29 -> 9 | C61: =AS29 -> 1 | D61: 0 | E61: 8 | F61: 6
B62: =AX29 -> 3 | C62: =AY29 -> 0 | D62: 2 | E62: 14 | F62: 8 | Q62: 1 | R62: 2 | S62: 3 | T62: 4 | U62: 5
B63: =BD29 -> 0 | C63: =BE29 -> 8 | D63: 5 | E63: 0 | F63: 0 | P63: 1 | Q63: =COUNTIF($B$66:$B$75,P63) -> 1 | R63: =COUNTIF($C$66:$C$75,P63) -> 1 | S63: =COUNTIF($D$66:$D$75,P63) -> 0 | T63: =COUNTIF($E$66:$E$75,P63) -> 0 | U63: =COUNTIF($F$66:$F$75,P63) -> 0 | V63: =IF(OR(Q63>1,R63>1,S63>1,T63>1,U63>1),P63,0) -> 0
P64: 2 | Q64: =COUNTIF($B$66:$B$75,P64) -> 1 | R64: =COUNTIF($C$66:$C$75,P64) -> 0 | S64: =COUNTIF($D$66:$D$75,P64) -> 1 | T64: =COUNTIF($E$66:$E$75,P64) -> 0 | U64: =COUNTIF($F$66:$F$75,P64) -> 0 | V64: =IF(OR(Q64>1,R64>1,S64>1,T64>1,U64>1),P64,0) -> 0
P65: 3 | Q65: 1 | R65: 0 | S65: 1 | T65: 2 | U65: 0 | V65: 3
B66: =LARGE(B54:B63,1) -> 9 | C66: =LARGE(C54:C63,1) -> 13 | D66: 14 | E66: 14 | F66: 14 | P66: 4 | Q66: 0 | R66: 0 | S66: 0 | T66: 0 | U66: 0 | V66: 0
B67: =LARGE(B54:B63,2) -> 3 | C67: =LARGE(C54:C63,2) -> 13 | D67: 8 | E67: 13 | F67: 13 | P67: 5 | Q67: 0 | R67: 0 | S67: 1 | T67: 0 | U67: 1 | V67: 0
B68: =LARGE(B54:B63,3) -> 2 | C68: =LARGE(C54:C63,3) -> 11 | D68: 5 | E68: 13 | F68: 8 | P68: 6 | Q68: 0 | R68: 0 | S68: 0 | T68: 1 | U68: 1 | V68: 0
B69: =LARGE(B54:B63,4) -> 1 | C69: =LARGE(C54:C63,4) -> 8 | D69: 3 | E69: 11 | F69: 6 | P69: 7 | Q69: 0 | R69: 1 | S69: 0 | T69: 0 | U69: 0 | V69: 0
B70: =LARGE(B54:B63,5) -> 0 | C70: =LARGE(C54:C63,5) -> 7 | D70: 2 | E70: 8 | F70: 5 | P70: 8 | Q70: 0 | R70: 1 | S70: 1 | T70: 2 | U70: 1 | V70: 8 | W70: =LARGE($V$63:$V$80,P70) -> 0
B71: =LARGE(B54:B63,6) -> 0 | C71: =LARGE(C54:C63,6) -> 1 | D71: 0 | E71: 8 | F71: 0 | P71: 9 | Q71: 1 | R71: 0 | S71: 0 | T71: 0 | U71: 0 | V71: 0 | W71: 0
B72: =LARGE(B54:B63,7) -> 0 | C72: =LARGE(C54:C63,7) -> 0 | D72: 0 | E72: 6 | F72: 0 | P72: 10 | Q72: 0 | R72: 0 | S72: 0 | T72: 0 | U72: 0 | V72: 0 | W72: 0
B73: =LARGE(B54:B63,8) -> 0 | C73: =LARGE(C54:C63,8) -> 0 | D73: 0 | E73: 3 | F73: 0 | P73: 11 | Q73: 0 | R73: 1 | S73: 0 | T73: 1 | U73: 0 | V73: 0 | W73: 0
B74: =LARGE(B54:B63,9) -> 0 | C74: =LARGE(C54:C63,9) -> 0 | D74: 0 | E74: 3 | F74: 0 | P74: 12 | Q74: 0 | R74: 0 | S74: 0 | T74: 0 | U74: 0 | V74: 0 | W74: 0
B75: =LARGE(B54:B63,10) -> 0 | C75: =LARGE(C54:C63,10) -> 0 | D75: 0 | E75: 0 | F75: 0 | P75: 13 | Q75: 0 | R75: 2 | S75: 0 | T75: 2 | U75: 1 | V75: 13 | W75: 0
P76: 14 | Q76: 0 | R76: 0 | S76: 1 | T76: 1 | U76: 1 | V76: 0 | W76: 0
B77: =IF(B66=B67,0,B66) -> 9 | C77: =IF(C66=C67,0,C66) -> 0 | D77: 14 | E77: 14 | F77: 14 | P77: 15 | Q77: 0 | R77: 0 | S77: 0 | T77: 0 | U77: 0 | V77: 0 | W77: 0
B78: =IF(B67=B68,0,B67) -> 3 | C78: 13 | D78: 8 | E78: 0 | F78: 13 | P78: 16 | Q78: 0 | R78: 0 | S78: 0 | T78: 0 | U78: 0 | V78: 0 | W78: 0
B79: 2 | C79: 11 | D79: 5 | E79: 13 | F79: 8 | P79: 17 | Q79: 0 | R79: 0 | S79: 0 | T79: 0 | U79: 0 | V79: 0 | W79: 0
B80: 1 | C80: 8 | D80: 3 | E80: 11 | F80: 6 | P80: 18 | Q80: 0 | R80: 0 | S80: 0 | T80: 0 | U80: 0 | V80: 0 | W80: 0
B81: 0 | C81: 7 | D81: 2 | E81: 0 | F81: 5
B82: 0 | C82: 1 | D82: 0 | E82: 8 | F82: 0
B83: 0 | C83: 0 | D83: 0 | E83: 6 | F83: 0 | J83: =RECAP!D36 -> 0 | K83: =RECAP!E36 -> 0 | L83: =RECAP!F36 -> 0 | M83: =RECAP!G36 -> 0 | N83: =RECAP!H36 -> 0
B84: 0 | C84: 0 | D84: 0 | E84: 0 | F84: 0
B85: 0 | C85: 0 | D85: 0 | E85: 3 | F85: 0
B86: 0 | C86: 0 | D86: 0 | E86: 0 | F86: 0
B88: =IF(LARGE(B77:B86,1)>0,LARGE(B77:B86,1),"") -> 9 | C88: =IF(LARGE(C77:C86,1)>0,LARGE(C77:C86,1),"") -> 13 | D88: =IF(LARGE(D77:D86,1)>0,LARGE(D77:D86,1),"") -> 14 | E88: =IF(LARGE(E77:E86,1)>0,LARGE(E77:E86,1),"") -> 14 | F88: =IF(LARGE(F77:F86,1)>0,LARGE(F77:F86,1),"") -> 14
B89: =IF(LARGE(B77:B86,2)>0,LARGE(B77:B86,2),"") -> 3 | C89: =IF(LARGE(C77:C86,2)>0,LARGE(C77:C86,2),"") -> 11 | D89: =IF(LARGE(D77:D86,2)>0,LARGE(D77:D86,2),"") -> 8 | E89: =IF(LARGE(E77:E86,2)>0,LARGE(E77:E86,2),"") -> 13 | F89: =IF(LARGE(F77:F86,2)>0,LARGE(F77:F86,2),"") -> 13
B90: =IF(LARGE(B77:B86,3)>0,LARGE(B77:B86,3),"") -> 2 | C90: =IF(LARGE(C77:C86,3)>0,LARGE(C77:C86,3),"") -> 8 | D90: =IF(LARGE(D77:D86,3)>0,LARGE(D77:D86,3),"") -> 5 | E90: =IF(LARGE(E77:E86,3)>0,LARGE(E77:E86,3),"") -> 11 | F90: =IF(LARGE(F77:F86,3)>0,LARGE(F77:F86,3),"") -> 8
B91: =IF(LARGE(B77:B86,4)>0,LARGE(B77:B86,4),"") -> 1 | C91: =IF(LARGE(C77:C86,4)>0,LARGE(C77:C86,4),"") -> 7 | D91: =IF(LARGE(D77:D86,4)>0,LARGE(D77:D86,4),"") -> 3 | E91: =IF(LARGE(E77:E86,4)>0,LARGE(E77:E86,4),"") -> 8 | F91: =IF(LARGE(F77:F86,4)>0,LARGE(F77:F86,4),"") -> 6
B92: =IF(LARGE(B77:B86,5)>0,LARGE(B77:B86,5),"") ->  | C92: =IF(LARGE(C77:C86,5)>0,LARGE(C77:C86,5),"") -> 1 | D92: =IF(LARGE(D77:D86,5)>0,LARGE(D77:D86,5),"") -> 2 | E92: =IF(LARGE(E77:E86,5)>0,LARGE(E77:E86,5),"") -> 6 | F92: =IF(LARGE(F77:F86,5)>0,LARGE(F77:F86,5),"") -> 5
B93: =IF(LARGE(B77:B86,6)>0,LARGE(B77:B86,6),"") ->  | C93: =IF(LARGE(C77:C86,6)>0,LARGE(C77:C86,6),"") ->  | D93: =IF(LARGE(D77:D86,6)>0,LARGE(D77:D86,6),"") ->  | E93: =IF(LARGE(E77:E86,6)>0,LARGE(E77:E86,6),"") -> 3 | F93: =IF(LARGE(F77:F86,6)>0,LARGE(F77:F86,6),"") -> 
B94: =IF(LARGE(B77:B86,7)>0,LARGE(B77:B86,7),"") ->  | C94: =IF(LARGE(C77:C86,7)>0,LARGE(C77:C86,7),"") ->  | D94: =IF(LARGE(D77:D86,7)>0,LARGE(D77:D86,7),"") ->  | E94: =IF(LARGE(E77:E86,7)>0,LARGE(E77:E86,7),"") ->  | F94: =IF(LARGE(F77:F86,7)>0,LARGE(F77:F86,7),"") -> 
B95: =IF(LARGE(B77:B86,8)>0,LARGE(B77:B86,8),"") ->  | C95: =IF(LARGE(C77:C86,8)>0,LARGE(C77:C86,8),"") ->  | D95: =IF(LARGE(D77:D86,8)>0,LARGE(D77:D86,8),"") ->  | E95: =IF(LARGE(E77:E86,8)>0,LARGE(E77:E86,8),"") ->  | F95: =IF(LARGE(F77:F86,8)>0,LARGE(F77:F86,8),"") -> 
B96: =IF(LARGE(B77:B86,9)>0,LARGE(B77:B86,9),"") ->  | C96: =IF(LARGE(C77:C86,9)>0,LARGE(C77:C86,9),"") ->  | D96: =IF(LARGE(D77:D86,9)>0,LARGE(D77:D86,9),"") ->  | E96: =IF(LARGE(E77:E86,9)>0,LARGE(E77:E86,9),"") ->  | F96: =IF(LARGE(F77:F86,9)>0,LARGE(F77:F86,9),"") -> 
B97: =IF(LARGE(B77:B86,10)>0,LARGE(B77:B86,10),"") ->  | C97: =IF(LARGE(C77:C86,10)>0,LARGE(C77:C86,10),"") ->  | D97: =IF(LARGE(D77:D86,10)>0,LARGE(D77:D86,10),"") ->  | E97: =IF(LARGE(E77:E86,10)>0,LARGE(E77:E86,10),"") ->  | F97: =IF(LARGE(F77:F86,10)>0,LARGE(F77:F86,10),"") -> 
B100: CHEVAUX | C100: CITATION PLACES
B101: =VLOOKUP(K109,$L$109:$M$126,2,FALSE) -> 8 | C101: =VLOOKUP(K109,$L$109:$N$126,3,FALSE) -> 4
B102: 14 | C102: 3
B103: 13 | C103: 3 | E103: =LARGE($V$63:$V$80,P63) -> 13
B104: 11 | C104: 2 | E104: 8
B105: 3 | C105: 2 | E105: 3
B106: 9 | C106: 1 | E106: 0
B107: 7 | C107: 1 | E107: 0
B108: 6 | C108: 1 | E108: 0
B109: 5 | C109: 1 | E109: 0 | I109: 1 | J109: =COUNTIF($B$88:$F$91,I109) -> 1 | K109: =LARGE($L$109:$L$126,M109) -> 408 | L109: =N109*100+M109 -> 101 | M109: 1 | N109: =J109 -> 1
B110: 2 | C110: 1 | I110: 2 | J110: =COUNTIF($B$88:$F$91,I110) -> 1 | K110: =LARGE($L$109:$L$126,M110) -> 314 | L110: =N110*100+M110 -> 102 | M110: 2 | N110: 1
B111: 1 | C111: 1 | I111: 3 | J111: 2 | K111: 313 | L111: 203 | M111: 3 | N111: 2
B112: 18 | C112: 0 | I112: 4 | J112: 0 | K112: 211 | L112: 4 | M112: 4 | N112: 0
B113: 17 | C113: 0 | I113: 5 | J113: 1 | K113: 203 | L113: 105 | M113: 5 | N113: 1
B114: 16 | C114: 0 | I114: 6 | J114: 1 | K114: 109 | L114: 106 | M114: 6 | N114: 1
B115: 15 | C115: 0 | I115: 7 | J115: 1 | K115: 107 | L115: 107 | M115: 7 | N115: 1
B116: 12 | C116: 0 | I116: 8 | J116: 4 | K116: 106 | L116: 408 | M116: 8 | N116: 4
B117: 10 | C117: 0 | I117: 9 | J117: 1 | K117: 105 | L117: 109 | M117: 9 | N117: 1
B118: 4 | C118: 0 | I118: 10 | J118: 0 | K118: 102 | L118: 10 | M118: 10 | N118: 0
I119: 11 | J119: 2 | K119: 101 | L119: 211 | M119: 11 | N119: 2
I120: 12 | J120: 0 | K120: 18 | L120: 12 | M120: 12 | N120: 0
I121: 13 | J121: 3 | K121: 17 | L121: 313 | M121: 13 | N121: 3
I122: 14 | J122: 3 | K122: 16 | L122: 314 | M122: 14 | N122: 3
B123: 1 | C123: =IF(AND(B32>0,H32>0,N32>0,T32>0,Z32>0,AF32>0,AL32>0,AR32>0,AX32>0,BD32>0),B123,0) -> 0 | D123: =IF(AND(C32>0,I32>0,O32>0,U32>0,AA32>0,AG32>0,AM32>0,AS32>0,AY32>0,BE32>0),B123,0) -> 0 | E123: =IF(AND(D32>0,J32>0,P32>0,V32>0,AB32>0,AH32>0,AN32>0,AT32>0,AZ32>0,BF32>0),B123,0) -> 0 | F123: =IF(AND(E32>0,K32>0,Q32>0,W32>0,AC32>0,AI32>0,AO32>0,AU32>0,BA32>0,BG32>0),B123,0) -> 0 | G123: =IF(AND(F32>0,L32>0,R32>0,X32>0,AD32>0,AJ32>0,AP32>0,AV32>0,BB32>0,BH32>0),B123,0) -> 0 | I123: 15 | J123: 0 | K123: 15 | L123: 15 | M123: 15 | N123: 0
B124: 2 | C124: =IF(AND(B33>0,H33>0,N33>0,T33>0,Z33>0,AF33>0,AL33>0,AR33>0,AX33>0,BD33>0),B124,0) -> 0 | D124: =IF(AND(C33>0,I33>0,O33>0,U33>0,AA33>0,AG33>0,AM33>0,AS33>0,AY33>0,BE33>0),B124,0) -> 0 | E124: =IF(AND(D33>0,J33>0,P33>0,V33>0,AB33>0,AH33>0,AN33>0,AT33>0,AZ33>0,BF33>0),B124,0) -> 0 | F124: =IF(AND(E33>0,K33>0,Q33>0,W33>0,AC33>0,AI33>0,AO33>0,AU33>0,BA33>0,BG33>0),B124,0) -> 0 | G124: =IF(AND(F33>0,L33>0,R33>0,X33>0,AD33>0,AJ33>0,AP33>0,AV33>0,BB33>0,BH33>0),B124,0) -> 0 | I124: 16 | J124: 0 | K124: 12 | L124: 16 | M124: 16 | N124: 0
B125: 3 | C125: 0 | D125: 0 | E125: 0 | F125: 0 | G125: 0 | I125: 17 | J125: 0 | K125: 10 | L125: 17 | M125: 17 | N125: 0
B126: 4 | C126: 0 | D126: 0 | E126: 0 | F126: 0 | G126: 0 | I126: 18 | J126: 0 | K126: 4 | L126: 18 | M126: 18 | N126: 0
B127: 5 | C127: 0 | D127: 0 | E127: 0 | F127: 0 | G127: 0
B128: 6 | C128: 0 | D128: 0 | E128: 0 | F128: 0 | G128: 0
B129: 7 | C129: 7 | D129: 0 | E129: 0 | F129: 0 | G129: 0
B130: 8 | C130: 0 | D130: 0 | E130: 0 | F130: 0 | G130: 0
B131: 9 | C131: 0 | D131: 0 | E131: 0 | F131: 0 | G131: 0
B132: 10 | C132: 0 | D132: 0 | E132: 0 | F132: 0 | G132: 0
B133: 11 | C133: 0 | D133: 0 | E133: 0 | F133: 11 | G133: 0
B134: 12 | C134: 0 | D134: 0 | E134: 0 | F134: 0 | G134: 0
B135: 13 | C135: 0 | D135: 0 | E135: 0 | F135: 0 | G135: 0
B136: 14 | C136: 0 | D136: 0 | E136: 0 | F136: 0 | G136: 0
B137: 15 | C137: 0 | D137: 0 | E137: 0 | F137: 0 | G137: 0
B138: 16 | C138: 16 | D138: 0 | E138: 0 | F138: 0 | G138: 16
B139: 17 | C139: 0 | D139: 0 | E139: 0 | F139: 0 | G139: 0
B140: 18 | C140: 0 | D140: 0 | E140: 0 | F140: 0 | G140: 0

Sheet Feuil3
B2: RESULTAT QUINTE+ | D2: =RECAP!D36 -> 0 | E2: =RECAP!E36 -> 0 | F2: =RECAP!F36 -> 0 | G2: =RECAP!G36 -> 0 | H2: =RECAP!H36 -> 0
B8: PLACE 1 | C8: PLACE 2 | D8: PLACE 3 | E8: PLACE 4 | F8: PLACE 5 | I8: PLACE 1 | J8: PLACE 2 | K8: PLACE 3 | L8: PLACE 4 | M8: PLACE 5 | P8: PLACE 1 | Q8: PLACE 2 | R8: PLACE 3 | S8: PLACE 4 | T8: PLACE 5 | W8: PLACE 1 | X8: PLACE 2 | Y8: PLACE 3 | Z8: PLACE 4 | AA8: PLACE 5 | AD8: PLACE 1 | AE8: PLACE 2 | AF8: PLACE 3 | AG8: PLACE 4 | AH8: PLACE 5 | AK8: PLACE 1 | AL8: PLACE 2 | AM8: PLACE 3 | AN8: PLACE 4 | AO8: PLACE 5 | AR8: PLACE 1 | AS8: PLACE 2 | AT8: PLACE 3 | AU8: PLACE 4 | AV8: PLACE 5 | AY8: PLACE 1 | AZ8: PLACE 2 | BA8: PLACE 3 | BB8: PLACE 4 | BC8: PLACE 5 | BF8: PLACE 1 | BG8: PLACE 2 | BH8: PLACE 3 | BI8: PLACE 4 | BJ8: PLACE 5 | BM8: PLACE 1 | BN8: PLACE 2 | BO8: PLACE 3 | BP8: PLACE 4 | BQ8: PLACE 5
B21: CHEVAUX | C21: CITATION PLACES | I21: CHEVAUX | J21: CITATION PLACES | P21: CHEVAUX | Q21: CITATION PLACES | W21: CHEVAUX | X21: CITATION PLACES | AD21: CHEVAUX | AE21: CITATION PLACES | AK21: CHEVAUX | AL21: CITATION PLACES | AR21: CHEVAUX | AS21: CITATION PLACES | AY21: CHEVAUX | AZ21: CITATION PLACES | BF21: CHEVAUX | BG21: CITATION PLACES | BM21: CHEVAUX | BN21: CITATION PLACES
B22: 11 | C22: 3 | I22: 16 | J22: 3 | P22: 7 | Q22: 4 | W22: 13 | X22: 4 | AD22: 16 | AE22: 3 | AK22: 13 | AL22: 4 | AR22: 9 | AS22: 3 | AY22: 8 | AZ22: 4 | BF22: 13 | BG22: 4 | BM22: 8 | BN22: 4 | BW22: =B22 -> 11 | BX22: =I22 -> 16 | BY22: =P22 -> 7 | BZ22: =W22 -> 13 | CA22: =AD22 -> 16 | CC22: =AK22 -> 13 | CD22: =AR22 -> 9 | CE22: =AY22 -> 8 | CF22: =BF22 -> 13 | CG22: =BM22 -> 8 | CJ22: 1 | CK22: =COUNTIF($BW$22:$CA$26,CJ22) -> 0 | CL22: =COUNTIF($CC$22:$CG$26,CJ22) -> 1 | CN22: =COUNTIF($BW$27:$CA$31,CJ22) -> 2 | CO22: =COUNTIF($CC$27:$CG$31,CJ22) -> 1 | CQ22: =COUNTIF($B$22:$B$32,CJ22)+COUNTIF($I$22:$I$32,CJ22)+COUNTIF($P$22:$P$32,CJ22)+COUNTIF($W$22:$W$32,CJ22)+COUNTIF($AD$22:$AD$32,CJ22)+COUNTIF($AK$22:$AK$32,CJ22)+COUNTIF($AR$22:$AR$32,CJ22)+COUNTIF($AY$22:$AY$32,CJ22)+COUNTIF($BF$22:$BF$32,CJ22)+COUNTIF($BM$22:$BM$32,CJ22) -> 5 | CT22: CHEVAUX | CU22: CITATION PLACES | CX22: =VLOOKUP(CZ22,$DA$22:$DC$39,3,FALSE) -> 10 | CY22: =VLOOKUP(CZ22,$DA$22:$DB$39,2,FALSE) -> 13 | CZ22: =LARGE($DA$22:$DA$39,DB22) -> 1013 | DA22: =DC22*100+DB22 -> 501 | DB22: 1 | DC22: =CQ22 -> 5
B23: 7 | C23: 3 | I23: 13 | J23: 3 | P23: 13 | Q23: 3 | W23: 12 | X23: 2 | AD23: 11 | AE23: 3 | AK23: 8 | AL23: 4 | AR23: 14 | AS23: 2 | AY23: 7 | AZ23: 4 | BF23: 8 | BG23: 4 | BM23: 14 | BN23: 3 | BW23: =B23 -> 7 | BX23: =I23 -> 13 | BY23: =P23 -> 13 | BZ23: =W23 -> 12 | CA23: =AD23 -> 11 | CC23: 8 | CD23: 14 | CE23: 7 | CF23: 8 | CG23: 14 | CJ23: 2 | CK23: =COUNTIF($BW$22:$CA$26,CJ23) -> 2 | CL23: =COUNTIF($CC$22:$CG$26,CJ23) -> 0 | CN23: =COUNTIF($BW$27:$CA$31,CJ23) -> 1 | CO23: =COUNTIF($CC$27:$CG$31,CJ23) -> 2 | CQ23: =COUNTIF($B$22:$B$32,CJ23)+COUNTIF($I$22:$I$32,CJ23)+COUNTIF($P$22:$P$32,CJ23)+COUNTIF($W$22:$W$32,CJ23)+COUNTIF($AD$22:$AD$32,CJ23)+COUNTIF($AK$22:$AK$32,CJ23)+COUNTIF($AR$22:$AR$32,CJ23)+COUNTIF($AY$22:$AY$32,CJ23)+COUNTIF($BF$22:$BF$32,CJ23)+COUNTIF($BM$22:$BM$32,CJ23) -> 5 | CT23: =CY22 -> 13 | CU23: =CX22 -> 10 | CX23: =VLOOKUP(CZ23,$DA$22:$DC$39,3,FALSE) -> 10 | CY23: =VLOOKUP(CZ23,$DA$22:$DB$39,2,FALSE) -> 11 | CZ23: =LARGE($DA$22:$DA$39,DB23) -> 1011 | DA23: =DC23*100+DB23 -> 502 | DB23: 2 | DC23: =CQ23 -> 5
B24: 2 | C24: 3 | E24: 11 | I24: 3 | J24: 3 | L24: 11 | P24: 11 | Q24: 3 | S24: 8 | W24: 11 | X24: 2 | Z24: 13 | AD24: 14 | AE24: 2 | AG24: 13 | AK24: 16 | AL24: 2 | AN24: 13 | AR24: 11 | AS24: 2 | AU24: 16 | AY24: 13 | AZ24: 3 | BB24: 13 | BF24: 11 | BG24: 2 | BI24: 13 | BM24: 13 | BN24: 3 | BP24: 13 | BW24: 2 | BX24: 3 | BY24: 11 | BZ24: 11 | CA24: 14 | CC24: 16 | CD24: 11 | CE24: 13 | CF24: 11 | CG24: 13 | CJ24: 3 | CK24: 3 | CL24: 3 | CN24: 0 | CO24: 2 | CQ24: 9 | CT24: =CY23 -> 11 | CU24: =CX23 -> 10 | CX24: 9 | CY24: 16 | CZ24: 916 | DA24: 903 | DB24: 3 | DC24: 9
B25: 13 | C25: 2 | E25: 8 | I25: 12 | J25: 2 | L25: 9 | P25: 2 | Q25: 3 | S25: 2 | W25: 8 | X25: 2 | Z25: 3 | AD25: 7 | AE25: 2 | AG25: 11 | AK25: 7 | AL25: 2 | AN25: 8 | AR25: 8 | AS25: 2 | AU25: 13 | AY25: 16 | AZ25: 2 | BB25: 11 | BF25: 3 | BG25: 2 | BI25: 8 | BM25: 11 | BN25: 2 | BP25: 8 | BW25: 13 | BX25: 12 | BY25: 2 | BZ25: 8 | CA25: 7 | CC25: 7 | CD25: 8 | CE25: 16 | CF25: 3 | CG25: 11 | CJ25: 4 | CK25: 0 | CL25: 1 | CN25: 2 | CO25: 1 | CQ25: 5 | CT25: 16 | CU25: 9 | CX25: 9 | CY25: 9 | CZ25: 909 | DA25: 504 | DB25: 4 | DC25: 5
B26: 8 | C26: 2 | E26: 7 | I26: 11 | J26: 2 | L26: 3 | P26: 8 | Q26: 2 | S26: 0 | W26: 3 | X26: 2 | Z26: 0 | AD26: 3 | AE26: 2 | AG26: 7 | AK26: 3 | AL26: 2 | AN26: 2 | AR26: 4 | AS26: 2 | AU26: 9 | AY26: 9 | AZ26: 2 | BB26: 9 | BF26: 1 | BG26: 2 | BI26: 3 | BM26: 3 | BN26: 2 | BP26: 3 | BW26: 8 | BX26: 11 | BY26: 8 | BZ26: 3 | CA26: 3 | CC26: 3 | CD26: 4 | CE26: 9 | CF26: 1 | CG26: 3 | CJ26: 5 | CK26: 0 | CL26: 0 | CN26: 3 | CO26: 1 | CQ26: 5 | CT26: 9 | CU26: 9 | CX26: 9 | CY26: 8 | CZ26: 908 | DA26: 505 | DB26: 5 | DC26: 5
B27: 16 | C27: 1 | E27: 3 | I27: 1 | J27: 2 | L27: 1 | P27: 4 | Q27: 2 | S27: 0 | W27: 16 | X27: 1 | Z27: 0 | AD27: 1 | AE27: 2 | AG27: 2 | AK27: 2 | AL27: 2 | AN27: 0 | AR27: 3 | AS27: 2 | AU27: 8 | AY27: 11 | AZ27: 1 | BB27: 8 | BF27: 16 | BG27: 1 | BI27: 1 | BM27: 9 | BN27: 1 | BP27: 0 | BW27: 16 | BX27: 1 | BY27: 4 | BZ27: 16 | CA27: 1 | CC27: 2 | CD27: 3 | CE27: 11 | CF27: 16 | CG27: 9 | CJ27: 6 | CK27: 0 | CL27: 0 | CN27: 0 | CO27: 2 | CQ27: 2 | CT27: 8 | CU27: 9 | CX27: 9 | CY27: 7 | CZ27: 907 | DA27: 206 | DB27: 6 | DC27: 2
B28: 14 | C28: 1 | E28: 1 | I28: 10 | J28: 1 | L28: 0 | P28: 16 | Q28: 1 | S28: 0 | W28: 14 | X28: 1 | Z28: 0 | AD28: 13 | AE28: 1 | AG28: 1 | AK28: 14 | AL28: 1 | AN28: 0 | AR28: 16 | AS28: 1 | AU28: 0 | AY28: 6 | AZ28: 1 | BB28: 7 | BF28: 12 | BG28: 1 | BI28: 0 | BM28: 7 | BN28: 1 | BP28: 0 | BW28: 14 | BX28: 10 | BY28: 16 | BZ28: 14 | CA28: 13 | CC28: 14 | CD28: 16 | CE28: 6 | CF28: 12 | CG28: 7 | CJ28: 7 | CK28: 3 | CL28: 2 | CN28: 1 | CO28: 2 | CQ28: 9 | CT28: 7 | CU28: 9 | CX28: 9 | CY28: 3 | CZ28: 903 | DA28: 907 | DB28: 7 | DC28: 9
B29: 9 | C29: 1 | E29: 0 | I29: 9 | J29: 1 | L29: 0 | P29: 9 | Q29: 1 | S29: 0 | W29: 9 | X29: 1 | Z29: 0 | AD29: 12 | AE29: 1 | AG29: 0 | AK29: 12 | AL29: 1 | AN29: 0 | AR29: 13 | AS29: 1 | AU29: 0 | AY29: 3 | AZ29: 1 | BB29: 3 | BF29: 9 | BG29: 1 | BI29: 0 | BM29: 6 | BN29: 1 | BP29: 0 | BW29: 9 | BX29: 9 | BY29: 9 | BZ29: 9 | CA29: 12 | CC29: 12 | CD29: 13 | CE29: 3 | CF29: 9 | CG29: 6 | CJ29: 8 | CK29: 3 | CL29: 5 | CN29: 1 | CO29: 0 | CQ29: 9 | CT29: 3 | CU29: 9 | CX29: 6 | CY29: 14 | CZ29: 614 | DA29: 908 | DB29: 8 | DC29: 9
B30: 5 | C30: 1 | E30: 0 | I30: 5 | J30: 1 | L30: 0 | P30: 18 | Q30: 0 | S30: 0 | W30: 7 | X30: 1 | Z30: 0 | AD30: 9 | AE30: 1 | AG30: 0 | AK30: 11 | AL30: 1 | AN30: 0 | AR30: 12 | AS30: 1 | AU30: 0 | AY30: 1 | AZ30: 1 | BB30: 1 | BF30: 7 | BG30: 1 | BI30: 0 | BM30: 5 | BN30: 1 | BP30: 0 | BW30: 5 | BX30: 5 | BY30: 18 | BZ30: 7 | CA30: 9 | CC30: 11 | CD30: 12 | CE30: 1 | CF30: 7 | CG30: 5 | CJ30: 9 | CK30: 0 | CL30: 2 | CN30: 5 | CO30: 2 | CQ30: 9 | CT30: 14 | CU30: 6 | CX30: 6 | CY30: 12 | CZ30: 612 | DA30: 909 | DB30: 9 | DC30: 9
B31: 4 | C31: 1 | I31: 2 | J31: 1 | P31: 17 | Q31: 0 | W31: 5 | X31: 1 | AD31: 8 | AE31: 1 | AK31: 4 | AL31: 1 | AR31: 10 | AS31: 1 | AY31: 18 | AZ31: 0 | BF31: 18 | BG31: 0 | BM31: 2 | BN31: 1 | BW31: 4 | BX31: 2 | BY31: 17 | BZ31: 5 | CA31: 8 | CC31: 4 | CD31: 10 | CE31: 18 | CF31: 18 | CG31: 2 | CJ31: 10 | CK31: 0 | CL31: 0 | CN31: 1 | CO31: 1 | CQ31: 2 | CT31: 12 | CU31: 6 | CX31: 5 | CY31: 18 | CZ31: 518 | DA31: 210 | DB31: 10 | DC31: 2
B32: 3 | C32: 1 | I32: 18 | J32: 0 | P32: 15 | Q32: 0 | W32: 4 | X32: 1 | AD32: 5 | AE32: 1 | AK32: 18 | AL32: 0 | AR32: 7 | AS32: 1 | AY32: 17 | AZ32: 0 | BF32: 17 | BG32: 0 | BM32: 1 | BN32: 1 | BW32: 3 | BX32: 18 | BY32: 15 | BZ32: 4 | CA32: 5 | CC32: 18 | CD32: 7 | CE32: 17 | CF32: 17 | CG32: 1 | CJ32: 11 | CK32: 5 | CL32: 3 | CN32: 0 | CO32: 2 | CQ32: 10 | CT32: 18 | CU32: 5 | CX32: 5 | CY32: 5 | CZ32: 505 | DA32: 1011 | DB32: 11 | DC32: 10
B33: 1 | C33: 1 | I33: 17 | J33: 0 | P33: 14 | Q33: 0 | W33: 2 | X33: 1 | AD33: 2 | AE33: 1 | AK33: 17 | AL33: 0 | AR33: 6 | AS33: 1 | AY33: 15 | AZ33: 0 | BF33: 15 | BG33: 0 | BM33: 18 | BN33: 0 | BW33: 1 | BX33: 17 | BY33: 14 | BZ33: 2 | CA33: 2 | CC33: 17 | CD33: 6 | CE33: 15 | CF33: 15 | CG33: 18 | CJ33: 12 | CK33: 2 | CL33: 0 | CN33: 1 | CO33: 3 | CQ33: 6 | CT33: 5 | CU33: 5 | CX33: 5 | CY33: 4 | CZ33: 504 | DA33: 612 | DB33: 12 | DC33: 6
B34: 18 | C34: 0 | I34: 15 | J34: 0 | P34: 12 | Q34: 0 | W34: 18 | X34: 0 | AD34: 18 | AE34: 0 | AK34: 15 | AL34: 0 | AR34: 18 | AS34: 0 | AY34: 14 | AZ34: 0 | BF34: 14 | BG34: 0 | BM34: 17 | BN34: 0 | BW34: 18 | BX34: 15 | BY34: 12 | BZ34: 18 | CA34: 18 | CC34: 15 | CD34: 18 | CE34: 14 | CF34: 14 | CG34: 17 | CJ34: 13 | CK34: 4 | CL34: 4 | CN34: 1 | CO34: 1 | CQ34: 10 | CT34: 4 | CU34: 5 | CX34: 5 | CY34: 2 | CZ34: 502 | DA34: 1013 | DB34: 13 | DC34: 10
B35: 17 | C35: 0 | I35: 14 | J35: 0 | P35: 10 | Q35: 0 | W35: 17 | X35: 0 | AD35: 17 | AE35: 0 | AK35: 10 | AL35: 0 | AR35: 17 | AS35: 0 | AY35: 12 | AZ35: 0 | BF35: 10 | BG35: 0 | BM35: 16 | BN35: 0 | BW35: 17 | BX35: 14 | BY35: 10 | BZ35: 17 | CA35: 17 | CC35: 10 | CD35: 17 | CE35: 12 | CF35: 10 | CG35: 16 | CJ35: 14 | CK35: 1 | CL35: 2 | CN35: 2 | CO35: 1 | CQ35: 6 | CT35: 2 | CU35: 5 | CX35: 5 | CY35: 1 | CZ35: 501 | DA35: 614 | DB35: 14 | DC35: 6
B36: 15 | C36: 0 | I36: 8 | J36: 0 | P36: 6 | Q36: 0 | W36: 15 | X36: 0 | AD36: 15 | AE36: 0 | AK36: 9 | AL36: 0 | AR36: 15 | AS36: 0 | AY36: 10 | AZ36: 0 | BF36: 6 | BG36: 0 | BM36: 15 | BN36: 0 | BW36: 15 | BX36: 8 | BY36: 6 | BZ36: 15 | CA36: 15 | CC36: 9 | CD36: 15 | CE36: 10 | CF36: 6 | CG36: 15 | CJ36: 15 | CK36: 0 | CL36: 0 | CN36: 0 | CO36: 0 | CQ36: 1 | CT36: 1 | CU36: 5 | CX36: 3 | CY36: 17 | CZ36: 317 | DA36: 115 | DB36: 15 | DC36: 1
B37: 12 | C37: 0 | I37: 7 | J37: 0 | P37: 5 | Q37: 0 | W37: 10 | X37: 0 | AD37: 10 | AE37: 0 | AK37: 6 | AL37: 0 | AR37: 5 | AS37: 0 | AY37: 5 | AZ37: 0 | BF37: 5 | BG37: 0 | BM37: 12 | BN37: 0 | BW37: 12 | BX37: 7 | BY37: 5 | BZ37: 10 | CA37: 10 | CC37: 6 | CD37: 5 | CE37: 5 | CF37: 5 | CG37: 12 | CJ37: 16 | CK37: 2 | CL37: 2 | CN37: 3 | CO37: 2 | CQ37: 9 | CT37: 17 | CU37: 3 | CX37: 2 | CY37: 10 | CZ37: 210 | DA37: 916 | DB37: 16 | DC37: 9
B38: 10 | C38: 0 | I38: 6 | J38: 0 | P38: 3 | Q38: 0 | W38: 6 | X38: 0 | AD38: 6 | AE38: 0 | AK38: 5 | AL38: 0 | AR38: 2 | AS38: 0 | AY38: 4 | AZ38: 0 | BF38: 4 | BG38: 0 | BM38: 10 | BN38: 0 | BW38: 10 | BX38: 6 | BY38: 3 | BZ38: 6 | CA38: 6 | CC38: 5 | CD38: 2 | CE38: 4 | CF38: 4 | CG38: 10 | CJ38: 17 | CK38: 0 | CL38: 0 | CN38: 1 | CO38: 0 | CQ38: 3 | CT38: 10 | CU38: 2 | CX38: 2 | CY38: 6 | CZ38: 206 | DA38: 317 | DB38: 17 | DC38: 3
B39: 6 | C39: 0 | I39: 4 | J39: 0 | P39: 1 | Q39: 0 | W39: 1 | X39: 0 | AD39: 4 | AE39: 0 | AK39: 1 | AL39: 0 | AR39: 1 | AS39: 0 | AY39: 2 | AZ39: 0 | BF39: 2 | BG39: 0 | BM39: 4 | BN39: 0 | BW39: 6 | BX39: 4 | BY39: 1 | BZ39: 1 | CA39: 4 | CC39: 1 | CD39: 1 | CE39: 2 | CF39: 2 | CG39: 4 | CJ39: 18 | CK39: 0 | CL39: 0 | CN39: 1 | CO39: 2 | CQ39: 5 | CT39: 6 | CU39: 2 | CX39: 1 | CY39: 15 | CZ39: 115 | DA39: 518 | DB39: 18 | DC39: 5
CT40: 15 | CU40: 1
B44: 1 | C44: 0 | D44: 0 | E44: 0 | F44: 0 | G44: 0 | I44: 1 | J44: 0 | K44: 1 | L44: 0 | M44: 0 | N44: 0 | P44: 1 | Q44: 0 | R44: 0 | S44: 0 | T44: 0 | U44: 0 | W44: 1 | X44: 1 | Y44: 0 | Z44: 0 | AA44: 0 | AB44: 0 | AD44: 1 | AE44: 0 | AF44: 0 | AG44: 1 | AH44: 0 | AI44: 0 | AK44: 1 | AL44: 1 | AM44: 0 | AN44: 0 | AO44: 0 | AP44: 0 | AR44: 1 | AS44: 0 | AT44: 0 | AU44: 0 | AV44: 0 | AW44: 1 | AY44: 1 | AZ44: 0 | BA44: 0 | BB44: 0 | BC44: 0 | BD44: 0 | BF44: 1 | BG44: 0 | BH44: 0 | BI44: 0 | BJ44: 1 | BK44: 0 | BM44: 1 | BN44: 0 | BO44: 0 | BP44: 0 | BQ44: 0 | BR44: 0 | CL44: PLACE1 | CM44: PLACE2 | CN44: PLACE3 | CO44: PLACE4 | CP44: PLACE5
B45: 2 | C45: 0 | D45: 0 | E45: 0 | F45: 0 | G45: 0 | I45: 2 | J45: 0 | K45: 0 | L45: 0 | M45: 0 | N45: 0 | P45: 2 | Q45: 0 | R45: 0 | S45: 0 | T45: 0 | U45: 0 | W45: 2 | X45: 2 | Y45: 0 | Z45: 0 | AA45: 2 | AB45: 0 | AD45: 2 | AE45: 0 | AF45: 0 | AG45: 0 | AH45: 0 | AI45: 0 | AK45: 2 | AL45: 0 | AM45: 0 | AN45: 0 | AO45: 0 | AP45: 0 | AR45: 2 | AS45: 0 | AT45: 0 | AU45: 2 | AV45: 0 | AW45: 0 | AY45: 2 | AZ45: 0 | BA45: 0 | BB45: 0 | BC45: 0 | BD45: 0 | BF45: 2 | BG45: 0 | BH45: 0 | BI45: 0 | BJ45: 0 | BK45: 0 | BM45: 2 | BN45: 0 | BO45: 0 | BP45: 0 | BQ45: 0 | BR45: 0 | CJ45: 1 | CL45: =COUNTIF(B$9:B$18,CJ45)+COUNTIF(I$9:I$18,CJ45)+COUNTIF(P$9:P$18,CJ45)+COUNTIF(W$9:W$18,CJ45)+COUNTIF(AD$9:AD$18,CJ45)+COUNTIF(AK$9:AK$18,CJ45)+COUNTIF(AR$9:AR$18,CJ45)+COUNTIF(AY$9:AY$18,CJ45)+COUNTIF(BF$9:BF$18,CJ45)+COUNTIF(BM$9:BM$18,CJ45) -> 0 | CM45: =COUNTIF(C$9:C$18,CJ45)+COUNTIF(J$9:J$18,CJ45)+COUNTIF(Q$9:Q$18,CJ45)+COUNTIF(X$9:X$18,CJ45)+COUNTIF(AE$9:AE$18,CJ45)+COUNTIF(AL$9:AL$18,CJ45)+COUNTIF(AS$9:AS$18,CJ45)+COUNTIF(AZ$9:AZ$18,CJ45)+COUNTIF(BG$9:BG$18,CJ45)+COUNTIF(BN$9:BN$18,CJ45) -> 0 | CN45: =COUNTIF(D$9:D$18,CJ45)+COUNTIF(K$9:K$18,CJ45)+COUNTIF(R$9:R$18,CJ45)+COUNTIF(Y$9:Y$18,CJ45)+COUNTIF(AF$9:AF$18,CJ45)+COUNTIF(AM$9:AM$18,CJ45)+COUNTIF(AT$9:AT$18,CJ45)+COUNTIF(BA$9:BA$18,CJ45)+COUNTIF(BH$9:BH$18,CJ45)+COUNTIF(BO$9:BO$18,CJ45) -> 0 | CO45: =COUNTIF(E$9:E$18,CJ45)+COUNTIF(L$9:L$18,CJ45)+COUNTIF(S$9:S$18,CJ45)+COUNTIF(Z$9:Z$18,CJ45)+COUNTIF(AG$9:AG$18,CJ45)+COUNTIF(AN$9:AN$18,CJ45)+COUNTIF(AU$9:AU$18,CJ45)+COUNTIF(BB$9:BB$18,CJ45)+COUNTIF(BI$9:BI$18,CJ45)+COUNTIF(BP$9:BP$18,CJ45) -> 0 | CP45: =COUNTIF(F$9:F$18,CJ45)+COUNTIF(M$9:M$18,CJ45)+COUNTIF(T$9:T$18,CJ45)+COUNTIF(AA$9:AA$18,CJ45)+COUNTIF(AH$9:AH$18,CJ45)+COUNTIF(AO$9:AO$18,CJ45)+COUNTIF(AV$9:AV$18,CJ45)+COUNTIF(BC$9:BC$18,CJ45)+COUNTIF(BJ$9:BJ$18,CJ45)+COUNTIF(BQ$9:BQ$18,CJ45) -> 0 | CQ45: =SUM(CL45:CP45) -> 0 | CT45: CHEVAUX | CU45: CITATION PLACES | CX45: =VLOOKUP(CZ45,$DA$45:$DC$62,3,FALSE) -> 0 | CY45: =VLOOKUP(CZ45,$DA$45:$DB$62,2,FALSE) -> 18 | CZ45: =LARGE($DA$45:$DA$62,DB45) -> 18 | DA45: =DC45*100+DB45 -> 1 | DB45: 1 | DC45: =CQ45 -> 0 | DG45: 1 | DH45: 2 | DI45: 1 | DJ45: 2 | DK45: 1 | DL45: 2 | DM45: 1 | DN45: 2 | DO45: 1 | DP45: 2 | DQ45: 3 | DR45: 1 | DS45: 4 | DT45: 7 | DU45: 10 | DV45: 13 | DW45: 16 | DX45: 19
B46: 3 | C46: 0 | D46: 0 | E46: 0 | F46: 0 | G46: 0 | I46: 3 | J46: 0 | K46: 0 | L46: 0 | M46: 0 | N46: 0 | P46: 3 | Q46: 0 | R46: 0 | S46: 0 | T46: 0 | U46: 0 | W46: 3 | X46: 0 | Y46: 3 | Z46: 0 | AA46: 0 | AB46: 0 | AD46: 3 | AE46: 0 | AF46: 0 | AG46: 0 | AH46: 0 | AI46: 0 | AK46: 3 | AL46: 0 | AM46: 0 | AN46: 0 | AO46: 0 | AP46: 3 | AR46: 3 | AS46: 0 | AT46: 0 | AU46: 0 | AV46: 0 | AW46: 0 | AY46: 3 | AZ46: 0 | BA46: 0 | BB46: 0 | BC46: 0 | BD46: 0 | BF46: 3 | BG46: 0 | BH46: 0 | BI46: 3 | BJ46: 0 | BK46: 0 | BM46: 3 | BN46: 0 | BO46: 0 | BP46: 0 | BQ46: 0 | BR46: 0 | CJ46: 2 | CL46: =COUNTIF($B$9:$B$18,CJ46)+COUNTIF($I$9:$I$18,CJ46)+COUNTIF($P$9:$P$18,CJ46)+COUNTIF($W$9:$W$18,CJ46)+COUNTIF($AD$9:$AD$18,CJ46)+COUNTIF($AK$9:$AK$18,CJ46)+COUNTIF($AR$9:$AR$18,CJ46)+COUNTIF($AY$9:$AY$18,CJ46)+COUNTIF($BF$9:$BF$18,CJ46)+COUNTIF($BM$9:$BM$18,CJ46) -> 0 | CM46: =COUNTIF(C$9:C$18,CJ46)+COUNTIF(J$9:J$18,CJ46)+COUNTIF(Q$9:Q$18,CJ46)+COUNTIF(X$9:X$18,CJ46)+COUNTIF(AE$9:AE$18,CJ46)+COUNTIF(AL$9:AL$18,CJ46)+COUNTIF(AS$9:AS$18,CJ46)+COUNTIF(AZ$9:AZ$18,CJ46)+COUNTIF(BG$9:BG$18,CJ46)+COUNTIF(BN$9:BN$18,CJ46) -> 0 | CN46: =COUNTIF(D$9:D$18,CJ46)+COUNTIF(K$9:K$18,CJ46)+COUNTIF(R$9:R$18,CJ46)+COUNTIF(Y$9:Y$18,CJ46)+COUNTIF(AF$9:AF$18,CJ46)+COUNTIF(AM$9:AM$18,CJ46)+COUNTIF(AT$9:AT$18,CJ46)+COUNTIF(BA$9:BA$18,CJ46)+COUNTIF(BH$9:BH$18,CJ46)+COUNTIF(BO$9:BO$18,CJ46) -> 0 | CO46: =COUNTIF(E$9:E$18,CJ46)+COUNTIF(L$9:L$18,CJ46)+COUNTIF(S$9:S$18,CJ46)+COUNTIF(Z$9:Z$18,CJ46)+COUNTIF(AG$9:AG$18,CJ46)+COUNTIF(AN$9:AN$18,CJ46)+COUNTIF(AU$9:AU$18,CJ46)+COUNTIF(BB$9:BB$18,CJ46)+COUNTIF(BI$9:BI$18,CJ46)+COUNTIF(BP$9:BP$18,CJ46) -> 0 | CP46: =COUNTIF(F$9:F$18,CJ46)+COUNTIF(M$9:M$18,CJ46)+COUNTIF(T$9:T$18,CJ46)+COUNTIF(AA$9:AA$18,CJ46)+COUNTIF(AH$9:AH$18,CJ46)+COUNTIF(AO$9:AO$18,CJ46)+COUNTIF(AV$9:AV$18,CJ46)+COUNTIF(BC$9:BC$18,CJ46)+COUNTIF(BJ$9:BJ$18,CJ46)+COUNTIF(BQ$9:BQ$18,CJ46) -> 0 | CQ46: =SUM(CL46:CP46) -> 0 | CT46: =CY45 -> 18 | CU46: =CX45 -> 0 | CX46: =VLOOKUP(CZ46,$DA$45:$DC$62,3,FALSE) -> 0 | CY46: =VLOOKUP(CZ46,$DA$45:$DB$62,2,FALSE) -> 17 | CZ46: =LARGE($DA$45:$DA$62,DB46) -> 17 | DA46: =DC46*100+DB46 -> 2 | DB46: 2 | DC46: =CQ46 -> 0 | DG46: =CT46 -> 18 | DH46: =CT47 -> 17 | DI46: =CT48 -> 16 | DJ46: =CT49 -> 15 | DK46: =CT50 -> 14 | DL46: =CT51 -> 13 | DM46: =CT52 -> 12 | DN46: =CT53 -> 11 | DO46: =CT54 -> 10 | DP46: =CT55 -> 9 | DQ46: =CT56 -> 8 | DR46: =CT57 -> 7 | DS46: =CT58 -> 6 | DT46: =CT59 -> 5 | DU46: =CT60 -> 4 | DV46: =CT61 -> 3 | DW46: =CT62 -> 2 | DX46: =CT63 -> 1
B47: 4 | C47: 0 | D47: 0 | E47: 0 | F47: 0 | G47: 0 | I47: 4 | J47: 0 | K47: 0 | L47: 0 | M47: 0 | N47: 0 | P47: 4 | Q47: 0 | R47: 0 | S47: 0 | T47: 0 | U47: 0 | W47: 4 | X47: 4 | Y47: 0 | Z47: 0 | AA47: 0 | AB47: 0 | AD47: 4 | AE47: 0 | AF47: 0 | AG47: 0 | AH47: 0 | AI47: 0 | AK47: 4 | AL47: 0 | AM47: 0 | AN47: 0 | AO47: 0 | AP47: 0 | AR47: 4 | AS47: 0 | AT47: 0 | AU47: 4 | AV47: 0 | AW47: 0 | AY47: 4 | AZ47: 0 | BA47: 0 | BB47: 0 | BC47: 0 | BD47: 0 | BF47: 4 | BG47: 0 | BH47: 0 | BI47: 0 | BJ47: 0 | BK47: 0 | BM47: 4 | BN47: 0 | BO47: 0 | BP47: 0 | BQ47: 0 | BR47: 0 | CJ47: 3 | CL47: 0 | CM47: 0 | CN47: 0 | CO47: 0 | CP47: 0 | CQ47: 0 | CT47: =CY46 -> 17 | CU47: =CX46 -> 0 | CX47: 0 | CY47: 16 | CZ47: 16 | DA47: 3 | DB47: 3 | DC47: 0 | DG47: =CU46 -> 0 | DH47: =CU47 -> 0 | DI47: =CU48 -> 0 | DJ47: =CU49 -> 0 | DK47: =CU50 -> 0 | DL47: =CU51 -> 0 | DM47: =CU52 -> 0 | DN47: =CU53 -> 0 | DO47: =CU54 -> 0 | DP47: =CU55 -> 0 | DQ47: =CU56 -> 0 | DR47: 9 | DS47: 9 | DT47: 9 | DU47: 9 | DV47: 9 | DW47: 9 | DX47: 9
B48: 5 | C48: 0 | D48: 0 | E48: 0 | F48: 0 | G48: 0 | I48: 5 | J48: 0 | K48: 0 | L48: 0 | M48: 0 | N48: 0 | P48: 5 | Q48: 0 | R48: 0 | S48: 0 | T48: 0 | U48: 0 | W48: 5 | X48: 0 | Y48: 0 | Z48: 0 | AA48: 0 | AB48: 0 | AD48: 5 | AE48: 0 | AF48: 0 | AG48: 0 | AH48: 0 | AI48: 0 | AK48: 5 | AL48: 0 | AM48: 0 | AN48: 0 | AO48: 0 | AP48: 0 | AR48: 5 | AS48: 0 | AT48: 0 | AU48: 0 | AV48: 0 | AW48: 0 | AY48: 5 | AZ48: 0 | BA48: 0 | BB48: 0 | BC48: 0 | BD48: 0 | BF48: 5 | BG48: 0 | BH48: 0 | BI48: 0 | BJ48: 0 | BK48: 0 | BM48: 5 | BN48: 0 | BO48: 0 | BP48: 0 | BQ48: 0 | BR48: 0 | CJ48: 4 | CL48: 0 | CM48: 0 | CN48: 0 | CO48: 0 | CP48: 0 | CQ48: 0 | CT48: 16 | CU48: 0 | CX48: 0 | CY48: 15 | CZ48: 15 | DA48: 4 | DB48: 4 | DC48: 0
B49: 6 | C49: 0 | D49: 0 | E49: 0 | F49: 0 | G49: 0 | I49: 6 | J49: 0 | K49: 0 | L49: 0 | M49: 0 | N49: 0 | P49: 6 | Q49: 0 | R49: 0 | S49: 0 | T49: 0 | U49: 0 | W49: 6 | X49: 0 | Y49: 0 | Z49: 0 | AA49: 0 | AB49: 0 | AD49: 6 | AE49: 0 | AF49: 0 | AG49: 0 | AH49: 0 | AI49: 0 | AK49: 6 | AL49: 0 | AM49: 0 | AN49: 0 | AO49: 0 | AP49: 0 | AR49: 6 | AS49: 0 | AT49: 0 | AU49: 0 | AV49: 0 | AW49: 0 | AY49: 6 | AZ49: 0 | BA49: 0 | BB49: 0 | BC49: 0 | BD49: 0 | BF49: 6 | BG49: 0 | BH49: 0 | BI49: 0 | BJ49: 0 | BK49: 0 | BM49: 6 | BN49: 0 | BO49: 0 | BP49: 0 | BQ49: 0 | BR49: 0 | CJ49: 5 | CL49: 0 | CM49: 0 | CN49: 0 | CO49: 0 | CP49: 0 | CQ49: 0 | CT49: 15 | CU49: 0 | CX49: 0 | CY49: 14 | CZ49: 14 | DA49: 5 | DB49: 5 | DC49: 0
B50: 7 | C50: 0 | D50: 0 | E50: 0 | F50: 7 | G50: 0 | I50: 7 | J50: 0 | K50: 0 | L50: 0 | M50: 0 | N50: 0 | P50: 7 | Q50: 0 | R50: 0 | S50: 0 | T50: 0 | U50: 0 | W50: 7 | X50: 0 | Y50: 0 | Z50: 0 | AA50: 0 | AB50: 0 | AD50: 7 | AE50: 0 | AF50: 7 | AG50: 0 | AH50: 0 | AI50: 0 | AK50: 7 | AL50: 0 | AM50: 0 | AN50: 0 | AO50: 0 | AP50: 0 | AR50: 7 | AS50: 7 | AT50: 0 | AU50: 0 | AV50: 0 | AW50: 0 | AY50: 7 | AZ50: 7 | BA50: 0 | BB50: 0 | BC50: 0 | BD50: 0 | BF50: 7 | BG50: 0 | BH50: 0 | BI50: 0 | BJ50: 0 | BK50: 0 | BM50: 7 | BN50: 7 | BO50: 0 | BP50: 0 | BQ50: 0 | BR50: 0 | CJ50: 6 | CL50: 0 | CM50: 0 | CN50: 0 | CO50: 0 | CP50: 0 | CQ50: 0 | CT50: 14 | CU50: 0 | CX50: 0 | CY50: 13 | CZ50: 13 | DA50: 6 | DB50: 6 | DC50: 0
B51: 8 | C51: 0 | D51: 0 | E51: 8 | F51: 0 | G51: 0 | I51: 8 | J51: 0 | K51: 0 | L51: 0 | M51: 0 | N51: 0 | P51: 8 | Q51: 0 | R51: 0 | S51: 8 | T51: 0 | U51: 0 | W51: 8 | X51: 0 | Y51: 0 | Z51: 0 | AA51: 0 | AB51: 0 | AD51: 8 | AE51: 0 | AF51: 0 | AG51: 0 | AH51: 0 | AI51: 0 | AK51: 8 | AL51: 0 | AM51: 8 | AN51: 0 | AO51: 0 | AP51: 0 | AR51: 8 | AS51: 0 | AT51: 0 | AU51: 0 | AV51: 0 | AW51: 0 | AY51: 8 | AZ51: 0 | BA51: 0 | BB51: 0 | BC51: 8 | BD51: 0 | BF51: 8 | BG51: 0 | BH51: 0 | BI51: 0 | BJ51: 0 | BK51: 8 | BM51: 8 | BN51: 0 | BO51: 0 | BP51: 0 | BQ51: 0 | BR51: 0 | CJ51: 7 | CL51: 0 | CM51: 0 | CN51: 0 | CO51: 0 | CP51: 0 | CQ51: 0 | CT51: 13 | CU51: 0 | CX51: 0 | CY51: 12 | CZ51: 12 | DA51: 7 | DB51: 7 | DC51: 0
B52: 9 | C52: 0 | D52: 0 | E52: 0 | F52: 0 | G52: 0 | I52: 9 | J52: 0 | K52: 0 | L52: 9 | M52: 0 | N52: 0 | P52: 9 | Q52: 0 | R52: 0 | S52: 0 | T52: 0 | U52: 0 | W52: 9 | X52: 0 | Y52: 0 | Z52: 9 | AA52: 0 | AB52: 0 | AD52: 9 | AE52: 0 | AF52: 0 | AG52: 0 | AH52: 0 | AI52: 0 | AK52: 9 | AL52: 0 | AM52: 0 | AN52: 0 | AO52: 0 | AP52: 0 | AR52: 9 | AS52: 0 | AT52: 0 | AU52: 0 | AV52: 0 | AW52: 0 | AY52: 9 | AZ52: 0 | BA52: 0 | BB52: 0 | BC52: 0 | BD52: 0 | BF52: 9 | BG52: 0 | BH52: 0 | BI52: 0 | BJ52: 0 | BK52: 0 | BM52: 9 | BN52: 0 | BO52: 0 | BP52: 0 | BQ52: 0 | BR52: 0 | CJ52: 8 | CL52: 0 | CM52: 0 | CN52: 0 | CO52: 0 | CP52: 0 | CQ52: 0 | CT52: 12 | CU52: 0 | CX52: 0 | CY52: 11 | CZ52: 11 | DA52: 8 | DB52: 8 | DC52: 0 | DG52: 9 | DH52: 4 | DI52: 14 | DJ52: 13 | DK52: 17 | DL52: 1 | DM52: 8 | DN52: 2 | DO52: 6 | DP52: 12 | DQ52: 10 | DR52: 11 | DS52: 3 | DT52: 7 | DU52: 5 | DV52: 16 | DW52: 15 | DX52: 18
B53: 10 | C53: 0 | D53: 0 | E53: 0 | F53: 0 | G53: 0 | I53: 10 | J53: 0 | K53: 0 | L53: 0 | M53: 0 | N53: 0 | P53: 10 | Q53: 0 | R53: 0 | S53: 0 | T53: 0 | U53: 0 | W53: 10 | X53: 0 | Y53: 0 | Z53: 0 | AA53: 0 | AB53: 0 | AD53: 10 | AE53: 0 | AF53: 0 | AG53: 0 | AH53: 0 | AI53: 0 | AK53: 10 | AL53: 0 | AM53: 0 | AN53: 0 | AO53: 0 | AP53: 0 | AR53: 10 | AS53: 0 | AT53: 0 | AU53: 0 | AV53: 0 | AW53: 0 | AY53: 10 | AZ53: 0 | BA53: 0 | BB53: 0 | BC53: 0 | BD53: 0 | BF53: 10 | BG53: 0 | BH53: 0 | BI53: 0 | BJ53: 0 | BK53: 0 | BM53: 10 | BN53: 0 | BO53: 0 | BP53: 0 | BQ53: 0 | BR53: 0 | CJ53: 9 | CL53: 0 | CM53: 0 | CN53: 0 | CO53: 0 | CP53: 0 | CQ53: 0 | CT53: 11 | CU53: 0 | CX53: 0 | CY53: 10 | CZ53: 10 | DA53: 9 | DB53: 9 | DC53: 0
B54: 11 | C54: 0 | D54: 0 | E54: 0 | F54: 0 | G54: 11 | I54: 11 | J54: 0 | K54: 11 | L54: 0 | M54: 0 | N54: 0 | P54: 11 | Q54: 0 | R54: 0 | S54: 0 | T54: 0 | U54: 0 | W54: 11 | X54: 0 | Y54: 0 | Z54: 0 | AA54: 0 | AB54: 0 | AD54: 11 | AE54: 0 | AF54: 0 | AG54: 0 | AH54: 11 | AI54: 0 | AK54: 11 | AL54: 0 | AM54: 0 | AN54: 0 | AO54: 0 | AP54: 0 | AR54: 11 | AS54: 0 | AT54: 0 | AU54: 0 | AV54: 0 | AW54: 0 | AY54: 11 | AZ54: 0 | BA54: 0 | BB54: 0 | BC54: 0 | BD54: 0 | BF54: 11 | BG54: 0 | BH54: 0 | BI54: 11 | BJ54: 0 | BK54: 0 | BM54: 11 | BN54: 0 | BO54: 0 | BP54: 0 | BQ54: 11 | BR54: 0 | CJ54: 10 | CL54: 0 | CM54: 0 | CN54: 0 | CO54: 0 | CP54: 0 | CQ54: 0 | CT54: 10 | CU54: 0 | CX54: 0 | CY54: 9 | CZ54: 9 | DA54: 10 | DB54: 10 | DC54: 0
B55: 12 | C55: 0 | D55: 0 | E55: 0 | F55: 0 | G55: 0 | I55: 12 | J55: 0 | K55: 0 | L55: 0 | M55: 0 | N55: 0 | P55: 12 | Q55: 0 | R55: 0 | S55: 0 | T55: 0 | U55: 0 | W55: 12 | X55: 0 | Y55: 0 | Z55: 0 | AA55: 0 | AB55: 0 | AD55: 12 | AE55: 0 | AF55: 0 | AG55: 0 | AH55: 0 | AI55: 0 | AK55: 12 | AL55: 0 | AM55: 0 | AN55: 0 | AO55: 0 | AP55: 0 | AR55: 12 | AS55: 0 | AT55: 0 | AU55: 0 | AV55: 0 | AW55: 0 | AY55: 12 | AZ55: 0 | BA55: 0 | BB55: 0 | BC55: 0 | BD55: 0 | BF55: 12 | BG55: 0 | BH55: 0 | BI55: 0 | BJ55: 0 | BK55: 0 | BM55: 12 | BN55: 0 | BO55: 0 | BP55: 0 | BQ55: 0 | BR55: 0 | CJ55: 11 | CL55: 0 | CM55: 0 | CN55: 0 | CO55: 0 | CP55: 0 | CQ55: 0 | CT55: 9 | CU55: 0 | CX55: 0 | CY55: 8 | CZ55: 8 | DA55: 11 | DB55: 11 | DC55: 0
B56: 13 | C56: 0 | D56: 0 | E56: 0 | F56: 0 | G56: 0 | I56: 13 | J56: 0 | K56: 0 | L56: 0 | M56: 13 | N56: 0 | P56: 13 | Q56: 0 | R56: 0 | S56: 0 | T56: 0 | U56: 0 | W56: 13 | X56: 0 | Y56: 0 | Z56: 0 | AA56: 0 | AB56: 0 | AD56: 13 | AE56: 0 | AF56: 0 | AG56: 13 | AH56: 0 | AI56: 13 | AK56: 13 | AL56: 0 | AM56: 0 | AN56: 0 | AO56: 0 | AP56: 0 | AR56: 13 | AS56: 13 | AT56: 0 | AU56: 0 | AV56: 0 | AW56: 13 | AY56: 13 | AZ56: 0 | BA56: 0 | BB56: 0 | BC56: 0 | BD56: 0 | BF56: 13 | BG56: 0 | BH56: 0 | BI56: 0 | BJ56: 0 | BK56: 0 | BM56: 13 | BN56: 0 | BO56: 0 | BP56: 0 | BQ56: 0 | BR56: 0 | CJ56: 12 | CL56: 0 | CM56: 0 | CN56: 0 | CO56: 0 | CP56: 0 | CQ56: 0 | CT56: 8 | CU56: 0 | CX56: 0 | CY56: 7 | CZ56: 7 | DA56: 12 | DB56: 12 | DC56: 0
B57: 14 | C57: 0 | D57: 0 | E57: 0 | F57: 0 | G57: 0 | I57: 14 | J57: 0 | K57: 0 | L57: 0 | M57: 0 | N57: 0 | P57: 14 | Q57: 0 | R57: 0 | S57: 0 | T57: 0 | U57: 0 | W57: 14 | X57: 0 | Y57: 0 | Z57: 0 | AA57: 0 | AB57: 0 | AD57: 14 | AE57: 0 | AF57: 0 | AG57: 0 | AH57: 0 | AI57: 0 | AK57: 14 | AL57: 0 | AM57: 0 | AN57: 0 | AO57: 0 | AP57: 0 | AR57: 14 | AS57: 0 | AT57: 0 | AU57: 0 | AV57: 0 | AW57: 0 | AY57: 14 | AZ57: 0 | BA57: 0 | BB57: 0 | BC57: 0 | BD57: 0 | BF57: 14 | BG57: 0 | BH57: 0 | BI57: 0 | BJ57: 0 | BK57: 0 | BM57: 14 | BN57: 0 | BO57: 0 | BP57: 0 | BQ57: 0 | BR57: 0 | CJ57: 13 | CL57: 0 | CM57: 0 | CN57: 0 | CO57: 0 | CP57: 0 | CQ57: 0 | CT57: 7 | CU57: 0 | CX57: 0 | CY57: 6 | CZ57: 6 | DA57: 13 | DB57: 13 | DC57: 0
B58: 15 | C58: 0 | D58: 0 | E58: 0 | F58: 0 | G58: 0 | I58: 15 | J58: 0 | K58: 0 | L58: 0 | M58: 0 | N58: 0 | P58: 15 | Q58: 0 | R58: 0 | S58: 0 | T58: 0 | U58: 0 | W58: 15 | X58: 0 | Y58: 0 | Z58: 0 | AA58: 0 | AB58: 0 | AD58: 15 | AE58: 0 | AF58: 0 | AG58: 0 | AH58: 0 | AI58: 0 | AK58: 15 | AL58: 0 | AM58: 0 | AN58: 0 | AO58: 0 | AP58: 0 | AR58: 15 | AS58: 0 | AT58: 0 | AU58: 0 | AV58: 0 | AW58: 0 | AY58: 15 | AZ58: 0 | BA58: 0 | BB58: 0 | BC58: 0 | BD58: 0 | BF58: 15 | BG58: 0 | BH58: 0 | BI58: 0 | BJ58: 0 | BK58: 0 | BM58: 15 | BN58: 0 | BO58: 0 | BP58: 0 | BQ58: 0 | BR58: 0 | CJ58: 14 | CL58: 0 | CM58: 0 | CN58: 0 | CO58: 0 | CP58: 0 | CQ58: 0 | CT58: 6 | CU58: 0 | CX58: 0 | CY58: 5 | CZ58: 5 | DA58: 14 | DB58: 14 | DC58: 0
B59: 16 | C59: 16 | D59: 0 | E59: 0 | F59: 0 | G59: 0 | I59: 16 | J59: 0 | K59: 0 | L59: 0 | M59: 0 | N59: 0 | P59: 16 | Q59: 0 | R59: 0 | S59: 0 | T59: 0 | U59: 0 | W59: 16 | X59: 0 | Y59: 0 | Z59: 0 | AA59: 0 | AB59: 0 | AD59: 16 | AE59: 16 | AF59: 0 | AG59: 0 | AH59: 0 | AI59: 0 | AK59: 16 | AL59: 0 | AM59: 0 | AN59: 0 | AO59: 0 | AP59: 0 | AR59: 16 | AS59: 0 | AT59: 0 | AU59: 0 | AV59: 0 | AW59: 0 | AY59: 16 | AZ59: 0 | BA59: 0 | BB59: 0 | BC59: 0 | BD59: 0 | BF59: 16 | BG59: 0 | BH59: 0 | BI59: 0 | BJ59: 0 | BK59: 0 | BM59: 16 | BN59: 16 | BO59: 0 | BP59: 0 | BQ59: 0 | BR59: 16 | CJ59: 15 | CL59: 0 | CM59: 0 | CN59: 0 | CO59: 0 | CP59: 0 | CQ59: 0 | CT59: 5 | CU59: 0 | CX59: 0 | CY59: 4 | CZ59: 4 | DA59: 15 | DB59: 15 | DC59: 0
B60: 17 | C60: 0 | D60: 0 | E60: 0 | F60: 0 | G60: 0 | I60: 17 | J60: 0 | K60: 0 | L60: 0 | M60: 0 | N60: 0 | P60: 17 | Q60: 0 | R60: 0 | S60: 0 | T60: 0 | U60: 0 | W60: 17 | X60: 0 | Y60: 0 | Z60: 0 | AA60: 0 | AB60: 0 | AD60: 17 | AE60: 0 | AF60: 0 | AG60: 0 | AH60: 0 | AI60: 0 | AK60: 17 | AL60: 0 | AM60: 0 | AN60: 0 | AO60: 0 | AP60: 0 | AR60: 17 | AS60: 0 | AT60: 0 | AU60: 0 | AV60: 0 | AW60: 0 | AY60: 17 | AZ60: 0 | BA60: 0 | BB60: 0 | BC60: 0 | BD60: 0 | BF60: 17 | BG60: 0 | BH60: 0 | BI60: 0 | BJ60: 0 | BK60: 0 | BM60: 17 | BN60: 0 | BO60: 0 | BP60: 0 | BQ60: 0 | BR60: 0 | CJ60: 16 | CL60: 0 | CM60: 0 | CN60: 0 | CO60: 0 | CP60: 0 | CQ60: 0 | CT60: 4 | CU60: 0 | CX60: 0 | CY60: 3 | CZ60: 3 | DA60: 16 | DB60: 16 | DC60: 0
B61: 18 | C61: 0 | D61: 0 | E61: 0 | F61: 0 | G61: 0 | I61: 18 | J61: 0 | K61: 0 | L61: 0 | M61: 0 | N61: 0 | P61: 18 | Q61: 0 | R61: 0 | S61: 0 | T61: 0 | U61: 0 | W61: 18 | X61: 0 | Y61: 0 | Z61: 0 | AA61: 0 | AB61: 0 | AD61: 18 | AE61: 0 | AF61: 0 | AG61: 0 | AH61: 0 | AI61: 0 | AK61: 18 | AL61: 0 | AM61: 0 | AN61: 0 | AO61: 0 | AP61: 0 | AR61: 18 | AS61: 0 | AT61: 0 | AU61: 0 | AV61: 0 | AW61: 0 | AY61: 18 | AZ61: 0 | BA61: 0 | BB61: 0 | BC61: 0 | BD61: 0 | BF61: 18 | BG61: 0 | BH61: 0 | BI61: 0 | BJ61: 0 | BK61: 0 | BM61: 18 | BN61: 0 | BO61: 0 | BP61: 0 | BQ61: 0 | BR61: 0 | CJ61: 17 | CL61: 0 | CM61: 0 | CN61: 0 | CO61: 0 | CP61: 0 | CQ61: 0 | CT61: 3 | CU61: 0 | CX61: 0 | CY61: 2 | CZ61: 2 | DA61: 17 | DB61: 17 | DC61: 0
CJ62: 18 | CL62: 0 | CM62: 0 | CN62: 0 | CO62: 0 | CP62: 0 | CQ62: 0 | CT62: 2 | CU62: 0 | CX62: 0 | CY62: 1 | CZ62: 1 | DA62: 18 | DB62: 18 | DC62: 0 | DK62: =SMALL($DK$63:$DO$63,1) -> 3 | DL62: =SMALL($DK$63:$DO$63,2) -> 6 | DM62: =SMALL($DK$63:$DO$63,3) -> 7 | DN62: =SMALL($DK$63:$DO$63,4) -> 8 | DO62: =SMALL($DK$63:$DO$63,5) -> 9
CT63: 1 | CU63: 0 | DK63: 8 | DL63: 3 | DM63: 7 | DN63: 6 | DO63: 9 | DP63: 5 | DQ63: 10 | DR63: 2 | DS63: 11 | DT63: 4 | DU63: 1
C64: =LARGE(C$44:C$61,1) -> 16 | D64: =LARGE(D$44:D$61,1) -> 0 | E64: =LARGE(E$44:E$61,1) -> 8 | F64: 7 | G64: 11 | DK64: =VLOOKUP(DK63,$DK$69:$DL$79,2,FALSE) -> 11 | DL64: =VLOOKUP(DL63,$DK$69:$DL$79,2,FALSE) -> 16 | DM64: 12 | DN64: 13 | DO64: 10 | DP64: 14 | DQ64: 9 | DR64: 17 | DS64: 8 | DT64: 15 | DU64: 18
C65: =LARGE(C$44:C$61,2) -> 0 | D65: =LARGE(D$44:D$61,2) -> 0 | E65: =LARGE(E$44:E$61,2) -> 0 | F65: 0 | G65: 0 | CL65: =D2 -> 0 | CM65: =E2 -> 0 | CN65: 0 | CO65: 0 | CP65: 0 | DK65: =VLOOKUP(DK62,$DK$69:$DL$79,2,FALSE) -> 16 | DL65: =VLOOKUP(DL62,$DK$69:$DL$79,2,FALSE) -> 13 | DM65: 12 | DN65: 11 | DO65: 10
C66: =LARGE(C$44:C$61,3) -> 0 | D66: =LARGE(D$44:D$61,3) -> 0 | E66: =LARGE(E$44:E$61,3) -> 0 | F66: 0 | G66: 0 | L66: RECAP | DY66: t | DZ66: v
C67: =LARGE(J$44:J$61,1) -> 0 | D67: =LARGE(K$44:K$61,1) -> 11 | E67: =LARGE(L$44:L$61,1) -> 9 | F67: =LARGE(M$44:M$61,1) -> 13 | G67: =LARGE(N$44:N$61,1) -> 0 | K67: 1 | L67: =COUNTIF($B$22:$B$23,K67)+COUNTIF($I$22:$I$23,K67)+COUNTIF($P$22:$P$23,K67)+COUNTIF($W$22:$W$23,K67)+COUNTIF($AD$22:$AD$23,K67)+COUNTIF($AK$22:$AK$23,K67)+COUNTIF($AR$22:$AR$23,K67)+COUNTIF($AY$22:$AY$23,K67)+COUNTIF($BF$22:$BF$23,K67)+COUNTIF($BM$22:$BM$23,K67) -> 0 | N67: =VLOOKUP(R86,$S$86:$T$103,2,FALSE) -> 13 | O67: =VLOOKUP(R86,$S$86:$U$103,3,FALSE) -> 5
C68: =LARGE(J$44:J$61,2) -> 0 | D68: =LARGE(K$44:K$61,2) -> 1 | E68: =LARGE(L$44:L$61,2) -> 0 | F68: =LARGE(M$44:M$61,2) -> 0 | G68: =LARGE(N$44:N$61,2) -> 0 | K68: 2 | L68: =COUNTIF($B$22:$B$23,K68)+COUNTIF($I$22:$I$23,K68)+COUNTIF($P$22:$P$23,K68)+COUNTIF($W$22:$W$23,K68)+COUNTIF($AD$22:$AD$23,K68)+COUNTIF($AK$22:$AK$23,K68)+COUNTIF($AR$22:$AR$23,K68)+COUNTIF($AY$22:$AY$23,K68)+COUNTIF($BF$22:$BF$23,K68)+COUNTIF($BM$22:$BM$23,K68) -> 0 | N68: 8 | O68: 4
C69: =LARGE(J$44:J$61,3) -> 0 | D69: =LARGE(K$44:K$61,3) -> 0 | E69: =LARGE(L$44:L$61,3) -> 0 | F69: =LARGE(M$44:M$61,3) -> 0 | G69: =LARGE(N$44:N$61,3) -> 0 | K69: 3 | L69: 0 | N69: 7 | O69: 3 | DK69: 1 | DL69: =CT46 -> 18
C70: =LARGE(Q$44:Q$61,1) -> 0 | D70: =LARGE(R$44:R$61,1) -> 0 | E70: =LARGE(S$44:S$61,1) -> 8 | F70: =LARGE(T$44:T$61,1) -> 0 | G70: =LARGE(U$44:U$61,1) -> 0 | K70: 4 | L70: 0 | N70: 16 | O70: 2 | CL70: POSITION1 | CM70: POSITION2 | CN70: POSITION3 | CO70: POSITION4 | CP70: POSITION5 | DK70: 2 | DL70: =CT47 -> 17
C71: =LARGE(Q$44:Q$61,2) -> 0 | D71: =LARGE(R$44:R$61,2) -> 0 | E71: =LARGE(S$44:S$61,2) -> 0 | F71: =LARGE(T$44:T$61,2) -> 0 | G71: =LARGE(U$44:U$61,2) -> 0 | K71: 5 | L71: 0 | N71: 14 | O71: 2 | CJ71: 1 | CL71: =COUNTIF($B$9:$BQ$9,CJ71) -> 0 | CM71: =COUNTIF($B$10:$BQ$10,CJ71) -> 0 | CN71: =COUNTIF($B$11:$BQ$11,CJ71) -> 0 | CO71: =COUNTIF($B$12:$BQ$12,CJ71) -> 0 | CP71: =COUNTIF($B$13:$BQ$13,CJ71) -> 0 | CQ71: =SUM(CL71:CP71) -> 0 | CT71: CHEVAUX | CU71: CITATION PLACES | CX71: =VLOOKUP(CZ71,$DA$71:$DC$88,3,FALSE) -> 0 | CY71: =VLOOKUP(CZ71,$DA$71:$DB$88,2,FALSE) -> 18 | CZ71: =LARGE($DA$71:$DA$88,DB71) -> 18 | DA71: =DC71*100+DB71 -> 1 | DB71: 1 | DC71: =CQ71 -> 0 | DK71: 3 | DL71: 16
C72: =LARGE(Q$44:Q$61,3) -> 0 | D72: =LARGE(R$44:R$61,3) -> 0 | E72: =LARGE(S$44:S$61,3) -> 0 | F72: =LARGE(T$44:T$61,3) -> 0 | G72: =LARGE(U$44:U$61,3) -> 0 | K72: 6 | L72: 0 | N72: 11 | O72: 2 | CJ72: 2 | CL72: =COUNTIF($B$9:$BQ$9,CJ72) -> 0 | CM72: =COUNTIF($B$10:$BQ$10,CJ72) -> 0 | CN72: =COUNTIF($B$11:$BQ$11,CJ72) -> 0 | CO72: =COUNTIF($B$12:$BQ$12,CJ72) -> 0 | CP72: =COUNTIF($B$13:$BQ$13,CJ72) -> 0 | CQ72: =SUM(CL72:CP72) -> 0 | CT72: =CY71 -> 18 | CU72: =CX71 -> 0 | CX72: =VLOOKUP(CZ72,$DA$71:$DC$88,3,FALSE) -> 0 | CY72: =VLOOKUP(CZ72,$DA$71:$DB$88,2,FALSE) -> 17 | CZ72: =LARGE($DA$71:$DA$88,DB72) -> 17 | DA72: =DC72*100+DB72 -> 2 | DB72: 2 | DC72: =CQ72 -> 0 | DK72: 4 | DL72: 15
C73: =LARGE(X$44:X$61,1) -> 4 | D73: =LARGE(Y$44:Y$61,1) -> 3 | E73: =LARGE(Z$44:Z$61,1) -> 9 | F73: =LARGE(AA$44:AA$61,1) -> 2 | G73: =LARGE(AB$44:AB$61,1) -> 0 | K73: 7 | L73: 3 | N73: 12 | O73: 1 | CJ73: 3 | CL73: 0 | CM73: 0 | CN73: 0 | CO73: 0 | CP73: 0 | CQ73: 0 | CT73: =CY72 -> 17 | CU73: =CX72 -> 0 | CX73: 0 | CY73: 16 | CZ73: 16 | DA73: 3 | DB73: 3 | DC73: 0 | DK73: 5 | DL73: 14
C74: =LARGE(X$44:X$61,2) -> 2 | D74: =LARGE(Y$44:Y$61,2) -> 0 | E74: =LARGE(Z$44:Z$61,2) -> 0 | F74: =LARGE(AA$44:AA$61,2) -> 0 | G74: =LARGE(AB$44:AB$61,2) -> 0 | K74: 8 | L74: 4 | N74: 9 | O74: 1 | CJ74: 4 | CL74: 0 | CM74: 0 | CN74: 0 | CO74: 0 | CP74: 0 | CQ74: 0 | CT74: 16 | CU74: 0 | CX74: 0 | CY74: 15 | CZ74: 15 | DA74: 4 | DB74: 4 | DC74: 0 | DK74: 6 | DL74: 13
C75: =LARGE(X$44:X$61,3) -> 1 | D75: =LARGE(Y$44:Y$61,3) -> 0 | E75: =LARGE(Z$44:Z$61,3) -> 0 | F75: =LARGE(AA$44:AA$61,3) -> 0 | G75: =LARGE(AB$44:AB$61,3) -> 0 | K75: 9 | L75: 1 | N75: 15 | O75: 0 | CJ75: 5 | CL75: 0 | CM75: 0 | CN75: 0 | CO75: 0 | CP75: 0 | CQ75: 0 | CT75: 15 | CU75: 0 | CX75: 0 | CY75: 14 | CZ75: 14 | DA75: 5 | DB75: 5 | DC75: 0 | DK75: 7 | DL75: 12
C76: =LARGE(AE$44:AE$61,1) -> 16 | D76: =LARGE(AF$44:AF$61,1) -> 7 | E76: =LARGE(AG$44:AG$61,1) -> 13 | F76: =LARGE(AH$44:AH$61,1) -> 11 | G76: =LARGE(AI$44:AI$61,1) -> 13 | K76: 10 | L76: 0 | N76: 10 | O76: 0 | CJ76: 6 | CL76: 0 | CM76: 0 | CN76: 0 | CO76: 0 | CP76: 0 | CQ76: 0 | CT76: 14 | CU76: 0 | CX76: 0 | CY76: 13 | CZ76: 13 | DA76: 6 | DB76: 6 | DC76: 0 | DK76: 8 | DL76: 11
C77: =LARGE(AE$44:AE$61,2) -> 0 | D77: =LARGE(AF$44:AF$61,2) -> 0 | E77: =LARGE(AG$44:AG$61,2) -> 1 | F77: =LARGE(AH$44:AH$61,2) -> 0 | G77: =LARGE(AI$44:AI$61,2) -> 0 | K77: 11 | L77: 2 | N77: 6 | O77: 0 | CJ77: 7 | CL77: 0 | CM77: 0 | CN77: 0 | CO77: 0 | CP77: 0 | CQ77: 0 | CT77: 13 | CU77: 0 | CX77: 0 | CY77: 12 | CZ77: 12 | DA77: 7 | DB77: 7 | DC77: 0 | DK77: 9 | DL77: 10
C78: =LARGE(AE$44:AE$61,3) -> 0 | D78: =LARGE(AF$44:AF$61,3) -> 0 | E78: =LARGE(AG$44:AG$61,3) -> 0 | F78: =LARGE(AH$44:AH$61,3) -> 0 | G78: =LARGE(AI$44:AI$61,3) -> 0 | K78: 12 | L78: 1 | N78: 5 | O78: 0 | CJ78: 8 | CL78: 0 | CM78: 0 | CN78: 0 | CO78: 0 | CP78: 0 | CQ78: 0 | CT78: 12 | CU78: 0 | CX78: 0 | CY78: 11 | CZ78: 11 | DA78: 8 | DB78: 8 | DC78: 0 | DK78: 10 | DL78: 9
C79: =LARGE(AL$44:AL$61,1) -> 1 | D79: =LARGE(AM$44:AM$61,1) -> 8 | E79: 0 | F79: 0 | G79: 3 | K79: 13 | L79: 5 | N79: 4 | O79: 0 | CJ79: 9 | CL79: 0 | CM79: 0 | CN79: 0 | CO79: 0 | CP79: 0 | CQ79: 0 | CT79: 11 | CU79: 0 | CX79: 0 | CY79: 10 | CZ79: 10 | DA79: 9 | DB79: 9 | DC79: 0 | DK79: 11 | DL79: 8
C80: =LARGE(AL$44:AL$61,2) -> 0 | D80: =LARGE(AM$44:AM$61,2) -> 0 | E80: 0 | F80: 0 | G80: 0 | K80: 14 | L80: 2 | N80: 3 | O80: 0 | CJ80: 10 | CL80: 0 | CM80: 0 | CN80: 0 | CO80: 0 | CP80: 0 | CQ80: 0 | CT80: 10 | CU80: 0 | CX80: 0 | CY80: 9 | CZ80: 9 | DA80: 10 | DB80: 10 | DC80: 0
C81: =LARGE(AL$44:AL$61,3) -> 0 | D81: =LARGE(AM$44:AM$61,3) -> 0 | E81: 0 | F81: 0 | G81: 0 | K81: 15 | L81: 0 | N81: 2 | O81: 0 | CJ81: 11 | CL81: 0 | CM81: 0 | CN81: 0 | CO81: 0 | CP81: 0 | CQ81: 0 | CT81: 9 | CU81: 0 | CX81: 0 | CY81: 8 | CZ81: 8 | DA81: 11 | DB81: 11 | DC81: 0
C82: =LARGE(AS$44:AS$61,1) -> 13 | D82: =LARGE(AT$44:AT$61,1) -> 0 | E82: 4 | F82: 0 | G82: 13 | K82: 16 | L82: 2 | N82: 1 | O82: 0 | CJ82: 12 | CL82: 0 | CM82: 0 | CN82: 0 | CO82: 0 | CP82: 0 | CQ82: 0 | CT82: 8 | CU82: 0 | CX82: 0 | CY82: 7 | CZ82: 7 | DA82: 12 | DB82: 12 | DC82: 0
C83: =LARGE(AS$44:AS$61,2) -> 7 | D83: =LARGE(AT$44:AT$61,2) -> 0 | E83: 2 | F83: 0 | G83: 1 | K83: 17 | L83: 0 | CJ83: 13 | CL83: 0 | CM83: 0 | CN83: 0 | CO83: 0 | CP83: 0 | CQ83: 0 | CT83: 7 | CU83: 0 | CX83: 0 | CY83: 6 | CZ83: 6 | DA83: 13 | DB83: 13 | DC83: 0 | DR83: 1 | DS83: =COUNTIF($DR$74:$DV$78,DR83) -> 0 | DV83: =VLOOKUP(DX83,$DY$83:$EA$100,3,FALSE) -> 0 | DW83: =VLOOKUP(DX83,$DY$83:$DZ$100,2,FALSE) -> 18 | DX83: =LARGE($DY$83:$DY$100,DZ83) -> 18 | DY83: =EA83*100+DZ83 -> 1 | DZ83: 1 | EA83: =DS83 -> 0
C84: =LARGE(AS$44:AS$61,3) -> 0 | D84: =LARGE(AT$44:AT$61,3) -> 0 | E84: 0 | F84: 0 | G84: 0 | K84: 18 | L84: 0 | CJ84: 14 | CL84: 0 | CM84: 0 | CN84: 0 | CO84: 0 | CP84: 0 | CQ84: 0 | CT84: 6 | CU84: 0 | CX84: 0 | CY84: 5 | CZ84: 5 | DA84: 14 | DB84: 14 | DC84: 0 | DR84: 2 | DS84: =COUNTIF($DR$74:$DV$78,DR84) -> 0 | DV84: =VLOOKUP(DX84,$DY$83:$EA$100,3,FALSE) -> 0 | DW84: =VLOOKUP(DX84,$DY$83:$DZ$100,2,FALSE) -> 17 | DX84: =LARGE($DY$83:$DY$100,DZ84) -> 17 | DY84: =EA84*100+DZ84 -> 2 | DZ84: 2 | EA84: =DS84 -> 0
C85: =LARGE(AZ$44:AZ$61,1) -> 7 | D85: =LARGE(BA$44:BA$61,1) -> 0 | E85: 0 | F85: 8 | G85: 0 | CJ85: 15 | CL85: 0 | CM85: 0 | CN85: 0 | CO85: 0 | CP85: 0 | CQ85: 0 | CT85: 5 | CU85: 0 | CX85: 0 | CY85: 4 | CZ85: 4 | DA85: 15 | DB85: 15 | DC85: 0 | DR85: 3 | DS85: 0 | DV85: 0 | DW85: 16 | DX85: 16 | DY85: 3 | DZ85: 3 | EA85: 0
C86: =LARGE(AZ$44:AZ$61,2) -> 0 | D86: =LARGE(BA$44:BA$61,2) -> 0 | E86: 0 | F86: 0 | G86: 0 | R86: =LARGE($S$86:$S$103,T86) -> 513 | S86: =U86*100+T86 -> 1 | T86: 1 | U86: =L67 -> 0 | CJ86: 16 | CL86: 0 | CM86: 0 | CN86: 0 | CO86: 0 | CP86: 0 | CQ86: 0 | CT86: 4 | CU86: 0 | CX86: 0 | CY86: 3 | CZ86: 3 | DA86: 16 | DB86: 16 | DC86: 0 | DR86: 4 | DS86: 0 | DV86: 0 | DW86: 15 | DX86: 15 | DY86: 4 | DZ86: 4 | EA86: 0
C87: =LARGE(AZ$44:AZ$61,3) -> 0 | D87: =LARGE(BA$44:BA$61,3) -> 0 | E87: 0 | F87: 0 | G87: 0 | R87: =LARGE($S$86:$S$103,T87) -> 408 | S87: =U87*100+T87 -> 2 | T87: 2 | U87: =L68 -> 0 | CJ87: 17 | CL87: 0 | CM87: 0 | CN87: 0 | CO87: 0 | CP87: 0 | CQ87: 0 | CT87: 3 | CU87: 0 | CX87: 0 | CY87: 2 | CZ87: 2 | DA87: 17 | DB87: 17 | DC87: 0 | DR87: 5 | DS87: 0 | DV87: 0 | DW87: 14 | DX87: 14 | DY87: 5 | DZ87: 5 | EA87: 0
C88: =LARGE(BG$44:BG$61,1) -> 0 | D88: =LARGE(BH$44:BH$61,1) -> 0 | E88: 11 | F88: 1 | G88: 8 | R88: 307 | S88: 3 | T88: 3 | U88: 0 | CJ88: 18 | CL88: 0 | CM88: 0 | CN88: 0 | CO88: 0 | CP88: 0 | CQ88: 0 | CT88: 2 | CU88: 0 | CX88: 0 | CY88: 1 | CZ88: 1 | DA88: 18 | DB88: 18 | DC88: 0 | DR88: 6 | DS88: 0 | DV88: 0 | DW88: 13 | DX88: 13 | DY88: 6 | DZ88: 6 | EA88: 0
C89: =LARGE(BG$44:BG$61,2) -> 0 | D89: =LARGE(BH$44:BH$61,2) -> 0 | E89: 3 | F89: 0 | G89: 0 | R89: 216 | S89: 4 | T89: 4 | U89: 0 | CT89: 1 | CU89: 0 | DR89: 7 | DS89: 0 | DV89: 0 | DW89: 12 | DX89: 12 | DY89: 7 | DZ89: 7 | EA89: 0
C90: =LARGE(BG$44:BG$61,3) -> 0 | D90: =LARGE(BH$44:BH$61,3) -> 0 | E90: 0 | F90: 0 | G90: 0 | R90: 214 | S90: 5 | T90: 5 | U90: 0 | DR90: 8 | DS90: 0 | DV90: 0 | DW90: 11 | DX90: 11 | DY90: 8 | DZ90: 8 | EA90: 0
C91: =LARGE(BN$44:BN$61,1) -> 16 | D91: =LARGE(BO$44:BO$61,1) -> 0 | E91: 0 | F91: 11 | G91: 16 | R91: 211 | S91: 6 | T91: 6 | U91: 0 | DR91: 9 | DS91: 0 | DV91: 0 | DW91: 10 | DX91: 10 | DY91: 9 | DZ91: 9 | EA91: 0
C92: =LARGE(BN$44:BN$61,2) -> 7 | D92: =LARGE(BO$44:BO$61,2) -> 0 | E92: 0 | F92: 0 | G92: 0 | R92: 112 | S92: 307 | T92: 7 | U92: 3 | DR92: 10 | DS92: 0 | DV92: 0 | DW92: 9 | DX92: 9 | DY92: 10 | DZ92: 10 | EA92: 0
C93: =LARGE(BN$44:BN$61,3) -> 0 | D93: =LARGE(BO$44:BO$61,3) -> 0 | E93: 0 | F93: 0 | G93: 0 | R93: 109 | S93: 408 | T93: 8 | U93: 4 | DR93: 11 | DS93: 0 | DV93: 0 | DW93: 8 | DX93: 8 | DY93: 11 | DZ93: 11 | EA93: 0
R94: 15 | S94: 109 | T94: 9 | U94: 1 | DR94: 12 | DS94: 0 | DV94: 0 | DW94: 7 | DX94: 7 | DY94: 12 | DZ94: 12 | EA94: 0
R95: 10 | S95: 10 | T95: 10 | U95: 0 | DR95: 13 | DS95: 0 | DV95: 0 | DW95: 6 | DX95: 6 | DY95: 13 | DZ95: 13 | EA95: 0
R96: 6 | S96: 211 | T96: =IF(RECAP!$D$18="NP",0,11) -> 11 | U96: 2 | DR96: 14 | DS96: 0 | DV96: 0 | DW96: 5 | DX96: 5 | DY96: 14 | DZ96: 14 | EA96: 0
R97: 5 | S97: 112 | T97: =IF(RECAP!$E$18="NP",0,12) -> 12 | U97: 1 | DR97: 15 | DS97: 0 | DV97: 0 | DW97: 4 | DX97: 4 | DY97: 15 | DZ97: 15 | EA97: 0
R98: 4 | S98: 513 | T98: =IF(RECAP!$F$18="NP",0,13) -> 13 | U98: 5 | DR98: 16 | DS98: 0 | DV98: 0 | DW98: 3 | DX98: 3 | DY98: 16 | DZ98: 16 | EA98: 0
C99: =LARGE(C$64:C$93,1) -> 16 | D99: =LARGE(D$64:D$93,1) -> 11 | E99: 13 | F99: 13 | G99: 16 | R99: 3 | S99: 214 | T99: =IF(RECAP!$G$18="NP",0,14) -> 14 | U99: 2 | DR99: 17 | DS99: 0 | DV99: 0 | DW99: 2 | DX99: 2 | DY99: 17 | DZ99: 17 | EA99: 0
C100: =LARGE(C$64:C$93,2) -> 16 | D100: =LARGE(D$64:D$93,2) -> 8 | E100: 11 | F100: 11 | G100: 13 | R100: 2 | S100: 15 | T100: =IF(RECAP!$H$18="NP",0,15) -> 15 | U100: 0 | DR100: 18 | DS100: 0 | DV100: 0 | DW100: 1 | DX100: 1 | DY100: 18 | DZ100: 18 | EA100: 0
C101: =LARGE(C$64:C$93,3) -> 16 | D101: =LARGE(D$64:D$93,3) -> 7 | E101: 9 | F101: 11 | G101: 13 | R101: 1 | S101: 216 | T101: =IF(RECAP!$I$18="NP",0,16) -> 16 | U101: 2
C102: =LARGE(C$64:C$93,4) -> 13 | D102: =LARGE(D$64:D$93,4) -> 3 | E102: 9 | F102: 8 | G102: 11 | S102: 0 | T102: =IF(RECAP!$J$18="NP",0,17) -> 0 | U102: 0
C103: =LARGE(C$64:C$93,5) -> 7 | D103: =LARGE(D$64:D$93,5) -> 1 | E103: 8 | F103: 7 | G103: 8 | S103: 0 | T103: =IF(RECAP!$K$18="NP",0,18) -> 0 | U103: 0
C104: =LARGE(C$64:C$93,6) -> 7 | D104: =LARGE(D$64:D$93,6) -> 0 | E104: 8 | F104: 2 | G104: 3 | DR104: CHEVAUX | DS104: CITATION
C105: =LARGE(C$64:C$93,7) -> 7 | D105: =LARGE(D$64:D$93,7) -> 0 | E105: 4 | F105: 1 | G105: 1 | DR105: =DW83 -> 18 | DS105: =DV83 -> 0
C106: =LARGE(C$64:C$93,8) -> 4 | D106: =LARGE(D$64:D$93,8) -> 0 | E106: 3 | F106: 0 | G106: 0 | DR106: =DW84 -> 17 | DS106: =DV84 -> 0
C107: =LARGE(C$64:C$93,9) -> 2 | D107: =LARGE(D$64:D$93,9) -> 0 | E107: 2 | F107: 0 | G107: 0 | DR107: 16 | DS107: 0
C108: =LARGE(C$64:C$93,10) -> 1 | D108: =LARGE(D$64:D$93,10) -> 0 | E108: 1 | F108: 0 | G108: 0 | DR108: 15 | DS108: 0
C109: =LARGE(C$64:C$93,11) -> 1 | D109: =LARGE(D$64:D$93,11) -> 0 | E109: 0 | F109: 0 | G109: 0 | DR109: 14 | DS109: 0
C110: =LARGE(C$64:C$93,12) -> 0 | D110: =LARGE(D$64:D$93,12) -> 0 | E110: 0 | F110: 0 | G110: 0 | DR110: 13 | DS110: 0
C111: =LARGE(C$64:C$93,13) -> 0 | D111: =LARGE(D$64:D$93,13) -> 0 | E111: 0 | F111: 0 | G111: 0 | DR111: 12 | DS111: 0
C112: =LARGE(C$64:C$93,14) -> 0 | D112: =LARGE(D$64:D$93,14) -> 0 | E112: 0 | F112: 0 | G112: 0 | DR112: 11 | DS112: 0
C113: =LARGE(C$64:C$93,15) -> 0 | D113: =LARGE(D$64:D$93,15) -> 0 | E113: 0 | F113: 0 | G113: 0 | DR113: 10 | DS113: 0
C114: =LARGE(C$64:C$93,16) -> 0 | D114: =LARGE(D$64:D$93,16) -> 0 | E114: 0 | F114: 0 | G114: 0 | DR114: 9 | DS114: 0
C115: =LARGE(C$64:C$93,17) -> 0 | D115: =LARGE(D$64:D$93,17) -> 0 | E115: 0 | F115: 0 | G115: 0 | DR115: 8 | DS115: 0
C116: =LARGE(C$64:C$93,18) -> 0 | D116: =LARGE(D$64:D$93,18) -> 0 | E116: 0 | F116: 0 | G116: 0 | DR116: 7 | DS116: 0
C117: =LARGE(C$64:C$93,19) -> 0 | D117: =LARGE(D$64:D$93,19) -> 0 | E117: 0 | F117: 0 | G117: 0 | DR117: 6 | DS117: 0
C118: =LARGE(C$64:C$93,20) -> 0 | D118: =LARGE(D$64:D$93,20) -> 0 | E118: 0 | F118: 0 | G118: 0 | DR118: 5 | DS118: 0
DR119: 4 | DS119: 0
DR120: 3 | DS120: 0
DR121: 2 | DS121: 0
C122: =IF(C99=C100,0,C99) -> 0 | D122: 11 | E122: 13 | F122: 13 | G122: 16 | DR122: 1 | DS122: 0
C123: 0 | D123: 8 | E123: 11 | F123: 0 | G123: 0
C124: 16 | D124: 7 | E124: 0 | F124: 11 | G124: 13
C125: 13 | D125: 3 | E125: 9 | F125: 8 | G125: 11
C126: 0 | D126: 1 | E126: 0 | F126: 7 | G126: 8
C127: 0 | D127: 0 | E127: 8 | F127: 2 | G127: 3
C128: 7 | D128: 0 | E128: 4 | F128: 1 | G128: 1
C129: 4 | D129: 0 | E129: 3 | F129: 0 | G129: 0
C130: =IF(C107=C108,0,C107) -> 2 | D130: 0 | E130: 2 | F130: 0 | G130: 0
C131: 0 | D131: 0 | E131: 1 | F131: 0 | G131: 0
C132: 1 | D132: 0 | E132: 0 | F132: 0 | G132: 0
C133: 0 | D133: 0 | E133: 0 | F133: 0 | G133: 0
C134: 0 | D134: 0 | E134: 0 | F134: 0 | G134: 0
C135: 0 | D135: 0 | E135: 0 | F135: 0 | G135: 0
C136: 0 | D136: 0 | E136: 0 | F136: 0 | G136: 0
C137: 0 | D137: 0 | E137: 0 | F137: 0 | G137: 0
C138: 0 | D138: 0 | E138: 0 | F138: 0 | G138: 0
C139: 0 | D139: 0 | E139: 0 | F139: 0 | G139: 0
C140: 0 | D140: 0 | E140: 0 | F140: 0 | G140: 0
C141: 0 | D141: 0 | E141: 0 | F141: 0 | G141: 0
B145: 1 | C145: =LARGE(C$122:C$141,1) -> 16 | D145: =LARGE(D$122:D$141,1) -> 11 | E145: 13 | F145: 13 | G145: 16 | J145: CHEVAUX | K145: CITATION PLACES | N145: =VLOOKUP(P145,$Q$145:$S$162,3,FALSE) -> 5 | O145: =VLOOKUP(P145,$Q$145:$R$162,2,FALSE) -> 1 | P145: =LARGE($Q$145:$Q$162,R145) -> 501 | Q145: =S145*100+R145 -> 501 | R145: 1 | S145: =COUNTIF($C$145:$G$155,R145) -> 5
B146: 2 | C146: =LARGE(C$122:C$141,2) -> 13 | D146: =LARGE(D$122:D$141,2) -> 8 | E146: 11 | F146: 11 | G146: 13 | J146: =O145 -> 1 | K146: =N145 -> 5 | L146: =CT46 -> 18 | N146: =VLOOKUP(P146,$Q$145:$S$162,3,FALSE) -> 4 | O146: =VLOOKUP(P146,$Q$145:$R$162,2,FALSE) -> 13 | P146: =LARGE($Q$145:$Q$162,R146) -> 413 | Q146: =S146*100+R146 -> 302 | R146: 2 | S146: =COUNTIF($C$145:$G$155,R146) -> 3
B147: 3 | C147: =LARGE(C$122:C$141,3) -> 7 | D147: =LARGE(D$122:D$141,3) -> 7 | E147: 9 | F147: 8 | G147: 11 | J147: =O146 -> 13 | K147: =N146 -> 4 | L147: =CT47 -> 17 | N147: 4 | O147: 11 | P147: 411 | Q147: 303 | R147: 3 | S147: 3
B148: 4 | C148: =LARGE(C$122:C$141,4) -> 4 | D148: =LARGE(D$122:D$141,4) -> 3 | E148: 8 | F148: 7 | G148: 8 | J148: 11 | K148: 4 | L148: 16 | N148: 4 | O148: 8 | P148: 408 | Q148: 204 | R148: 4 | S148: 2
B149: 5 | C149: =LARGE(C$122:C$141,5) -> 2 | D149: =LARGE(D$122:D$141,5) -> 1 | E149: 4 | F149: 2 | G149: 3 | J149: 8 | K149: 4 | L149: 15 | N149: 3 | O149: 7 | P149: 307 | Q149: 5 | R149: 5 | S149: 0
B150: 6 | C150: =LARGE(C$122:C$141,6) -> 1 | D150: =LARGE(D$122:D$141,6) -> 0 | E150: 3 | F150: 1 | G150: 1 | J150: 7 | K150: 3 | L150: 14 | N150: 3 | O150: 3 | P150: 303 | Q150: 6 | R150: 6 | S150: 0
B151: 7 | C151: =LARGE(C$122:C$141,7) -> 0 | D151: =LARGE(D$122:D$141,7) -> 0 | E151: 2 | F151: 0 | G151: 0 | J151: 3 | K151: 3 | L151: 13 | N151: 3 | O151: 2 | P151: 302 | Q151: 307 | R151: 7 | S151: 3
B152: 8 | C152: =LARGE(C$122:C$141,8) -> 0 | D152: =LARGE(D$122:D$141,8) -> 0 | E152: 1 | F152: 0 | G152: 0 | J152: 2 | K152: 3 | L152: 12 | N152: 2 | O152: 16 | P152: 216 | Q152: 408 | R152: 8 | S152: 4
B153: 9 | C153: =LARGE(C$122:C$141,9) -> 0 | D153: =LARGE(D$122:D$141,9) -> 0 | E153: 0 | F153: 0 | G153: 0 | J153: 16 | K153: 2 | L153: 11 | N153: 2 | O153: 4 | P153: 204 | Q153: 109 | R153: 9 | S153: 1
B154: 10 | C154: =LARGE(C$122:C$141,10) -> 0 | D154: =LARGE(D$122:D$141,10) -> 0 | E154: 0 | F154: 0 | G154: 0 | J154: 4 | K154: 2 | L154: 10 | N154: 1 | O154: 9 | P154: 109 | Q154: 10 | R154: 10 | S154: 0
B155: 11 | C155: =LARGE(C$122:C$141,11) -> 0 | D155: =LARGE(D$122:D$141,11) -> 0 | E155: 0 | F155: 0 | G155: 0 | J155: 9 | K155: 1 | L155: 9 | N155: 0 | O155: 18 | P155: 18 | Q155: 411 | R155: 11 | S155: 4
J156: 18 | K156: 0 | L156: 8 | N156: 0 | O156: 17 | P156: 17 | Q156: 12 | R156: 12 | S156: 0
J157: 17 | K157: 0 | L157: 7 | N157: 0 | O157: 15 | P157: 15 | Q157: 413 | R157: 13 | S157: 4
C158: =D2 -> 0 | D158: =E2 -> 0 | E158: =F2 -> 0 | F158: =G2 -> 0 | G158: =H2 -> 0 | J158: 15 | K158: 0 | L158: 6 | N158: 0 | O158: 14 | P158: 14 | Q158: 14 | R158: 14 | S158: 0
J159: 14 | K159: 0 | L159: 5 | N159: 0 | O159: 12 | P159: 12 | Q159: 15 | R159: 15 | S159: 0
J160: 12 | K160: 0 | L160: 4 | N160: 0 | O160: 10 | P160: 10 | Q160: 216 | R160: 16 | S160: 2
J161: 10 | K161: 0 | L161: 3 | N161: 0 | O161: 6 | P161: 6 | Q161: 17 | R161: 17 | S161: 0
J162: 6 | K162: 0 | L162: 2 | N162: 0 | O162: 5 | P162: 5 | Q162: 18 | R162: 18 | S162: 0
J163: 5 | K163: 0 | L163: 1
